Workbook

Sheet Contents
C2: Contents
D3: Contents | F3: Colour Codes | K3: File Name: | M3: =IFERROR(File_name(),"") -> 
G4: Inputs | I4: 1234567890
C5: Annual Time Series | G5: Section Titles | I5: TITLE ROW | K5: Last Save Date | M5: =IFERROR(lastsaved(),"") -> 
D6: Volatility | G6: Sum Column | I6: 1000000000
D7: Mean Reversion | G7: True or 1 | I7: =1=1 -> TRUE | K7: Last Save By | M7: =IFERROR(last_save_by(),"") -> 
D8: Base Valule | G8: False or 0 | I8: =1=2 -> FALSE
D9: Random Number | G9: Other Sheet Links | I9: |||||||||||||||||||
D10: Std Dev Away form Mean
D11: Multiplied by Volatility - % Change in Price
D12: Time Series - Discrete, No Mean Reversion
D13: Continual - No Mean Reversion
D14: Mean Reversion - Discrete
D15: Mean Reversion - Continual
D16: Percent Change Continual - LN
D17: Percent Change Continual - Discrete
D18: Volatility Output - LN
D19: Volatiity Output - Discrete
D20: Percent Change Discrete - LN
D21: Percent Change Discrete - Discrete
D22: Volatility Output - LN
D23: Volatiity Output - Discrete
D24: Continuous - No Mean Reversion
D25: Continuous - Mean Reversion
D26: Standard Deviation - No Mean Reversion
D27: Standard Deviation - Mean Reversion
D28: Continual Rate of Change - No Mean Reversion
D29: Continual Rate of Change - Mean Reversion
D30: Volatilty - No Mean Reversion
D31: Volatilty - Mean Reversion
C33: Simulation
D34: Simulations
D35: Row Start
D36: Column Start
D37: Time Series
D38: Median Variance
D39: Average Variance
D40: Median Std Dev
D41: Average Std Dev
D42: Monte Carlo Scenarios
C44: Normal Distn of Return
D45: Annual Volatility (Stdev of Return, Stdev of Growth)
D46: Standard Deviation of Returns
D47: Expected Return
D48: Range - 4 Standard Deviation
C50: No MR Variance with Time
D51: Row Start1
D52: Time Period
D53: Median of Growth ^ 2 (Variance)
D54: Square Root of Growth - Std Dev
D55: Time Period ^ .5
D56: Square Root Relative to First
D57: Average of Growth ^ 2 (Variance)
D58: Square Root of Growth - Std Dev
D59: Square Root Relative to First
D60: Variance Relative to First
C62: MR Variance with Time
D63: Row Start4
D64: Time Period
D65: Median of Growth ^ 2 (Variance)
D66: Square Root of Growth - Std Dev
D67: Time Period ^ .5
D68: Square Root Relative to First
D69: Average of Growth ^ 2 (Variance)
D70: Square Root of Growth - Std Dev
D71: Square Root Relative to First
D72: Variance Relative to First
C74: 20% MR Variance with Time
D75: Row Start1
D76: Mean Reversion
D77: Time Period
D78: Median of Growth ^ 2 (Variance)
D79: Square Root of Growth - Std Dev
D80: Time Period ^ .5
D81: Square Root Relative to First
D82: Average of Growth ^ 2 (Variance)
D83: Square Root of Growth - Std Dev
D84: Square Root Relative to First
D85: Variance Relative to First

Sheet Annual Time Series
B2: Assumptions
C3: Volatility | D3: 0.2
C4: Mean Reversion | D4: 0.2 | I4: Value | J4: EXP | K4: LN | M4: Value | N4: LN | O4: EXP
C5: Base Valule | D5: 100 | I5: 0.05 | J5: =EXP(I5) -> 1.051271096 | K5: =LN(J5) -> 0.05 | M5: 1.05 | N5: =LN(M5) -> 0.04879016417 | O5: =EXP(N5) -> 1.05
B7: Time Series Factors and Equations
G8: 1 | H8: 2 | I8: 3 | J8: 4 | K8: 5 | L8: 6 | M8: 7 | N8: 8 | O8: 9 | P8: 10 | Q8: 11 | R8: 12 | S8: 13 | T8: 14 | U8: 15 | V8: 16 | W8: 17 | X8: 18 | Y8: 19 | Z8: 20
C9: Random Number | F9: =_xlfn.FORMULATEXT(G9) -> =RAND() | G9: =RAND() -> 0.334365779 | H9: =RAND() -> 0.01153407892 | I9: 0.1520871846 | J9: 0.2605383326 | K9: 0.1389690225 | L9: 0.08757583509 | M9: 0.5816588783 | N9: 0.7874187074 | O9: 0.284366063 | P9: 0.6650415726 | Q9: 0.4192305344 | R9: 0.1928504788 | S9: 0.8162935628 | T9: 0.2102001713 | U9: 0.4660103497 | V9: 0.8781082606 | W9: 0.1733455315 | X9: 0.8211033786 | Y9: 0.5021436242 | Z9: 0.788876772
C10: Std Dev Away form Mean | F10: =_xlfn.FORMULATEXT(G10) -> =NORM.S.INV(G9) | G10: =_xlfn.NORM.S.INV(G9) -> -0.4278895191 | H10: =_xlfn.NORM.S.INV(H9) -> -2.272303959 | I10: -1.02752277 | J10: -0.6416866406 | K10: -1.084962995 | L10: -1.355835007 | M10: 0.2061391176 | N10: 0.7974967577 | O10: -0.569919754 | P10: 0.4262621228 | Q10: -0.2038623484 | R10: -0.8674400284 | S10: 0.9013300248 | T10: -0.8057268875 | U10: -0.08530275742 | V10: 1.165582025 | W10: -0.9410269218 | X10: 0.9195781623 | Y10: 0.005373294834 | Z10: 0.8025299755
C11: Multiplied by Volatility - % Change in Price | D11: =D3 -> 0.2 | F11: =_xlfn.FORMULATEXT(G11) -> =$D$11*G10 | G11: =$D$11*G10 -> -0.08557790382 | H11: =$D$11*H10 -> -0.4544607918 | I11: -0.205504554 | J11: -0.1283373281 | K11: -0.2169925991 | L11: -0.2711670015 | M11: 0.04122782352 | N11: 0.1594993515 | O11: -0.1139839508 | P11: 0.08525242456 | Q11: -0.04077246968 | R11: -0.1734880057 | S11: 0.180266005 | T11: -0.1611453775 | U11: -0.01706055148 | V11: 0.233116405 | W11: -0.1882053844 | X11: 0.1839156325 | Y11: 0.001074658967 | Z11: 0.1605059951
C13: Time Series - Discrete, No Mean Reversion | D13: =D5 -> 100 | F13: =_xlfn.FORMULATEXT(G13) -> =D13*(1+G11) | G13: =D13*(1+G11) -> 91.44220962 | H13: =G13*(1+H11) -> 49.88531063 | I13: =H13*(1+I11) -> 39.63365212 | J13: 34.5471751 | K13: 27.05069378 | L13: 19.71543826 | M13: 20.52826287 | N13: 23.80250749 | O13: 21.08940365 | P13: 22.88732644 | Q13: 21.95415362 | R13: 18.14537129 | S13: 21.41636488 | T13: 17.96521668 | U13: 17.65872017 | V13: 21.77525753 | W13: 17.67703682 | X13: 20.92812023 | Y13: 20.95061082 | Z13: 24.31330946
C14: Continual - No Mean Reversion | D14: =D5 -> 100 | F14: =_xlfn.FORMULATEXT(G14) -> =D14*EXP(G11) | G14: =D14*EXP(G11) -> 91.7981626 | H14: =G14*EXP(H11) -> 58.2725703 | I14: =H14*EXP(I11) -> 47.44764707 | J14: 41.73289256 | K14: 33.59230454 | L14: 25.6137677 | M14: 26.69183814 | N14: 31.30748426 | O14: 27.93480024 | P14: 30.42077175 | Q14: 29.20538724 | R14: 24.55376446 | S14: 29.40401372 | T14: 25.027765 | U14: 24.60439922 | V14: 31.06375365 | W14: 25.73459711 | X14: 30.93078326 | Y14: 30.96404118 | Z14: 36.35502974
C16: Mean Reversion - Discrete | D16: =D13 -> 100 | F16: =_xlfn.FORMULATEXT(G16) -> =D16+D16*G$11+$D$4*($D$5-D16) | G16: =D16+D16*G$11+$D$4*($D$5-D16) -> 91.44220962 | H16: =G16+G16*H11+$D$4*($D$5-G16) -> 51.5968687 | I16: =H16+H16*I11+$D$4*($D$5-H16) -> 50.67410347 | J16: 54.03590373 | K16: 51.50333179 | L16: 47.23666139 | M16: 59.73679385 | N16: 77.31741496 | O16: 73.04098754 | P16: 84.65971132 | Q16: 84.27598354 | R16: 72.79991452 | S16: 91.36328137 | T16: 78.36785463 | U16: 81.35728488 | V16: 104.0515457 | W16: 83.6581754 | X16: 102.3125866 | Y16: 101.9600204 | Z16: 117.9332108
C17: Mean Reversion - Continual | D17: =D5 -> 100 | F17: =_xlfn.FORMULATEXT(G17) -> =D17*EXP(G11)+($D$5-D17)*$D$4 | G17: =D17*EXP(G11)+($D$5-D17)*$D$4 -> 91.7981626 | H17: =G17*EXP(H11)+($D$5-G17)*$D$4 -> 59.91293778 | I17: =H17*EXP(I11)+($D$5-H17)*$D$4 -> 56.80070641 | J17: =I17*EXP(J11)+($D$5-I17)*$D$4 -> 58.59929662 | K17: 55.4488198 | L17: 51.18935946 | M17: 63.10602165 | N17: 81.39733156 | O17: 76.34911598 | P17: 87.87374723 | Q17: 86.78822585 | R17: 75.60757999 | S17: 95.42127317 | T17: 82.13531028 | U17: 84.3188601 | V17: 109.5911865 | W17: 88.8719828 | X17: 109.0421208 | Y17: 107.3509427 | Z17: 124.5710699
B19: Standard Deviation and Volatility
C20: Percent Change Continual - LN | F20: =_xlfn.FORMULATEXT(H20) -> =LN(H14/G14) | H20: =LN(H14/G14) -> -0.4544607918 | I20: -0.205504554 | J20: -0.1283373281 | K20: -0.2169925991 | L20: -0.2711670015 | M20: 0.04122782352 | N20: 0.1594993515 | O20: -0.1139839508 | P20: 0.08525242456 | Q20: -0.04077246968 | R20: -0.1734880057 | S20: 0.180266005 | T20: -0.1611453775 | U20: -0.01706055148 | V20: 0.233116405 | W20: -0.1882053844 | X20: 0.1839156325 | Y20: 0.001074658967 | Z20: 0.1605059951
C21: Percent Change Continual - Discrete | F21: =_xlfn.FORMULATEXT(H21) -> =H14/G14-1 | H21: =H14/G14-1 -> -0.3652098403 | I21: -0.1857636135 | J21: -0.1204433701 | K21: -0.1950640735 | L21: -0.237510851 | M21: 0.042089491 | N21: 0.1729235016 | O21: -0.107727724 | P21: 0.08899192031 | Q21: -0.03995245497 | R21: -0.159272765 | S21: 0.1975358712 | T21: -0.1488316786 | U21: -0.01691584437 | V21: 0.2625284354 | W21: -0.1715554598 | X21: 0.2019144163 | Y21: 0.00107523662 | Z21: 0.174104812
B23: Continual | D23: Var S | E23: Var P | G23: Change in the Continious Case
C24: Volatility Output - LN | D24: =IFERROR(_xlfn.VAR.S(G20:Z20),FALSE) -> 0.03488705646 | E24: =IFERROR(_xlfn.VAR.P(H20:Z20),FALSE) -> 0.03305089559 | G24: Chg 1 | H24: Chg 2 | I24: Chg 3 | J24: Chg 4 | K24: Chg 5 | L24: Chg 6 | M24: Chg 7 | N24: Chg 8 | O24: Chg 9 | P24: Chg 10 | Q24: Chg 11 | R24: Chg 12 | S24: Chg 13 | T24: Chg 14 | U24: Chg 15 | V24: Chg 16 | W24: Chg 17 | X24: Chg 18 | Y24: Chg 19 | Z24: Chg 20
C25: Volatiity Output - Discrete | D25: =IFERROR(_xlfn.VAR.S(G21:Z21),FALSE) -> 0.03147293294 | E25: =IFERROR(_xlfn.VAR.P(H21:Z21),FALSE) -> 0.02981646279 | G25: =(LN(G17/$D$17)^2) -> 0.007323577623 | H25: =(LN(H17/$D$17)^2) -> 0.2624284568 | I25: =(LN(I17/$D$17)^2) -> 0.3199275948 | J25: 0.2856341222 | K25: 0.3477575969 | L25: =(LN(L17/$D$17)^2) -> 0.4484157188 | M25: 0.2119257968 | N25: 0.04236504018 | O25: 0.07282103717 | P25: 0.01671049821 | Q25: 0.02007866905 | R25: 0.07818378961 | S25: 0.00219666971 | T25: 0.03873109544 | U25: 0.02909228962 | V25: 0.008388136446 | W25: 0.01391768705 | X25: 0.007493334875 | Y25: 0.005031507492 | Z25: 0.04827081839
C27: Percent Change Discrete - LN | H27: =LN(H13/G13) -> -0.6059806007 | I27: -0.2300480249 | J27: -0.1373527741 | K27: -0.244613131 | L27: -0.3163106562 | M27: 0.04040061633 | N27: 0.1479883184 | O27: -0.1210202143 | P27: 0.0818126093 | Q27: -0.04162697434 | R27: -0.1905408496 | S27: 0.165739841 | T27: -0.1757178623 | U27: -0.01720775939 | V27: 0.2095446276 | W27: -0.2085079072 | X27: 0.1688272776 | Y27: 0.001074081934 | Z27: 0.1488561127
C28: Percent Change Discrete - Discrete | H28: =H13/G13-1 -> -0.4544607918 | I28: -0.205504554 | J28: -0.1283373281 | K28: -0.2169925991 | L28: -0.2711670015 | M28: 0.04122782352 | N28: 0.1594993515 | O28: -0.1139839508 | P28: 0.08525242456 | Q28: -0.04077246968 | R28: -0.1734880057 | S28: 0.180266005 | T28: -0.1611453775 | U28: -0.01706055148 | V28: 0.233116405 | W28: -0.1882053844 | X28: 0.1839156325 | Y28: 0.001074658967 | Z28: 0.1605059951
D29: Var S | E29: Var P
C30: Volatility Output - LN | D30: =IFERROR(_xlfn.VAR.S(G27:Z27),FALSE) -> 0.04367393429 | E30: =IFERROR(_xlfn.VAR.P(H27:Z27),FALSE) -> 0.04137530616
C31: Volatiity Output - Discrete | D31: =IFERROR(_xlfn.VAR.S(G28:Z28),FALSE) -> 0.03488705646 | E31: =IFERROR(_xlfn.VAR.P(H28:Z28),FALSE) -> 0.03305089559
B38: Graphs
G39: =G8 -> 1 | H39: 2 | I39: 3 | J39: 4 | K39: 5 | L39: 6 | M39: 7 | N39: 8 | O39: 9 | P39: 10 | Q39: 11 | R39: 12 | S39: 13 | T39: 14 | U39: 15 | V39: 16 | W39: 17 | X39: 18 | Y39: 19 | Z39: 20
C40: Continuous - No Mean Reversion | G40: =G14 -> 91.7981626 | H40: 58.2725703 | I40: 47.44764707 | J40: 41.73289256 | K40: 33.59230454 | L40: 25.6137677 | M40: 26.69183814 | N40: 31.30748426 | O40: 27.93480024 | P40: 30.42077175 | Q40: 29.20538724 | R40: 24.55376446 | S40: 29.40401372 | T40: 25.027765 | U40: 24.60439922 | V40: 31.06375365 | W40: 25.73459711 | X40: 30.93078326 | Y40: 30.96404118 | Z40: 36.35502974
C41: Continuous - Mean Reversion | G41: =G17 -> 91.7981626 | H41: 59.91293778 | I41: 56.80070641 | J41: 58.59929662 | K41: 55.4488198 | L41: 51.18935946 | M41: 63.10602165 | N41: 81.39733156 | O41: 76.34911598 | P41: 87.87374723 | Q41: 86.78822585 | R41: 75.60757999 | S41: 95.42127317 | T41: 82.13531028 | U41: 84.3188601 | V41: 109.5911865 | W41: 88.8719828 | X41: 109.0421208 | Y41: 107.3509427 | Z41: 124.5710699
C43: Standard Deviation - No Mean Reversion | D43: =_xlfn.STDEV.S(G40:Z40) -> 15.77598478 | E43: =D43/D5 -> 0.1577598478
C44: Standard Deviation - Mean Reversion | D44: =_xlfn.STDEV.S(G41:Z41) -> 20.63036836 | E44: =D44/D5 -> 0.2063036836
C46: Continual Rate of Change - No Mean Reversion | H46: =LN(H40/G40) -> -0.4544607918 | I46: =LN(I40/H40) -> -0.205504554 | J46: -0.1283373281 | K46: -0.2169925991 | L46: -0.2711670015 | M46: 0.04122782352 | N46: 0.1594993515 | O46: -0.1139839508 | P46: 0.08525242456 | Q46: -0.04077246968 | R46: -0.1734880057 | S46: 0.180266005 | T46: -0.1611453775 | U46: -0.01706055148 | V46: 0.233116405 | W46: -0.1882053844 | X46: 0.1839156325 | Y46: 0.001074658967 | Z46: 0.1605059951
C47: Continual Rate of Change - Mean Reversion | H47: =LN(H41/G41) -> -0.4266998107 | I47: =LN(I41/H41) -> -0.05334370903 | J47: 0.0311739311 | K47: -0.055262264 | L47: -0.0799287421 | M47: 0.2092845079 | N47: 0.2545262953 | O47: -0.06402603756 | P47: 0.1405846407 | Q47: -0.01243012813 | R47: -0.1379144231 | S47: 0.2327450003 | T47: -0.1499335302 | U47: 0.02623755328 | V47: 0.2621513901 | W47: -0.2095600172 | X47: 0.2045372979 | Y47: -0.01563093086 | Z47: 0.1487730894
C49: Volatilty - No Mean Reversion | D49: =_xlfn.STDEV.S(H46:Z46) -> 0.1867807711
C50: Volatilty - Mean Reversion | D50: =_xlfn.STDEV.S(H47:Z47) -> 0.1820012321

Sheet Simulation
G2: vol --> LN(Pt/Pt-1) | K2: vol --> Pt/Pt-1-1
C3: Simulations | E3: 10000
E4: s
C5: Row Start | E5: 15
C6: Column Start | E6: =COLUMN() -> 5
C8: Time Series | E8: Continual | F8: Continual | G8: Continual | H8: Continual | I8: Discrete | J8: Discrete | K8: Discrete | L8: Discrete
E9: LN S | F9: LN P | G9: Discrete S | H9: Discrete P | I9: LN S | J9: LN P | K9: Discrete S | L9: Discrete P
C10: Median Variance | E10: =MEDIAN(E18:E200011) -> 0.03857589586 | F10: =MEDIAN(F18:F200011) -> 0.03654558555 | G10: 0.04005863709 | H10: 0.03795028777 | I10: 0.04166811027 | J10: 0.03947505184 | K10: 0.03857589586 | L10: 0.03654558555 | P10: Average | Q10: =AVERAGE(E13:E7683) -> 0.03990189617
C11: Average Variance | E11: =AVERAGE(E18:E200011) -> 0.04003500517 | F11: =AVERAGE(F18:F200011) -> 0.03792789963 | G11: 0.04256162974 | H11: 0.04032154396 | I11: 0.04483362471 | J11: 0.04247396026 | K11: 0.04003500517 | L11: 0.03792789963
C12: Median Std Dev | E12: =E10^0.5 -> 0.196407474 | F12: =F10^0.5 -> 0.1911689973 | G12: 0.200146539 | H12: 0.194808336 | I12: 0.2041276813 | J12: 0.1986832953 | K12: 0.196407474 | L12: 0.1911689973 | P12: Bins | Q12: 30
C13: Average Std Dev | E13: =E11^0.5 -> 0.2000874938 | F13: =F11^0.5 -> 0.1947508656 | G13: 0.2063047012 | H13: 0.2008022509 | I13: 0.2117395209 | J13: 0.2060921159 | K13: 0.2000874938 | L13: 0.1947508656 | P13: Min | Q13: =MIN(G13:G20011) -> 0.007213449419
P14: Max | Q14: =MAX(G13:G20011) -> 0.2063047012
E15: 0.03971659762 | F15: 0.03762625038 | G15: 0.03866050249 | H15: 0.0366257392 | I15: 0.04534653327 | J15: 0.04295987363 | K15: 0.03971659762 | L15: 0.03762625038 | P15: Increment | Q15: =(Q14-Q13)/(Q12-1) -> 0.006865215579
C16: Monte Carlo Scenarios | E16: 0.02888297858 | F16: 0.02736282181 | G16: 0.0284311305 | H16: 0.02693475521 | I16: 0.03097675395 | J16: 0.02934639848 | K16: 0.02888297858 | L16: 0.02736282181
E17: 0.04213694322 | F17: 0.03991920936 | G17: 0.04529367589 | H17: 0.04290979821 | I17: 0.04512364423 | J17: 0.04274871558 | K17: 0.04213694322 | L17: 0.03991920936 | R17: Number
E18: 0.02879768852 | F18: 0.02728202071 | G18: 0.02609801151 | H18: 0.02472443196 | I18: 0.03581321156 | J18: 0.03392830569 | K18: 0.02879768852 | L18: 0.02728202071 | P18: 1 | Q18: =Q13 -> 0.007213449419 | R18: =FREQUENCY(E15:E80015,Q18:Q47) -> 0
E19: 0.03478963912 | F19: 0.03295860548 | G19: 0.02862881186 | H19: 0.02712203229 | I19: 0.05152402473 | J19: 0.04881223395 | K19: 0.03478963912 | L19: 0.03295860548 | P19: 2 | Q19: =Q18+$Q$15 -> 0.014078665 | R19: 59
E20: 0.06638421603 | F20: 0.06289030992 | G20: 0.06071877467 | H20: 0.05752304969 | I20: 0.08695113746 | J20: 0.0823747618 | K20: 0.06638421603 | L20: 0.06289030992 | P20: 3 | Q20: =Q19+$Q$15 -> 0.02094388058 | R20: 444
E21: 0.03390220444 | F21: 0.03211787789 | G21: 0.03714705114 | H21: 0.03519194319 | I21: 0.03332892167 | J21: 0.0315747679 | K21: 0.03390220444 | L21: 0.03211787789 | P21: 4 | Q21: 0.02780909616 | R21: 1292
E22: 0.04557725792 | F22: 0.04317845487 | G22: 0.04446060205 | H22: 0.04212057036 | I22: 0.05262679256 | J22: 0.04985696137 | K22: 0.04557725792 | L22: 0.04317845487 | P22: 5 | Q22: 0.03467431173 | R22: 2004
E23: 0.03035852581 | F23: 0.02876070867 | G23: 0.02850985592 | H23: 0.02700933719 | I23: 0.03510312496 | J23: 0.03325559207 | K23: 0.03035852581 | L23: 0.02876070867 | P23: 6 | Q23: 0.04153952731 | R23: 2075
E24: 0.04575277509 | F24: 0.0433447343 | G24: 0.05062051666 | H24: 0.04795627894 | I24: 0.04942558199 | J24: 0.04682423557 | K24: 0.04575277509 | L24: 0.0433447343 | P24: 7 | Q24: 0.04840474289 | R24: 1690
E25: 0.03335025229 | F25: 0.03159497585 | G25: 0.04265859679 | H25: 0.04041340749 | I25: 0.0288374372 | J25: 0.02731967735 | K25: 0.03335025229 | L25: 0.03159497585 | P25: 8 | Q25: 0.05526995847 | R25: 1107
E26: 0.06166188922 | F26: 0.05841652663 | G26: 0.06967371282 | H26: 0.0660066753 | I26: 0.0752510843 | J26: 0.07129050091 | K26: 0.06166188922 | L26: 0.05841652663 | P26: 9 | Q26: 0.06213517405 | R26: 705
E27: 0.03288953194 | F27: 0.03115850394 | G27: 0.03053251387 | H27: 0.02892553946 | I27: 0.04220348176 | J27: 0.03998224588 | K27: 0.03288953194 | L27: 0.03115850394 | P27: 10 | Q27: 0.06900038963 | R27: 340
E28: 0.02019283897 | F28: 0.01913005797 | G28: 0.02131165045 | H28: 0.02018998464 | I28: 0.02066846562 | J28: 0.01958065164 | K28: 0.02019283897 | L28: 0.01913005797 | P28: 11 | Q28: 0.07586560521 | R28: 162
E29: 0.0617143187 | F29: 0.05846619666 | G29: 0.06761806462 | H29: 0.06405921912 | I29: 0.06517119304 | J29: 0.06174113024 | K29: 0.0617143187 | L29: 0.05846619666 | P29: 12 | Q29: 0.08273082079 | R29: 72
E30: 0.04278011397 | F30: 0.04052852902 | G30: 0.03346530602 | H30: 0.03170397412 | I30: 0.07116572914 | J30: 0.06742016445 | K30: 0.04278011397 | L30: 0.04052852902 | P30: 13 | Q30: 0.08959603637 | R30: 35
E31: 0.04654635634 | F31: 0.04409654811 | G31: 0.05160327818 | H31: 0.04888731617 | I31: 0.0460724296 | J31: 0.04364756489 | K31: 0.04654635634 | L31: 0.04409654811 | P31: 14 | Q31: 0.09646125194 | R31: 12
E32: 0.03442609777 | F32: 0.03261419788 | G32: 0.04286173965 | H32: 0.04060585862 | I32: 0.03043975977 | J32: 0.02883766715 | K32: 0.03442609777 | L32: 0.03261419788 | P32: 15 | Q32: 0.1033264675 | R32: 3
E33: 0.0530601207 | F33: 0.05026748277 | G33: 0.05725017332 | H33: 0.0542370063 | I33: 0.05443330418 | J33: 0.05156839343 | K33: 0.0530601207 | L33: 0.05026748277 | P33: 16 | Q33: 0.1101916831 | R33: 1
E34: 0.02967902787 | F34: 0.02811697377 | G34: 0.03118061987 | H34: 0.02953953462 | I34: 0.03051224302 | J34: 0.02890633549 | K34: 0.02967902787 | L34: 0.02811697377 | P34: 17 | Q34: 0.1170568987 | R34: 0
E35: 0.04826553574 | F35: 0.04572524438 | G35: 0.06795401764 | H35: 0.06437749039 | I35: 0.04069960011 | J35: 0.0385575159 | K35: 0.04826553574 | L35: 0.04572524438 | P35: 18 | Q35: 0.1239221143 | R35: 0
E36: 0.04665998128 | F36: 0.04420419279 | G36: 0.04125515711 | H36: 0.03908383305 | I36: 0.06395606736 | J36: 0.06058995855 | K36: 0.04665998128 | L36: 0.04420419279 | P36: 19 | Q36: 0.1307873298 | R36: 0
E37: 0.0627548947 | F37: 0.05945200551 | G37: 0.0703773925 | H37: 0.06667331921 | I37: 0.06941998311 | J37: 0.06576629979 | K37: 0.0627548947 | L37: 0.05945200551 | P37: 20 | Q37: 0.1376525454 | R37: 0
E38: 0.01586498079 | F38: 0.0150299818 | G38: 0.01550045186 | H38: 0.01468463861 | I38: 0.01703821416 | J38: 0.01614146604 | K38: 0.01586498079 | L38: 0.0150299818 | P38: 21 | Q38: 0.144517761 | R38: 0
E39: 0.03261205564 | F39: 0.03089563165 | G39: 0.03389111884 | H39: 0.03210737574 | I39: 0.03426247775 | J39: 0.03245918945 | K39: 0.03261205564 | L39: 0.03089563165 | P39: 22 | Q39: 0.1513829766 | R39: 0
E40: 0.04906976651 | F40: 0.04648714722 | G40: 0.05367899597 | H40: 0.05085378565 | I40: 0.05412656256 | J40: 0.05127779611 | K40: 0.04906976651 | L40: 0.04648714722 | P40: 23 | Q40: 0.1582481922 | R40: 0
E41: 0.04929248964 | F41: 0.04669814808 | G41: 0.05503153704 | H41: 0.05213514036 | I41: 0.04958333316 | J41: 0.04697368404 | K41: 0.04929248964 | L41: 0.04669814808 | P41: 24 | Q41: 0.1651134077 | R41: 0
E42: 0.03371076135 | F42: 0.03193651075 | G42: 0.04442985401 | H42: 0.04209144064 | I42: 0.02967552199 | J42: 0.02811365241 | K42: 0.03371076135 | L42: 0.03193651075 | P42: 25 | Q42: 0.1719786233 | R42: 0
E43: 0.03662866931 | F43: 0.03470084461 | G43: 0.04092607055 | H43: 0.03877206684 | I43: 0.03494313606 | J43: 0.03310402364 | K43: 0.03662866931 | L43: 0.03470084461 | P43: 26 | Q43: 0.1788438389 | R43: 0
E44: 0.02837456644 | F44: 0.02688116821 | G44: 0.03481358918 | H44: 0.03298129502 | I44: 0.02528130591 | J44: 0.02395071086 | K44: 0.02837456644 | L44: 0.02688116821 | P44: 27 | Q44: 0.1857090545 | R44: 0
E45: 0.03620438345 | F45: 0.03429888958 | G45: 0.03616172799 | H45: 0.03425847915 | I45: 0.04317620791 | J45: 0.04090377592 | K45: 0.03620438345 | L45: 0.03429888958 | P45: 28 | Q45: 0.1925742701 | R45: 0
E46: 0.04809717283 | F46: 0.04556574268 | G46: 0.0576997223 | H46: 0.05466289481 | I46: 0.04650279995 | J46: 0.04405528416 | K46: 0.04809717283 | L46: 0.04556574268 | P46: 29 | Q46: 0.1994394856 | R46: 0
E47: 0.04924899155 | F47: 0.04665693936 | G47: 0.04672963247 | H47: 0.04427017813 | I47: 0.05989125147 | J47: 0.05673908034 | K47: 0.04924899155 | L47: 0.04665693936 | P47: 30 | Q47: 0.2063047012 | R47: 0
E48: 0.03609524506 | F48: 0.03419549532 | G48: 0.03331830245 | H48: 0.03156470758 | I48: 0.04460685276 | J48: 0.04225912366 | K48: 0.03609524506 | L48: 0.03419549532
E49: 0.04700401792 | F49: 0.04453012224 | G49: 0.05598409206 | H49: 0.05303756089 | I49: 0.04664486007 | J49: 0.04418986743 | K49: 0.04700401792 | L49: 0.04453012224
E50: 0.02509398817 | F50: 0.02377325195 | G50: 0.02652821574 | H50: 0.02513199386 | I50: 0.02532616509 | J50: 0.02399320903 | K50: 0.02509398817 | L50: 0.02377325195
E51: 0.04198377765 | F51: 0.03977410515 | G51: 0.05087804321 | H51: 0.04820025146 | I51: 0.03777620261 | J51: 0.03578798142 | K51: 0.04198377765 | L51: 0.03977410515
E52: 0.04311983875 | F52: 0.04085037355 | G52: 0.04265432386 | H52: 0.04040935945 | I52: 0.04746440275 | J52: 0.04496627629 | K52: 0.04311983875 | L52: 0.04085037355
E53: 0.03555345531 | F53: 0.03368222082 | G53: 0.03219226478 | H53: 0.03049793505 | I53: 0.04594268451 | J53: 0.04352464848 | K53: 0.03555345531 | L53: 0.03368222082
E54: 0.0451444058 | F54: 0.04276838444 | G54: 0.05117897724 | H54: 0.04848534686 | I54: 0.04358146619 | J54: 0.04128770481 | K54: 0.0451444058 | L54: 0.04276838444
E55: 0.04420280513 | F55: 0.0418763417 | G55: 0.04866225322 | H55: 0.046101082 | I55: 0.04846129112 | J55: 0.04591069685 | K55: 0.04420280513 | L55: 0.0418763417
E56: 0.04056906988 | F56: 0.03843385568 | G56: 0.0521574949 | H56: 0.04941236359 | I56: 0.03628863813 | J56: 0.03437870981 | K56: 0.04056906988 | L56: 0.03843385568
E57: 0.03777956189 | F57: 0.0357911639 | G57: 0.02777404147 | H57: 0.02631224981 | I57: 0.06480656601 | J57: 0.06139569411 | K57: 0.03777956189 | L57: 0.0357911639
E58: 0.03100942807 | F58: 0.02937735291 | G58: 0.04331080585 | H58: 0.04103128975 | I58: 0.02619225887 | J58: 0.02481371893 | K58: 0.03100942807 | L58: 0.02937735291
E59: 0.0260730097 | F59: 0.02470074603 | G59: 0.03213185211 | H59: 0.03044070199 | I59: 0.02354243648 | J59: 0.02230336087 | K59: 0.0260730097 | L59: 0.02470074603
E60: 0.03929039153 | F60: 0.03722247618 | G60: 0.03627178041 | H60: 0.03436273934 | I60: 0.05098681163 | J60: 0.04830329523 | K60: 0.03929039153 | L60: 0.03722247618
E61: 0.02809301462 | F61: 0.02661443491 | G61: 0.0337795854 | H61: 0.03200171248 | I61: 0.0252160279 | J61: 0.02388886853 | K61: 0.02809301462 | L61: 0.02661443491
E62: 0.01979759871 | F62: 0.01875561983 | G62: 0.01906218359 | H62: 0.01805891077 | I62: 0.02159382753 | J62: 0.02045731029 | K62: 0.01979759871 | L62: 0.01875561983
E63: 0.05386821232 | F63: 0.05103304325 | G63: 0.05156669108 | H63: 0.04885265471 | I63: 0.07462693444 | J63: 0.07069920105 | K63: 0.05386821232 | L63: 0.05103304325
E64: 0.05733208092 | F64: 0.05431460298 | G64: 0.06198483848 | H64: 0.05872247856 | I64: 0.06637356345 | J64: 0.062880218 | K64: 0.05733208092 | L64: 0.05431460298
E65: 0.02961529372 | F65: 0.02805659405 | G65: 0.03319565113 | H65: 0.0314485116 | I65: 0.02869381152 | J65: 0.02718361091 | K65: 0.02961529372 | L65: 0.02805659405
E66: 0.05480869515 | F66: 0.05192402698 | G66: 0.06086067 | H66: 0.05765747684 | I66: 0.06314918822 | J66: 0.05982554673 | K66: 0.05480869515 | L66: 0.05192402698
E67: 0.06484292145 | F67: 0.06143013611 | G67: 0.06922217811 | H67: 0.06557890558 | I67: 0.07188556041 | J67: 0.06810210987 | K67: 0.06484292145 | L67: 0.06143013611
E68: 0.02847380887 | F68: 0.02697518735 | G68: 0.02925309487 | H68: 0.0277134583 | I68: 0.02970660714 | J68: 0.0281431015 | K68: 0.02847380887 | L68: 0.02697518735
E69: 0.02196932378 | F69: 0.02081304358 | G69: 0.02317023723 | H69: 0.02195075106 | I69: 0.02228549338 | J69: 0.02111257268 | K69: 0.02196932378 | L69: 0.02081304358
E70: 0.03558443682 | F70: 0.03371157173 | G70: 0.03409822985 | H70: 0.03230358617 | I70: 0.04111153441 | J70: 0.03894776944 | K70: 0.03558443682 | L70: 0.03371157173
E71: 0.03172840022 | F71: 0.03005848441 | G71: 0.03680999646 | H71: 0.03487262822 | I71: 0.03008134281 | J71: 0.02849811424 | K71: 0.03172840022 | L71: 0.03005848441
E72: 0.02736131511 | F72: 0.0259212459 | G72: 0.02487060294 | H72: 0.02356162384 | I72: 0.03263082972 | J72: 0.03091341763 | K72: 0.02736131511 | L72: 0.0259212459
E73: 0.02900426585 | F73: 0.02747772554 | G73: 0.02732783571 | H73: 0.02588952856 | I73: 0.034815776 | J73: 0.03298336674 | K73: 0.02900426585 | L73: 0.02747772554
E74: 0.02578708356 | F74: 0.02442986864 | G74: 0.02567856613 | H74: 0.02432706264 | I74: 0.02766461665 | J74: 0.02620858419 | K74: 0.02578708356 | L74: 0.02442986864
E75: 0.02580410734 | F75: 0.02444599643 | G75: 0.02973196482 | H75: 0.02816712457 | I75: 0.02378634528 | J75: 0.02253443237 | K75: 0.02580410734 | L75: 0.02444599643
E76: 0.02547286899 | F76: 0.02413219167 | G76: 0.0224004209 | H76: 0.02122145138 | I76: 0.03139498431 | J76: 0.02974261672 | K76: 0.02547286899 | L76: 0.02413219167
E77: 0.02396303023 | F77: 0.02270181812 | G77: 0.02349070036 | H77: 0.02225434771 | I77: 0.02638287876 | J77: 0.0249943062 | K77: 0.02396303023 | L77: 0.02270181812
E78: 0.01278318988 | F78: 0.01211039041 | G78: 0.01209455777 | H78: 0.0114580021 | I78: 0.01424713858 | J78: 0.01349728918 | K78: 0.01278318988 | L78: 0.01211039041
E79: 0.02826526348 | F79: 0.02677761803 | G79: 0.02796011672 | H79: 0.02648853163 | I79: 0.03022666089 | J79: 0.028635784 | K79: 0.02826526348 | L79: 0.02677761803
E80: 0.04677867023 | F80: 0.04431663495 | G80: 0.04210080502 | H80: 0.03988497318 | I80: 0.06286261857 | J80: 0.0595540597 | K80: 0.04677867023 | L80: 0.04431663495
E81: 0.04683893116 | F81: 0.04437372426 | G81: 0.04453701414 | H81: 0.04219296076 | I81: 0.0578725921 | J81: 0.0548266662 | K81: 0.04683893116 | L81: 0.04437372426
E82: 0.04117594326 | F82: 0.03900878836 | G82: 0.06583514829 | H82: 0.06237014049 | I82: 0.03093561267 | J82: 0.02930742253 | K82: 0.04117594326 | L82: 0.03900878836
E83: 0.03001206562 | F83: 0.02843248322 | G83: 0.03076266981 | H83: 0.02914358192 | I83: 0.03202548892 | J83: 0.03033993687 | K83: 0.03001206562 | L83: 0.02843248322
E84: 0.04202849996 | F84: 0.03981647365 | G84: 0.05616356894 | H84: 0.05320759163 | I84: 0.03632270116 | J84: 0.03441098005 | K84: 0.04202849996 | L84: 0.03981647365
E85: 0.05531392807 | F85: 0.0524026687 | G85: 0.05041944401 | H85: 0.04776578907 | I85: 0.07393450501 | J85: 0.07004321528 | K85: 0.05531392807 | L85: 0.0524026687
E86: 0.02110395891 | F86: 0.01999322423 | G86: 0.01884736517 | H86: 0.01785539858 | I86: 0.02517179257 | J86: 0.02384696138 | K86: 0.02110395891 | L86: 0.01999322423
E87: 0.03358180766 | F87: 0.0318143441 | G87: 0.03626248905 | H87: 0.03435393699 | I87: 0.03332645841 | J87: 0.03157243428 | K87: 0.03358180766 | L87: 0.0318143441
E88: 0.04756467614 | F88: 0.04506127213 | G88: 0.05043655345 | H88: 0.04778199801 | I88: 0.05605024073 | J88: 0.05310022806 | K88: 0.04756467614 | L88: 0.04506127213
E89: 0.04978404036 | F89: 0.04716382771 | G89: 0.05349340491 | H89: 0.05067796255 | I89: 0.05178272652 | J89: 0.04905731986 | K89: 0.04978404036 | L89: 0.04716382771
E90: 0.03900449536 | F90: 0.03695162718 | G90: 0.03659914706 | H90: 0.03467287616 | I90: 0.04566981573 | J90: 0.04326614122 | K90: 0.03900449536 | L90: 0.03695162718
E91: 0.05867674735 | F91: 0.05558849749 | G91: 0.08612152439 | H91: 0.08158881258 | I91: 0.04620784774 | J91: 0.04377585575 | K91: 0.05867674735 | L91: 0.05558849749
E92: 0.04996672334 | F92: 0.0473368958 | G92: 0.05008036357 | H92: 0.04744455496 | I92: 0.05761663452 | J92: 0.05458418007 | K92: 0.04996672334 | L92: 0.0473368958
E93: 0.01627088453 | F93: 0.01541452219 | G93: 0.0153011611 | H93: 0.01449583684 | I93: 0.01831326793 | J93: 0.01734941172 | K93: 0.01627088453 | L93: 0.01541452219
E94: 0.03644481519 | F94: 0.03452666702 | G94: 0.03669073542 | H94: 0.03475964408 | I94: 0.03965676915 | J94: 0.03756957077 | K94: 0.03644481519 | L94: 0.03452666702
E95: 0.02760973645 | F95: 0.02615659243 | G95: 0.03023983797 | H95: 0.02864826755 | I95: 0.02689844552 | J95: 0.02548273786 | K95: 0.02760973645 | L95: 0.02615659243
E96: 0.02779337539 | F96: 0.02633056616 | G96: 0.02831676911 | H96: 0.02682641284 | I96: 0.02904273787 | J96: 0.02751417272 | K96: 0.02779337539 | L96: 0.02633056616
E97: 0.03635062534 | F97: 0.03443743453 | G97: 0.02988616829 | H97: 0.02831321206 | I97: 0.04946569505 | J97: 0.04686223741 | K97: 0.03635062534 | L97: 0.03443743453
E98: 0.04034318309 | F98: 0.03821985767 | G98: 0.0379533871 | H98: 0.03595584041 | I98: 0.04658681638 | J98: 0.04413487868 | K98: 0.04034318309 | L98: 0.03821985767
E99: 0.04230936415 | F99: 0.04008255551 | G99: 0.04740481336 | H99: 0.04490982318 | I99: 0.04347332093 | J99: 0.04118525141 | K99: 0.04230936415 | L99: 0.04008255551
E100: 0.03783766563 | F100: 0.03584620954 | G100: 0.04353762579 | H100: 0.0412461718 | I100: 0.03706058347 | J100: 0.03511002644 | K100: 0.03783766563 | L100: 0.03584620954
E101: 0.01915714433 | F101: 0.01814887357 | G101: 0.01656399244 | H101: 0.01569220337 | I101: 0.02394839677 | J101: 0.02268795483 | K101: 0.01915714433 | L101: 0.01814887357
E102: 0.02718697437 | F102: 0.02575608098 | G102: 0.02762126951 | H102: 0.02616751848 | I102: 0.03114897256 | J102: 0.02950955295 | K102: 0.02718697437 | L102: 0.02575608098
E103: 0.03402506176 | F103: 0.03223426904 | G103: 0.04061296034 | H103: 0.03847543611 | I103: 0.03118197725 | J103: 0.02954082055 | K103: 0.03402506176 | L103: 0.03223426904
E104: 0.03439780664 | F104: 0.03258739577 | G104: 0.03009757361 | H104: 0.02851349079 | I104: 0.04298931516 | J104: 0.04072671962 | K104: 0.03439780664 | L104: 0.03258739577
E105: 0.03631795756 | F105: 0.03440648611 | G105: 0.03219142689 | H105: 0.03049714126 | I105: 0.04620302499 | J105: 0.04377128684 | K105: 0.03631795756 | L105: 0.03440648611
E106: 0.06400395642 | F106: 0.06063532713 | G106: 0.06241543069 | H106: 0.05913040802 | I106: 0.07609470098 | J106: 0.07208971672 | K106: 0.06400395642 | L106: 0.06063532713
E107: 0.02262850196 | F107: 0.02143752817 | G107: 0.02684048283 | H107: 0.02542782584 | I107: 0.02079319308 | J107: 0.0196988145 | K107: 0.02262850196 | L107: 0.02143752817
E108: 0.03096647437 | F108: 0.02933665992 | G108: 0.03280446786 | H108: 0.03107791692 | I108: 0.03136739107 | J108: 0.02971647575 | K108: 0.03096647437 | L108: 0.02933665992
E109: 0.04258573836 | F109: 0.04034438371 | G109: 0.04276947825 | H109: 0.04051845308 | I109: 0.04647772044 | J109: 0.04403152462 | K109: 0.04258573836 | L109: 0.04034438371
E110: 0.04527288704 | F110: 0.04289010351 | G110: 0.04279320325 | H110: 0.04054092939 | I110: 0.05730161297 | J110: 0.0542857386 | K110: 0.04527288704 | L110: 0.04289010351
E111: 0.03453518672 | F111: 0.03271754531 | G111: 0.03223906223 | H111: 0.03054226949 | I111: 0.0421784048 | J111: 0.03995848876 | K111: 0.03453518672 | L111: 0.03271754531
E112: 0.05127049098 | F112: 0.04857204408 | G112: 0.05943165872 | H112: 0.05630367668 | I112: 0.05379269891 | J112: 0.05096150423 | K112: 0.05127049098 | L112: 0.04857204408
E113: 0.02903051112 | F113: 0.02750258948 | G113: 0.03080427707 | H113: 0.02918299933 | I113: 0.03000689932 | J113: 0.02842758883 | K113: 0.02903051112 | L113: 0.02750258948
E114: 0.0513065857 | F114: 0.04860623908 | G114: 0.08627512025 | H114: 0.08173432445 | I114: 0.03963973218 | J114: 0.03755343049 | K114: 0.0513065857 | L114: 0.04860623908
E115: 0.03422994766 | F115: 0.03242837147 | G115: 0.04167693795 | H115: 0.0394834149 | I115: 0.03182971426 | J115: 0.03015446615 | K115: 0.03422994766 | L115: 0.03242837147
E116: 0.05780209411 | F116: 0.05475987863 | G116: 0.04998406199 | H116: 0.04735332188 | I116: 0.1053940396 | J116: 0.09984698489 | K116: 0.05780209411 | L116: 0.05475987863
E117: 0.05819562609 | F117: 0.0551326984 | G117: 0.05365859318 | H117: 0.0508344567 | I117: 0.08322830177 | J117: 0.07884786483 | K117: 0.05819562609 | L117: 0.0551326984
E118: 0.04024952335 | F118: 0.03813112738 | G118: 0.03224459209 | H118: 0.0305475083 | I118: 0.05668514751 | J118: 0.05370171869 | K118: 0.04024952335 | L118: 0.03813112738
E119: 0.03217178701 | F119: 0.03047853506 | G119: 0.02718085832 | H119: 0.02575028683 | I119: 0.04284443241 | J119: 0.04058946228 | K119: 0.03217178701 | L119: 0.03047853506
E120: 0.04340837121 | F120: 0.0411237201 | G120: 0.03746505425 | H120: 0.03549320929 | I120: 0.05911537103 | J120: 0.05600403571 | K120: 0.04340837121 | L120: 0.0411237201
E121: 0.02985430266 | F121: 0.02828302357 | G121: 0.03312682281 | H121: 0.03138330582 | I121: 0.02885596902 | J121: 0.02733723381 | K121: 0.02985430266 | L121: 0.02828302357
E122: 0.04361388004 | F122: 0.04131841267 | G122: 0.05270073477 | H122: 0.04992701189 | I122: 0.04200445514 | J122: 0.03979369434 | K122: 0.04361388004 | L122: 0.04131841267
E123: 0.04853549844 | F123: 0.04598099852 | G123: 0.04092675519 | H123: 0.03877271544 | I123: 0.06922323398 | J123: 0.06557990588 | K123: 0.04853549844 | L123: 0.04598099852
E124: 0.03861972962 | F124: 0.03658711227 | G124: 0.04208733105 | H124: 0.03987220836 | I124: 0.04169048451 | J124: 0.03949624848 | K124: 0.03861972962 | L124: 0.03658711227
E125: 0.03810951465 | F125: 0.03610375072 | G125: 0.04258934637 | H125: 0.04034780182 | I125: 0.03812668103 | J125: 0.0361200136 | K125: 0.03810951465 | L125: 0.03610375072
E126: 0.0520565039 | F126: 0.0493166879 | G126: 0.05664270071 | H126: 0.05366150594 | I126: 0.05595598344 | J126: 0.05301093168 | K126: 0.0520565039 | L126: 0.0493166879
E127: 0.06987201205 | F127: 0.06619453773 | G127: 0.06965747153 | H127: 0.06599128882 | I127: 0.08503206634 | J127: 0.08055669443 | K127: 0.06987201205 | L127: 0.06619453773
E128: 0.02727706202 | F128: 0.02584142718 | G128: 0.03354751785 | H128: 0.03178185901 | I128: 0.0237544305 | J128: 0.02250419731 | K128: 0.02727706202 | L128: 0.02584142718
E129: 0.04634595951 | F129: 0.04390669848 | G129: 0.04577554916 | H129: 0.04336630973 | I129: 0.05399618978 | J129: 0.05115428506 | K129: 0.04634595951 | L129: 0.04390669848
E130: 0.06653375734 | F130: 0.06303198063 | G130: 0.06557705148 | H130: 0.06212562772 | I130: 0.09026399872 | J130: 0.08551326194 | K130: 0.06653375734 | L130: 0.06303198063
E131: 0.03922838092 | F131: 0.03716372929 | G131: 0.03474290223 | H131: 0.03291432842 | I131: 0.05810479292 | J131: 0.05504664593 | K131: 0.03922838092 | L131: 0.03716372929
E132: 0.02174635946 | F132: 0.02060181423 | G132: 0.02329407256 | H132: 0.02206806874 | I132: 0.02137411517 | J132: 0.02024916174 | K132: 0.02174635946 | L132: 0.02060181423
E133: 0.03415143958 | F133: 0.03235399539 | G133: 0.03780370164 | H133: 0.03581403314 | I133: 0.03405347563 | J133: 0.03226118744 | K133: 0.03415143958 | L133: 0.03235399539
E134: 0.04453580734 | F134: 0.04219181748 | G134: 0.04904416992 | H134: 0.04646289782 | I134: 0.04598474491 | J134: 0.04356449518 | K134: 0.04453580734 | L134: 0.04219181748
E135: 0.03351914546 | F135: 0.03175497991 | G135: 0.03634143246 | H135: 0.03442872549 | I135: 0.03365605082 | J135: 0.03188467972 | K135: 0.03351914546 | L135: 0.03175497991
E136: 0.0505853366 | F136: 0.04792295047 | G136: 0.06637996938 | H136: 0.06288628678 | I136: 0.04698843473 | J136: 0.04451535922 | K136: 0.0505853366 | L136: 0.04792295047
E137: 0.03478578959 | F137: 0.03295495856 | G137: 0.04327881266 | H137: 0.04100098041 | I137: 0.03112556107 | J137: 0.02948737365 | K137: 0.03478578959 | L137: 0.03295495856
E138: 0.04139018438 | F138: 0.03921175362 | G138: 0.03838374766 | H138: 0.03636355042 | I138: 0.05358855694 | J138: 0.05076810657 | K138: 0.04139018438 | L138: 0.03921175362
E139: 0.026988901 | F139: 0.02556843252 | G139: 0.02828560614 | H139: 0.02679689003 | I139: 0.02759414423 | J139: 0.02614182085 | K139: 0.026988901 | L139: 0.02556843252
E140: 0.06943687327 | F140: 0.065782301 | G140: 0.06553797127 | H140: 0.06208860436 | I140: 0.0953355125 | J140: 0.09031785395 | K140: 0.06943687327 | L140: 0.065782301
E141: 0.03188211413 | F141: 0.03020410813 | G141: 0.03713098649 | H141: 0.03517672405 | I141: 0.0321678627 | J141: 0.03047481729 | K141: 0.03188211413 | L141: 0.03020410813
E142: 0.03829088146 | F142: 0.03627557191 | G142: 0.04170564508 | H142: 0.03951061113 | I142: 0.03898061479 | J142: 0.03692900349 | K142: 0.03829088146 | L142: 0.03627557191
E143: 0.02298647624 | F143: 0.0217766617 | G143: 0.02454259551 | H143: 0.02325087996 | I143: 0.02299205933 | J143: 0.02178195095 | K143: 0.02298647624 | L143: 0.0217766617
E144: 0.02984762767 | F144: 0.0282766999 | G144: 0.03192396577 | H144: 0.03024375705 | I144: 0.03022175711 | J144: 0.02863113832 | K144: 0.02984762767 | L144: 0.0282766999
E145: 0.03533170167 | F145: 0.03347213842 | G145: 0.0370074423 | H145: 0.03505968218 | I145: 0.03783671929 | J145: 0.03584531301 | K145: 0.03533170167 | L145: 0.03347213842
E146: 0.03754391357 | F146: 0.03556791812 | G146: 0.03722209623 | H146: 0.03526303853 | I146: 0.04196047031 | J146: 0.0397520245 | K146: 0.03754391357 | L146: 0.03556791812
E147: 0.04815513214 | F147: 0.0456206515 | G147: 0.04735386675 | H147: 0.04486155798 | I147: 0.05665072933 | J147: 0.05366911199 | K147: 0.04815513214 | L147: 0.0456206515
E148: 0.05429984854 | F148: 0.05144196178 | G148: 0.06462488841 | H148: 0.06122357849 | I148: 0.05292397224 | J148: 0.05013850002 | K148: 0.05429984854 | L148: 0.05144196178
E149: 0.04252846783 | F149: 0.04029012742 | G149: 0.04332836172 | H149: 0.04104792163 | I149: 0.04867800133 | J149: 0.04611600126 | K149: 0.04252846783 | L149: 0.04029012742
E150: 0.02633297737 | F150: 0.02494703119 | G150: 0.0298316658 | H150: 0.02826157813 | I150: 0.02500423675 | J150: 0.02368822429 | K150: 0.02633297737 | L150: 0.02494703119
E151: 0.01992657271 | F151: 0.01887780573 | G151: 0.02279018456 | H151: 0.02159070116 | I151: 0.01896402108 | J151: 0.01796591471 | K151: 0.01992657271 | L151: 0.01887780573
E152: 0.05166057399 | F152: 0.04894159642 | G152: 0.0586355844 | H152: 0.05554950101 | I152: 0.05330940002 | J152: 0.05050364213 | K152: 0.05166057399 | L152: 0.04894159642
E153: 0.04588185496 | F153: 0.04346702049 | G153: 0.04025241641 | H153: 0.03813386818 | I153: 0.06951481112 | J153: 0.06585613685 | K153: 0.04588185496 | L153: 0.04346702049
E154: 0.03616756315 | F154: 0.0342640072 | G154: 0.03249988872 | H154: 0.03078936826 | I154: 0.04463540741 | J154: 0.04228617544 | K154: 0.03616756315 | L154: 0.0342640072
E155: 0.04845684356 | F155: 0.04590648337 | G155: 0.05405111689 | H155: 0.05120632126 | I155: 0.04910232181 | J155: 0.04651798909 | K155: 0.04845684356 | L155: 0.04590648337
E156: 0.03533122053 | F156: 0.03347168261 | G156: 0.04074809965 | H156: 0.03860346283 | I156: 0.03422608414 | J156: 0.03242471129 | K156: 0.03533122053 | L156: 0.03347168261
E157: 0.03162211447 | F157: 0.02995779265 | G157: 0.03111613199 | H157: 0.02947844084 | I157: 0.03497150301 | J157: 0.03313089759 | K157: 0.03162211447 | L157: 0.02995779265
E158: 0.05551717856 | F158: 0.05259522179 | G158: 0.05996469569 | H158: 0.05680865907 | I158: 0.06463477835 | J158: 0.06123294791 | K158: 0.05551717856 | L158: 0.05259522179
E159: 0.03886397872 | F159: 0.03681850615 | G159: 0.03603620671 | H159: 0.03413956425 | I159: 0.04726659718 | J159: 0.04477888154 | K159: 0.03886397872 | L159: 0.03681850615
E160: 0.04328209167 | F160: 0.04100408684 | G160: 0.04440449853 | H160: 0.04206741966 | I160: 0.04758278622 | J160: 0.04507842905 | K160: 0.04328209167 | L160: 0.04100408684
E161: 0.05989117397 | F161: 0.05673900692 | G161: 0.05268485952 | H161: 0.04991197217 | I161: 0.1084524326 | J161: 0.1027444098 | K161: 0.05989117397 | L161: 0.05673900692
E162: 0.03921420355 | F162: 0.0371502981 | G162: 0.03592859922 | H162: 0.03403762031 | I162: 0.05033754483 | J162: 0.04768820037 | K162: 0.03921420355 | L162: 0.0371502981
E163: 0.03570711189 | F163: 0.03382779021 | G163: 0.03368271917 | H163: 0.03190994448 | I163: 0.04204633369 | J163: 0.03983336876 | K163: 0.03570711189 | L163: 0.03382779021
E164: 0.05349595914 | F164: 0.05068038234 | G164: 0.05022481537 | H164: 0.04758140404 | I164: 0.070207864 | J164: 0.06651271326 | K164: 0.05349595914 | L164: 0.05068038234
E165: 0.03907314587 | F165: 0.03701666451 | G165: 0.03592964844 | H165: 0.03403861432 | I165: 0.050814932 | J165: 0.04814046189 | K165: 0.03907314587 | L165: 0.03701666451
E166: 0.04524144723 | F166: 0.04286031843 | G166: 0.04219934048 | H166: 0.03997832256 | I166: 0.05436702079 | J166: 0.05150559865 | K166: 0.04524144723 | L166: 0.04286031843
E167: 0.03207020041 | F167: 0.03038229512 | G167: 0.04312841458 | H167: 0.04085849802 | I167: 0.02794377274 | J167: 0.02647304786 | K167: 0.03207020041 | L167: 0.03038229512
E168: 0.03578257594 | F168: 0.03389928246 | G168: 0.03760304415 | H168: 0.03562393656 | I168: 0.04019314232 | J168: 0.03807771378 | K168: 0.03578257594 | L168: 0.03389928246
E169: 0.02696477802 | F169: 0.02554557918 | G169: 0.02875301582 | H169: 0.0272396992 | I169: 0.02838971899 | J169: 0.02689552325 | K169: 0.02696477802 | L169: 0.02554557918
E170: 0.04565716535 | F170: 0.04325415665 | G170: 0.03264429695 | H170: 0.03092617606 | I170: 0.078743436 | J170: 0.07459904463 | K170: 0.04565716535 | L170: 0.04325415665
E171: 0.03920445616 | F171: 0.03714106373 | G171: 0.05440513455 | H171: 0.05154170642 | I171: 0.03172499892 | J171: 0.03005526214 | K171: 0.03920445616 | L171: 0.03714106373
E172: 0.04020531443 | F172: 0.03808924525 | G172: 0.03632388171 | H172: 0.03441209846 | I172: 0.05642305567 | J172: 0.05345342116 | K172: 0.04020531443 | L172: 0.03808924525
E173: 0.04541589118 | F173: 0.04302558112 | G173: 0.06334008138 | H173: 0.06000639289 | I173: 0.03909979452 | J173: 0.0370419106 | K173: 0.04541589118 | L173: 0.04302558112
E174: 0.0263675213 | F174: 0.02497975702 | G174: 0.02882289997 | H174: 0.02730590523 | I174: 0.02632601137 | J174: 0.02494043182 | K174: 0.0263675213 | L174: 0.02497975702
E175: 0.04034308816 | F175: 0.03821976773 | G175: 0.03681738144 | H175: 0.03487962452 | I175: 0.05204153797 | J175: 0.04930250965 | K175: 0.04034308816 | L175: 0.03821976773
E176: 0.02775952838 | F176: 0.02629850057 | G176: 0.0293266623 | H176: 0.02778315376 | I176: 0.02807855362 | J176: 0.02660073501 | K176: 0.02775952838 | L176: 0.02629850057
E177: 0.06293035665 | F177: 0.05961823261 | G177: 0.06667062843 | H177: 0.06316164799 | I177: 0.0743170942 | J177: 0.07040566818 | K177: 0.06293035665 | L177: 0.05961823261
E178: 0.02157453875 | F178: 0.02043903671 | G178: 0.01986490208 | H178: 0.01881938092 | I178: 0.02716986443 | J178: 0.02573987157 | K178: 0.02157453875 | L178: 0.02043903671
E179: 0.04627056001 | F179: 0.04383526738 | G179: 0.05533540047 | H179: 0.05242301097 | I179: 0.04363904032 | J179: 0.04134224872 | K179: 0.04627056001 | L179: 0.04383526738
E180: 0.02984409543 | F180: 0.02827335357 | G180: 0.02449727526 | H180: 0.02320794499 | I180: 0.04365508142 | J180: 0.04135744556 | K180: 0.02984409543 | L180: 0.02827335357
E181: 0.05143849402 | F181: 0.04873120486 | G181: 0.07459644658 | H181: 0.07067031781 | I181: 0.04129790813 | J181: 0.03912433401 | K181: 0.05143849402 | L181: 0.04873120486
E182: 0.04551067821 | F182: 0.04311537935 | G182: 0.04872359778 | H182: 0.0461591979 | I182: 0.05000084312 | J182: 0.04736921979 | K182: 0.04551067821 | L182: 0.04311537935
E183: 0.04205511214 | F183: 0.03984168518 | G183: 0.03947975625 | H183: 0.03740187434 | I183: 0.05335408545 | J183: 0.05054597569 | K183: 0.04205511214 | L183: 0.03984168518
E184: 0.03934958509 | F184: 0.0372785543 | G184: 0.04529918106 | H184: 0.04291501364 | I184: 0.03697207336 | J184: 0.03502617476 | K184: 0.03934958509 | L184: 0.0372785543
E185: 0.02666074611 | F185: 0.02525754895 | G185: 0.03558059208 | H185: 0.03370792933 | I185: 0.02198288308 | J185: 0.02082588923 | K185: 0.02666074611 | L185: 0.02525754895
E186: 0.03525651767 | F186: 0.03340091148 | G186: 0.03433323211 | H186: 0.0325262199 | I186: 0.04234967864 | J186: 0.04012074819 | K186: 0.03525651767 | L186: 0.03340091148
E187: 0.06478213967 | F187: 0.06137255337 | G187: 0.06137109143 | H187: 0.05814103399 | I187: 0.0816308209 | J187: 0.0773344619 | K187: 0.06478213967 | L187: 0.06137255337
E188: 0.03578969983 | F188: 0.03390603142 | G188: 0.04155034977 | H188: 0.03936348925 | I188: 0.03503309118 | J188: 0.03318924428 | K188: 0.03578969983 | L188: 0.03390603142
E189: 0.03153469612 | F189: 0.02987497527 | G189: 0.04271896745 | H189: 0.04047060074 | I189: 0.025480826 | J189: 0.02413972989 | K189: 0.03153469612 | L189: 0.02987497527
E190: 0.04377920573 | F190: 0.041475037 | G190: 0.03686146209 | H190: 0.03492138513 | I190: 0.06540809028 | J190: 0.06196555921 | K190: 0.04377920573 | L190: 0.041475037
E191: 0.06184866134 | F191: 0.05859346864 | G191: 0.06467411811 | H191: 0.06127021716 | I191: 0.0719685509 | J191: 0.06818073243 | K191: 0.06184866134 | L191: 0.05859346864
E192: 0.03799701907 | F192: 0.03599717596 | G192: 0.04901592747 | H192: 0.04643614181 | I192: 0.0340317379 | J192: 0.0322405938 | K192: 0.03799701907 | L192: 0.03599717596
E193: 0.02924387465 | F193: 0.02770472335 | G193: 0.03576157292 | H193: 0.03387938487 | I193: 0.02691063255 | J193: 0.02549428346 | K193: 0.02924387465 | L193: 0.02770472335
E194: 0.06418725499 | F194: 0.06080897841 | G194: 0.0773936638 | H194: 0.07332031307 | I194: 0.06763928538 | J194: 0.06407932299 | K194: 0.06418725499 | L194: 0.06080897841
E195: 0.04656337146 | F195: 0.0441126677 | G195: 0.05061745766 | H195: 0.04795338094 | I195: 0.04811197789 | J195: 0.04557976852 | K195: 0.04656337146 | L195: 0.0441126677
E196: 0.02567317195 | F196: 0.02432195237 | G196: 0.02580936385 | H196: 0.02445097628 | I196: 0.02969709748 | J196: 0.02813409235 | K196: 0.02567317195 | L196: 0.02432195237
E197: 0.01981420519 | F197: 0.01877135229 | G197: 0.01661444247 | H197: 0.01573999813 | I197: 0.02514296223 | J197: 0.02381964843 | K197: 0.01981420519 | L197: 0.01877135229
E198: 0.05779919023 | F198: 0.05475712759 | G198: 0.06758395452 | H198: 0.06402690428 | I198: 0.06065082199 | J198: 0.05745867346 | K198: 0.05779919023 | L198: 0.05475712759
E199: 0.03050480619 | F199: 0.02889929008 | G199: 0.02788167772 | H199: 0.02641422099 | I199: 0.03650656338 | J199: 0.03458516531 | K199: 0.03050480619 | L199: 0.02889929008
E200: 0.04537542926 | F200: 0.04298724877 | G200: 0.03539441965 | H200: 0.03353155546 | I200: 0.06660543478 | J200: 0.06309988558 | K200: 0.04537542926 | L200: 0.04298724877
E201: 0.04174518087 | F201: 0.03954806608 | G201: 0.04391747143 | H201: 0.04160602557 | I201: 0.04451736901 | J201: 0.04217434959 | K201: 0.04174518087 | L201: 0.03954806608
E202: 0.0488674142 | F202: 0.04629544503 | G202: 0.0589189904 | H202: 0.0558179909 | I202: 0.04459943256 | J202: 0.04225209401 | K202: 0.0488674142 | L202: 0.04629544503
... 4298 more rows

Sheet Normal Distn of Return
C3: Annual Volatility (Stdev of Return, Stdev of Growth) | D3: 0.1 | F3: price change = ln(Pt/Pt-1)
C4: Standard Deviation of Returns | D4: =D3 -> 0.1 | F4: Vol = Stdev (price change)
C5: Expected Return | D5: 0
E6: Returns | F6: Normal | G6: Cumulative
D7: Std Deviations | F7: Probability | G7: Normal
C8: Range - 4 Standard Deviation | D8: -4 | E8: =$D$5+D8*$D$4 -> -0.4 | F8: =G8 -> 3.167124183e-05 | G8: =_xlfn.NORM.DIST(E8,$D$5,$D$4,1) -> 3.167124183e-05
D9: -3.75 | E9: =$D$5+D9*$D$4 -> -0.375 | F9: =G9-G8 -> 5.674604337e-05 | G9: =_xlfn.NORM.DIST(E9,$D$5,$D$4,1) -> 8.84172852e-05
D10: -3.5 | E10: -0.35 | F10: 0.0001442117938 | G10: 0.000232629079
D11: -3.25 | E11: -0.325 | F11: 0.0003443959634 | G11: 0.0005770250424
D12: -3 | E12: -0.3 | F12: 0.0007728729892 | G12: 0.001349898032
D13: -2.75 | E13: -0.275 | F13: 0.001629865203 | G13: 0.002979763235
D14: -2.5 | E14: -0.25 | F14: 0.003229902091 | G14: 0.006209665326
D15: -2.25 | E15: -0.225 | F15: 0.006014807329 | G15: 0.01222447266
D16: -2 | E16: -0.2 | F16: 0.01052565929 | G16: 0.02275013195
D17: -1.75 | E17: -0.175 | F17: 0.01730902492 | G17: 0.04005915686
D18: -1.5 | E18: -0.15 | F18: 0.02674804441 | G18: 0.06680720127
D19: -1.25 | E19: -0.125 | F19: 0.0388425724 | G19: 0.1056497737
D20: -1 | E20: -0.1 | F20: 0.05300548026 | G20: 0.1586552539
D21: -0.75 | E21: -0.075 | F21: 0.06797209845 | G21: 0.2266273524
D22: -0.5 | E22: -0.05 | F22: 0.08191018635 | G22: 0.3085375387
D23: -0.25 | E23: -0.025 | F23: 0.09275613559 | G23: 0.4012936743
D24: 0 | E24: 0 | F24: 0.09870632568 | G24: 0.5
D25: 0.25 | E25: 0.025 | F25: 0.09870632568 | G25: 0.5987063257
D26: 0.5 | E26: 0.05 | F26: 0.09275613559 | G26: 0.6914624613
D27: 0.75 | E27: 0.075 | F27: 0.08191018635 | G27: 0.7733726476
D28: 1 | E28: 0.1 | F28: 0.06797209845 | G28: 0.8413447461 | H28: =G28-G20 -> 0.6826894921
D29: 1.25 | E29: 0.125 | F29: 0.05300548026 | G29: 0.8943502263
D30: 1.5 | E30: 0.15 | F30: 0.0388425724 | G30: 0.9331927987
D31: 1.75 | E31: 0.175 | F31: 0.02674804441 | G31: 0.9599408431
D32: 2 | E32: 0.2 | F32: 0.01730902492 | G32: 0.9772498681
D33: 2.25 | E33: 0.225 | F33: 0.01052565929 | G33: 0.9877755273
D34: 2.5 | E34: 0.25 | F34: 0.006014807329 | G34: 0.9937903347
D35: 2.75 | E35: 0.275 | F35: 0.003229902091 | G35: 0.9970202368
D36: 3 | E36: 0.3 | F36: 0.001629865203 | G36: 0.998650102
D37: 3.25 | E37: 0.325 | F37: 0.0007728729892 | G37: 0.999422975
D38: 3.5 | E38: 0.35 | F38: 0.0003443959634 | G38: 0.9997673709
D39: 3.75 | E39: 0.375 | F39: 0.0001442117938 | G39: 0.9999115827
D40: 4 | E40: 0.4 | F40: 5.674604337e-05 | G40: 0.9999683288

Sheet No MR Variance with Time
C1: Simulations1 | E1: 10000 | M1: Non Mean Reverting Series
M2: Variance increases directly in proportion to time
C3: Row Start1 | E3: 17 | M3: Volatility increases with Square Root of Time
M4: Annual Vol = Period Vol * Sqrt(periods in year)
C6: Time Period | E6: 1 | F6: 2 | G6: 3 | H6: 4 | I6: 5 | J6: 6 | K6: 7 | L6: 8 | M6: 9 | N6: 10 | O6: 11 | P6: 12 | Q6: 13 | R6: 14 | S6: 15 | T6: 16 | U6: 17 | V6: 18
C7: Median of Growth ^ 2 (Variance) | E7: =MEDIAN(E18:E1000016) -> 0.01861139873 | F7: =MEDIAN(F18:F1000016) -> 0.02853634399 | G7: 0.03645773226 | H7: 0.04210730608 | I7: 0.04494622889 | J7: 0.04631351555 | K7: 0.04942354707 | L7: 0.04927414241 | M7: 0.05049376609 | N7: 0.04993751102 | O7: 0.05202095428 | P7: 0.05073647282 | Q7: 0.05229942793 | R7: 0.04999671292 | S7: 0.05038688251 | T7: 0.05088020536 | U7: 0.05052559637 | AQ7: Average | AR7: =AVERAGE(E14:E16) -> 
C8: Square Root of Growth - Std Dev | E8: =E7^0.5 -> 0.1364236004 | F8: 0.1689270375 | G8: 0.19093908 | H8: 0.2052006484 | I8: 0.2120052567 | J8: 0.2152057517 | K8: 0.222314073 | L8: 0.2219777971 | M8: 0.2247081798 | N8: 0.2234670245 | O8: 0.2280810257 | P8: 0.2252475812 | Q8: 0.2286906818 | R8: 0.2235994475 | S8: 0.2244702263 | T8: 0.2255664101 | U8: 0.2247789945
C9: Time Period ^ .5 | F9: =F6^0.5 -> 1.414213562 | G9: 1.732050808 | H9: 2 | I9: 2.236067977 | J9: 2.449489743 | K9: 2.645751311 | L9: 2.828427125 | M9: 3 | N9: 3.16227766 | O9: 3.31662479 | P9: 3.464101615 | Q9: 3.605551275 | R9: 3.741657387 | S9: 3.872983346 | T9: 4 | U9: 4.123105626 | V9: 4.242640687
C10: Square Root Relative to First | F10: =F8/$E$8 -> 1.23825377 | G10: 1.399604463 | H10: 1.504143329 | I10: 1.554021857 | J10: 1.577481837 | K10: 1.629586615 | L10: 1.627121675 | M10: 1.647135681 | N10: 1.638037875 | O10: 1.671859012 | P10: 1.651089552 | Q10: 1.676327858 | R10: 1.639008551 | S10: 1.645391455 | T10: 1.653426603 | U10: 1.64765476
C12: Average of Growth ^ 2 (Variance) | E12: =AVERAGE(E18:E100006) -> 0.04069874124 | F12: =AVERAGE(F18:F100006) -> 0.06300666873 | G12: 0.08004659923 | H12: 0.09085926483 | I12: 0.1004543186 | J12: 0.1058039611 | K12: 0.1100295047 | L12: 0.1118836242 | M12: 0.1129427331 | N12: 0.1139246897 | O12: 0.114448293 | P12: 0.1156253336 | Q12: 0.1157588068 | R12: 0.1144525419 | S12: 0.1168645841 | T12: 0.1178401251 | U12: 0.1173767351
C13: Square Root of Growth - Std Dev | E13: =SQRT(E12) -> 0.2017392903 | F13: =SQRT(F12) -> 0.251011292 | G13: =SQRT(G12) -> 0.2829250771 | H13: 0.301428706 | I13: 0.3169452928 | J13: 0.3252752083 | K13: 0.3317069561 | L13: 0.3344900959 | M13: 0.3360695361 | N13: 0.3375273169 | O13: 0.3383020736 | P13: 0.3400372533 | Q13: 0.3402334593 | R13: 0.3383083534 | S13: 0.3418546243 | T13: 0.3432784949 | U13: 0.3426028825 | AQ13: Bins | AR13: 30
C14: Square Root Relative to First | F14: =F13/$E$13 -> 1.244236022 | G14: =G13/$E$13 -> 1.402429228 | H14: 1.49414973 | I14: 1.571063784 | J14: 1.612354281 | K14: 1.644235764 | L14: 1.658031489 | M14: 1.665860605 | N14: 1.673086668 | O14: 1.676927054 | P14: 1.685528153 | Q14: 1.686500725 | R14: 1.676958182 | S14: 1.694536666 | T14: 1.70159464 | U14: 1.698245701 | AQ14: Min | AR14: =MIN(G14:G16) -> 1.402429228
C15: Variance Relative to First | F15: =F12/$E$12 -> 1.548123279 | G15: =G12/$E$12 -> 1.966807739 | H15: 2.232483415 | I15: 2.468241414 | J15: 2.599686327 | K15: 2.703511248 | L15: 2.749068419 | M15: 2.775091554 | N15: 2.799218998 | O15: 2.812084343 | P15: 2.841005154 | Q15: 2.844284695 | R15: 2.812188743 | S15: 2.871454511 | T15: 2.895424318 | U15: 2.884038461 | AQ15: Max | AR15: =MAX(G14:G16) -> 1.966807739
AQ16: Increment | AR16: =(AR15-AR14)/(AR13-1) -> 0.01946132797
V17: 0.537481165
E18: 0.02174802816 | F18: 0.0661243737 | G18: 0.05404091437 | H18: 0.2018393352 | I18: 0.01391642581 | J18: 0.03939846444 | K18: 0.007092515716 | L18: 0.007452983979 | M18: 0.06381754347 | N18: 0.07129823882 | O18: 0.1543104644 | P18: 0.01721882743 | Q18: 0.03384346299 | R18: 0.0288163507 | S18: 0.03313019773 | T18: 0.02726769466 | U18: 0.09493999306
E19: 0.004691133266 | F19: 0.004899791797 | G19: 0.3755407708 | H19: 0.04905453739 | I19: 0.1094568439 | J19: 0.0485537419 | K19: 0.1488879143 | L19: 0.2012349949 | M19: 0.1578861808 | N19: 0.2907823409 | O19: 0.1621836709 | P19: 0.2069721897 | Q19: 0.270664496 | R19: 0.2212720747 | S19: 0.03970544858 | T19: 0.0200007152 | U19: 2.502539856e-05
E20: 0.00510409728 | F20: 0.2301179754 | G20: 0.3653347425 | H20: 0.4830921344 | I20: 0.2815734897 | J20: 0.2040390354 | K20: 0.05644041705 | L20: 0.004607128268 | M20: 0.08414146787 | N20: 0.2375954512 | O20: 0.2575101842 | P20: 0.00165385675 | Q20: 0.0007452590683 | R20: 0.03249990531 | S20: 0.04289735748 | T20: 0.2779843889 | U20: 0.1133588252
E21: 0.0002978902838 | F21: 0.04086393392 | G21: 0.06589423643 | H21: 0.0873949156 | I21: 0.01808892651 | J21: 0.1070245306 | K21: 0.08757737055 | L21: 0.05266448656 | M21: 0.04578352613 | N21: 0.1330101905 | O21: 0.01113235378 | P21: 0.006682492435 | Q21: 0.06323094135 | R21: 0.001109621085 | S21: 0.0006792947682 | T21: 0.001294432976 | U21: 0.2085684068
E22: 0.01615376542 | F22: 0.005030701776 | G22: 0.1244131663 | H22: 0.009767462846 | I22: 0.03522133417 | J22: 0.01210101232 | K22: 0.01759164253 | L22: 0.03090897403 | M22: 0.001072966676 | N22: 0.006674357048 | O22: 0.04590285035 | P22: 0.2495203556 | Q22: 0.1026656589 | R22: 0.106733955 | S22: 0.2617414486 | T22: 0.07909928349 | U22: 0.01232256127
E23: 0.01318723485 | F23: 0.0001067109049 | G23: 0.003882142397 | H23: 0.0002172371128 | I23: 0.06403917167 | J23: 0.1555897923 | K23: 0.1172351386 | L23: 0.03848292162 | M23: 0.0127865836 | N23: 2.687511013e-06 | O23: 0.07452420735 | P23: 3.902150448e-05 | Q23: 0.01070100738 | R23: 0.1499030599 | S23: 0.11082477 | T23: 0.359042489 | U23: 0.4288272873
E24: 0.008428221897 | F24: 0.02320923626 | G24: 0.008137629137 | H24: 0.3342022437 | I24: 0.1096124782 | J24: 0.004986403213 | K24: 0.1193722483 | L24: 0.01768735862 | M24: 0.04491077269 | N24: 0.1073521446 | O24: 0.032764034 | P24: 0.01606151833 | Q24: 0.2070796068 | R24: 0.1945193459 | S24: 0.1665186185 | T24: 0.1802539081 | U24: 0.0009142448683
E25: 0.02915279251 | F25: 0.09790778074 | G25: 0.001224491791 | H25: 0.001060745673 | I25: 0.0194120784 | J25: 0.01048743774 | K25: 7.618869392e-06 | L25: 0.01948215008 | M25: 0.002501393103 | N25: 0.04185050044 | O25: 0.1875274664 | P25: 0.04325551838 | Q25: 0.002491300912 | R25: 0.01225751924 | S25: 0.03485986695 | T25: 0.006337374295 | U25: 0.0201504052
E26: 0.1355521191 | F26: 0.1821881423 | G26: 0.06639135918 | H26: 0.03940925343 | I26: 0.009610906876 | J26: 0.04965979703 | K26: 0.06474882141 | L26: 0.01791962193 | M26: 0.07151411703 | N26: 0.1926378018 | O26: 0.4553504346 | P26: 0.2413090093 | Q26: 0.1179754263 | R26: 0.3238589251 | S26: 0.2000489819 | T26: 0.0001134240284 | U26: 0.04461510427
E27: 1.995704535e-06 | F27: 0.03298965855 | G27: 0.01847310401 | H27: 0.001930161073 | I27: 0.004449092712 | J27: 0.06777233951 | K27: 0.008729264811 | L27: 0.001778253803 | M27: 0.02421263218 | N27: 0.005937244599 | O27: 0.02195405673 | P27: 0.2423949797 | Q27: 0.02312628822 | R27: 0.01200248207 | S27: 0.01515350279 | T27: 0.02828013186 | U27: 0.007419016251
E28: 0.0004488035419 | F28: 0.0001895330595 | G28: 0.04916367642 | H28: 0.01156681596 | I28: 0.007635428529 | J28: 0.0007275091385 | K28: 0.01039694376 | L28: 0.1869005033 | M28: 0.02400996073 | N28: 0.04096038743 | O28: 0.08611620307 | P28: 0.07017074234 | Q28: 0.03664750709 | R28: 0.07809096765 | S28: 0.1455968891 | T28: 0.05338865779 | U28: 0.03686558332
E29: 0.00164765223 | F29: 0.006131957253 | G29: 0.1282240719 | H29: 0.4397702365 | I29: 0.2760858645 | J29: 0.07495515137 | K29: 0.4953899743 | L29: 0.3963879618 | M29: 0.430494193 | N29: 0.3706847923 | O29: 0.01578702532 | P29: 0.0452222036 | Q29: 0.002856422907 | R29: 0.1435012311 | S29: 0.09833835332 | T29: 0.153694792 | U29: 0.02134224105
E30: 0.02837883445 | F30: 0.0009792628362 | G30: 0.0001032032627 | H30: 0.005265739244 | I30: 3.095843056e-05 | J30: 0.08422019404 | K30: 0.004825956531 | L30: 0.007310955842 | M30: 0.3590819875 | N30: 0.377883353 | O30: 0.1125894409 | P30: 0.06529981234 | Q30: 0.1244932021 | R30: 0.3960871287 | S30: 0.1362796815 | T30: 0.2696172459 | U30: 0.5091636227
E31: 0.02252008058 | F31: 0.1759252292 | G31: 0.03763761007 | H31: 0.05428179011 | I31: 0.1975551695 | J31: 0.2390554771 | K31: 0.4077953657 | L31: 0.2188030411 | M31: 0.2140923995 | N31: 0.07219535831 | O31: 0.0002668065229 | P31: 0.01951756755 | Q31: 0.005709734834 | R31: 0.01553954043 | S31: 0.07357337564 | T31: 0.03368403619 | U31: 0.0400487818
E32: 0.0013231878 | F32: 0.01709594704 | G32: 0.02106005384 | H32: 2.634521098e-05 | I32: 0.09448192724 | J32: 0.1536462224 | K32: 0.1224314986 | L32: 0.06304040191 | M32: 0.0457922827 | N32: 0.02502854698 | O32: 0.002360259727 | P32: 0.002203726214 | Q32: 0.0001009677418 | R32: 0.0003383485827 | S32: 0.01502974637 | T32: 0.004609137506 | U32: 2.520657929e-05
E33: 0.008124162957 | F33: 0.01439569048 | G33: 0.003729846413 | H33: 0.03689233879 | I33: 0.000920373774 | J33: 0.02447373189 | K33: 0.002047113875 | L33: 0.01222529298 | M33: 0.01241294079 | N33: 0.002374514301 | O33: 0.01468158226 | P33: 0.02132263595 | Q33: 0.03862075097 | R33: 0.03684074889 | S33: 0.0338030294 | T33: 0.01510414171 | U33: 0.0191434779
E34: 0.04453303245 | F34: 0.07581908273 | G34: 0.08410432244 | H34: 0.0344756212 | I34: 0.1568320891 | J34: 0.1775370508 | K34: 0.001339965577 | L34: 0.1137765513 | M34: 0.03143747388 | N34: 0.2278092393 | O34: 0.1290177794 | P34: 0.01539248575 | Q34: 0.1901155342 | R34: 0.3336977519 | S34: 0.4182841742 | T34: 0.4040297661 | U34: 0.4033808682
E35: 1.859384957e-06 | F35: 0.009762541704 | G35: 0.1073868702 | H35: 0.03813159889 | I35: 0.2043765384 | J35: 0.07653032306 | K35: 0.01470019351 | L35: 0.002776735078 | M35: 0.01201710728 | N35: 0.1036475295 | O35: 0.1507724645 | P35: 0.06829343015 | Q35: 0.0002197212052 | R35: 0.001220805058 | S35: 0.07209575305 | T35: 0.007986148924 | U35: 0.01417023901
E36: 0.06470294107 | F36: 0.001320697 | G36: 0.06879342293 | H36: 0.0007018742413 | I36: 0.05261672501 | J36: 0.04441848564 | K36: 0.06914627485 | L36: 0.017625517 | M36: 0.08511651583 | N36: 0.02593657574 | O36: 0.1417065602 | P36: 0.01734778641 | Q36: 0.01127994318 | R36: 0.08107627339 | S36: 0.03325430273 | T36: 0.003186763799 | U36: 0.02723536483
E37: 0.001373583688 | F37: 0.0543462189 | G37: 0.03697378694 | H37: 0.07565332189 | I37: 0.1008232326 | J37: 0.1375387197 | K37: 0.03408095071 | L37: 0.06907612437 | M37: 0.0675019472 | N37: 0.09575879999 | O37: 0.1476851557 | P37: 0.4692063279 | Q37: 0.1678512384 | R37: 0.1281920331 | S37: 0.03996269182 | T37: 0.4662295831 | U37: 0.4074680344
E38: 0.03050493354 | F38: 0.003298651071 | G38: 0.1593052918 | H38: 0.390009185 | I38: 0.16034262 | J38: 0.3656468354 | K38: 0.4812150331 | L38: 0.2313371549 | M38: 0.01646614206 | N38: 0.008550875394 | O38: 0.001976524389 | P38: 0.07635835418 | Q38: 0.001181199345 | R38: 0.04729152531 | S38: 0.1133131163 | T38: 0.09668197708 | U38: 0.03335447292
E39: 0.1699110004 | F39: 0.2057658069 | G39: 0.1782316498 | H39: 0.02953287504 | I39: 0.09443160718 | J39: 0.05585241186 | K39: 0.08260594523 | L39: 0.01083611181 | M39: 0.172759744 | N39: 0.1338673781 | O39: 0.00831643161 | P39: 0.02274237437 | Q39: 0.0001501739122 | R39: 0.07708041936 | S39: 0.3481532242 | T39: 0.3213064245 | U39: 0.117762902
E40: 0.0279178465 | F40: 0.03457221677 | G40: 0.002632558952 | H40: 4.978945115e-06 | I40: 0.03089083829 | J40: 0.05248066851 | K40: 0.01602853099 | L40: 0.2972761563 | M40: 0.01854643534 | N40: 0.08141044065 | O40: 0.2466870513 | P40: 0.3400888388 | Q40: 0.0776771339 | R40: 0.1191683501 | S40: 0.03273915617 | T40: 0.007487821593 | U40: 0.00120837121
E41: 0.0001191130915 | F41: 0.01041147045 | G41: 0.002656125066 | H41: 0.01023225632 | I41: 0.04334697374 | J41: 0.08256972372 | K41: 0.1012472008 | L41: 0.03067068065 | M41: 0.2058867883 | N41: 0.00924261675 | O41: 0.001373516087 | P41: 0.00132465217 | Q41: 0.03737515259 | R41: 0.005911209962 | S41: 3.258049158e-06 | T41: 0.01416445351 | U41: 0.02036327777
E42: 0.08699344507 | F42: 0.002815168963 | G42: 0.006274305803 | H42: 0.001687131232 | I42: 0.04244839427 | J42: 0.1068342605 | K42: 0.1294084584 | L42: 0.1907056595 | M42: 0.3474606152 | N42: 0.01307213793 | O42: 0.0004507442997 | P42: 0.02820146936 | Q42: 0.01518046851 | R42: 0.009215085782 | S42: 0.03684558896 | T42: 0.0047478102 | U42: 0.02278559074
E43: 0.002123031363 | F43: 0.01422695727 | G43: 0.0684902237 | H43: 0.01140934388 | I43: 0.005561362402 | J43: 0.002291883316 | K43: 0.0001029114288 | L43: 0.0224202185 | M43: 0.02755360281 | N43: 0.1505920575 | O43: 0.1339729137 | P43: 0.001950329504 | Q43: 0.01824519066 | R43: 0.05721259977 | S43: 0.1434419994 | T43: 0.539749221 | U43: 0.3528104184
E44: 0.1589686698 | F44: 0.02348773851 | G44: 0.09697648527 | H44: 0.2775470715 | I44: 0.526121324 | J44: 0.1918026862 | K44: 0.0585462091 | L44: 0.0392582712 | M44: 0.01342348719 | N44: 0.1118851373 | O44: 0.001289149655 | P44: 0.4825959022 | Q44: 0.1808920253 | R44: 0.1090555652 | S44: 0.0266013603 | T44: 0.02372928358 | U44: 0.03233917299
E45: 0.001285413009 | F45: 0.01433916581 | G45: 0.0371871942 | H45: 0.01196445432 | I45: 0.0520451547 | J45: 0.3420818256 | K45: 0.01791181745 | L45: 0.06378868885 | M45: 0.002133019665 | N45: 0.03963253324 | O45: 0.1281778466 | P45: 0.261048075 | Q45: 0.1623631175 | R45: 0.4458128401 | S45: 0.4883824052 | T45: 0.170146857 | U45: 0.02378519937
E46: 0.1218862794 | F46: 0.02686187816 | G46: 0.1316020803 | H46: 0.1424751204 | I46: 0.163639876 | J46: 0.4924730465 | K46: 0.2014307795 | L46: 0.2733836741 | M46: 0.0469710249 | N46: 0.3474462191 | O46: 0.1785237938 | P46: 0.3213068965 | Q46: 0.4647376985 | R46: 0.5253044389 | S46: 0.2510754787 | T46: 0.119178331 | U46: 0.001642122529
E47: 0.008476206887 | F47: 0.001743229158 | G47: 0.01650926991 | H47: 0.01077847241 | I47: 0.05034869234 | J47: 0.1601474595 | K47: 0.1004441585 | L47: 0.1511049881 | M47: 0.266160224 | N47: 0.09126816842 | O47: 0.05350553324 | P47: 0.1239753982 | Q47: 0.07811459455 | R47: 0.1197174457 | S47: 0.2114153988 | T47: 0.3449613957 | U47: 0.04874120949
E48: 0.0003183556963 | F48: 0.002524128957 | G48: 0.004971364578 | H48: 0.0004300177419 | I48: 0.002948487511 | J48: 0.01793649978 | K48: 0.1144475505 | L48: 0.001181618389 | M48: 0.02964815901 | N48: 0.09665198801 | O48: 0.05887039117 | P48: 0.06381713669 | Q48: 0.0008653739059 | R48: 0.01662740625 | S48: 0.01764165068 | T48: 0.001011202631 | U48: 0.1745725635
E49: 1.645521786e-05 | F49: 0.03064199287 | G49: 0.03179445911 | H49: 0.007671284493 | I49: 0.1287669254 | J49: 0.1633080394 | K49: 0.002045747983 | L49: 0.02123752504 | M49: 0.01798880783 | N49: 3.543882917e-06 | O49: 0.02546109227 | P49: 0.2203575572 | Q49: 0.3960815452 | R49: 0.4218829718 | S49: 0.1475571429 | T49: 0.2054825244 | U49: 0.3247513768
E50: 0.01002979174 | F50: 0.01625937452 | G50: 0.002933723568 | H50: 0.0005075836297 | I50: 0.02020501408 | J50: 0.05931248281 | K50: 1.342806067e-07 | L50: 0.0109150255 | M50: 0.01776491638 | N50: 0.006687889506 | O50: 0.009360735426 | P50: 0.01143282944 | Q50: 0.07958179573 | R50: 0.002794321563 | S50: 0.1035421134 | T50: 0.02316108298 | U50: 0.08665386603
E51: 0.00439587016 | F51: 0.005119788851 | G51: 0.04102957531 | H51: 0.06013484839 | I51: 0.04981344701 | J51: 0.0747906313 | K51: 0.03236496503 | L51: 0.1247633461 | M51: 0.01198717741 | N51: 0.03978183096 | O51: 0.1332470574 | P51: 0.03425798285 | Q51: 0.08393852372 | R51: 0.001106034478 | S51: 0.02516624606 | T51: 0.005914837674 | U51: 0.00272186424
E52: 0.01144186745 | F52: 0.01382414072 | G52: 0.04020627412 | H52: 0.1381412136 | I52: 0.5162874245 | J52: 0.1009473079 | K52: 0.004296432761 | L52: 0.01284776944 | M52: 0.0001352498214 | N52: 0.1028609164 | O52: 0.04173011514 | P52: 0.1336711608 | Q52: 0.2022887078 | R52: 0.08007511126 | S52: 0.00764125195 | T52: 0.03541437552 | U52: 0.0269084664
E53: 0.005000000424 | F53: 0.003613142276 | G53: 0.01196481978 | H53: 0.06672494309 | I53: 0.02487198184 | J53: 0.01338750626 | K53: 0.01430160911 | L53: 0.003546473143 | M53: 0.006846911906 | N53: 0.002472875512 | O53: 0.0003590946384 | P53: 0.04184469671 | Q53: 0.09980563754 | R53: 0.2456359802 | S53: 0.2958867637 | T53: 0.1365711423 | U53: 0.02248393046
E54: 0.001040718841 | F54: 0.1152932073 | G54: 0.03307783057 | H54: 0.07744160521 | I54: 0.1227101294 | J54: 0.07262128835 | K54: 0.1065185561 | L54: 0.05928405256 | M54: 0.002344529566 | N54: 0.00148514165 | O54: 0.03569306423 | P54: 0.1246671859 | Q54: 0.03174745801 | R54: 7.1647176e-05 | S54: 0.01258613477 | T54: 0.02425148485 | U54: 0.09235299586
E55: 0.01796508989 | F55: 0.0373033737 | G55: 6.982268684e-06 | H55: 0.04840858073 | I55: 0.08915041352 | J55: 0.003371281333 | K55: 0.04576559828 | L55: 0.0003569371646 | M55: 0.02191270973 | N55: 0.1456556399 | O55: 0.0604371759 | P55: 0.03226377984 | Q55: 0.0008228992352 | R55: 0.00159363517 | S55: 0.01003222566 | T55: 0.0005235118267 | U55: 0.1487637581
E56: 0.001673238796 | F56: 0.1110783927 | G56: 0.02524379427 | H56: 0.2087629284 | I56: 0.1037374708 | J56: 0.08076592611 | K56: 0.2336604056 | L56: 0.02736379726 | M56: 0.01909334932 | N56: 0.1442740634 | O56: 0.01888048288 | P56: 0.002592779914 | Q56: 0.1004214546 | R56: 0.1226440036 | S56: 0.1598911354 | T56: 0.4537437157 | U56: 0.4076906441
E57: 0.0001992563387 | F57: 0.1031568204 | G57: 0.3659017873 | H57: 0.004965904931 | I57: 0.002593581504 | J57: 0.001491370532 | K57: 0.06130559438 | L57: 0.03825452964 | M57: 0.0922193355 | N57: 0.1207686969 | O57: 0.03718506717 | P57: 0.0009100410797 | Q57: 0.01148312315 | R57: 0.007046015266 | S57: 0.05920224096 | T57: 0.07005091741 | U57: 0.05437883441
E58: 0.01685182902 | F58: 0.036417427 | G58: 0.195654979 | H58: 0.2889201671 | I58: 0.08169956103 | J58: 0.2089725552 | K58: 0.1125529189 | L58: 0.3379394596 | M58: 0.1947916928 | N58: 0.2682609251 | O58: 0.07505768928 | P58: 0.2291076573 | Q58: 0.1825785358 | R58: 0.1390791261 | S58: 0.09475292567 | T58: 0.08678909926 | U58: 0.03977941475
E59: 0.1582924449 | F59: 0.08479820339 | G59: 0.3488855291 | H59: 0.6213800145 | I59: 0.4606266712 | J59: 0.531036045 | K59: 0.5632922306 | L59: 1.028573055 | M59: 0.6892090301 | N59: 0.06733032146 | O59: 0.04437754654 | P59: 0.02836520264 | Q59: 0.00197086504 | R59: 0.05014186007 | S59: 0.1310533918 | T59: 0.5389072022 | U59: 0.3158242849
E60: 0.02665484694 | F60: 0.1132575868 | G60: 0.01801108418 | H60: 0.01403144446 | I60: 0.03259654508 | J60: 0.002680694877 | K60: 0.01396406406 | L60: 0.01248828548 | M60: 0.132490987 | N60: 0.0008546258136 | O60: 0.004547363254 | P60: 0.01017166564 | Q60: 0.002685027042 | R60: 0.003751490133 | S60: 0.1146487648 | T60: 0.0003089708849 | U60: 0.02092401901
E61: 1.52268035e-06 | F61: 0.02008197887 | G61: 1.956725323e-05 | H61: 0.007693368722 | I61: 0.01963885508 | J61: 0.007674117105 | K61: 0.1170051643 | L61: 0.1425365416 | M61: 0.2123475485 | N61: 0.006812852784 | O61: 0.01331065664 | P61: 0.001191667005 | Q61: 0.06373795035 | R61: 0.3108634948 | S61: 0.561984517 | T61: 0.2290394719 | U61: 0.02334270718
E62: 0.005803827082 | F62: 0.04431467419 | G62: 0.004110501233 | H62: 0.008898549435 | I62: 0.1085883609 | J62: 0.01502477362 | K62: 0.002075744681 | L62: 0.03847183669 | M62: 0.1052671249 | N62: 0.1017720741 | O62: 0.0001480979393 | P62: 0.02103254414 | Q62: 0.1155623505 | R62: 0.08890379379 | S62: 0.1743244516 | T62: 0.0004315618656 | U62: 0.09763156987
E63: 0.03051185078 | F63: 0.002692270131 | G63: 0.01628198294 | H63: 0.01656120559 | I63: 0.01551785677 | J63: 0.002715074795 | K63: 0.06616838477 | L63: 0.007975191438 | M63: 0.008889445883 | N63: 0.01146343928 | O63: 0.101881896 | P63: 0.2583693422 | Q63: 0.1287368907 | R63: 0.002019294868 | S63: 0.006293806577 | T63: 3.365361864e-05 | U63: 0.002756778254
E64: 0.1248863251 | F64: 0.2999324286 | G64: 0.02637874427 | H64: 0.2537165053 | I64: 0.2708180284 | J64: 0.1125925878 | K64: 0.05263051014 | L64: 0.05684695611 | M64: 0.03814151643 | N64: 0.09081929873 | O64: 0.2536926607 | P64: 0.1535727893 | Q64: 0.3386486886 | R64: 0.3846819341 | S64: 0.2668600489 | T64: 0.06149535957 | U64: 0.08789874824
E65: 0.01095880379 | F65: 0.02704772358 | G65: 0.02667856471 | H65: 0.1059012003 | I65: 0.04399627122 | J65: 0.2273662439 | K65: 0.2160073753 | L65: 0.107684398 | M65: 0.008152682416 | N65: 0.03156541487 | O65: 0.005221658887 | P65: 0.04749231865 | Q65: 0.02961992826 | R65: 0.2243743159 | S65: 0.1086380231 | T65: 0.1618337375 | U65: 0.07297823658
E66: 0.0001751860584 | F66: 0.02913356097 | G66: 0.01217762323 | H66: 0.01746392631 | I66: 0.01191349261 | J66: 0.01230471113 | K66: 0.006708618906 | L66: 0.1095674166 | M66: 0.3123154066 | N66: 0.04021923569 | O66: 0.0001545033927 | P66: 0.03285554255 | Q66: 0.01330609093 | R66: 0.09401969243 | S66: 0.2770366419 | T66: 0.3941194987 | U66: 0.06700434592
E67: 0.0007493748893 | F67: 0.04813319162 | G67: 0.04362399003 | H67: 0.09730386792 | I67: 0.1191570714 | J67: 0.06621475463 | K67: 0.0008239882181 | L67: 0.01116056277 | M67: 0.004051635892 | N67: 0.01066604792 | O67: 0.0003239430666 | P67: 0.09595970099 | Q67: 0.07046836594 | R67: 0.1734190342 | S67: 0.5289953375 | T67: 0.5427926722 | U67: 0.2383617024
E68: 0.04438801329 | F68: 0.0009769001757 | G68: 0.03830677427 | H68: 0.1173442351 | I68: 0.01307257064 | J68: 5.30457603e-05 | K68: 0.01028560497 | L68: 0.04729111388 | M68: 0.0007064354486 | N68: 0.005009290809 | O68: 0.05497077694 | P68: 0.006054793701 | Q68: 0.1051982632 | R68: 0.01822427706 | S68: 1.6080084e-05 | T68: 0.1106544557 | U68: 0.01701463379
E69: 0.01436891132 | F69: 0.05645854199 | G69: 0.5400287166 | H69: 0.2697358252 | I69: 0.06327112965 | J69: 0.2626234535 | K69: 0.1958934163 | L69: 0.04427766512 | M69: 0.1774938094 | N69: 0.2202733441 | O69: 0.0806068581 | P69: 0.03864149831 | Q69: 0.06320991692 | R69: 0.03768760012 | S69: 0.01858730524 | T69: 0.02547535646 | U69: 1.992617218e-05
E70: 0.009251607654 | F70: 0.000134808876 | G70: 0.003086865332 | H70: 0.07081933075 | I70: 0.01802480173 | J70: 0.01182327136 | K70: 0.03016949776 | L70: 0.02619109693 | M70: 0.03312890156 | N70: 0.029385932 | O70: 0.2202696589 | P70: 0.1081176182 | Q70: 0.005291674747 | R70: 0.005434965416 | S70: 0.004252086833 | T70: 0.2031792362 | U70: 0.1509643094
E71: 0.01263943058 | F71: 0.2066125481 | G71: 0.396460349 | H71: 1.298909456 | I71: 0.676671714 | J71: 0.4207045838 | K71: 0.4314855132 | L71: 0.03266079161 | M71: 0.01253023501 | N71: 0.04177761764 | O71: 0.0003459445674 | P71: 0.1052267221 | Q71: 0.03839725883 | R71: 0.002228388178 | S71: 0.02190762271 | T71: 0.244414351 | U71: 0.1907835015
E72: 0.003678236503 | F72: 0.09068125954 | G72: 0.07081192467 | H72: 0.002559054149 | I72: 0.03138236997 | J72: 0.01049040533 | K72: 0.1053545679 | L72: 0.4460733565 | M72: 0.1225295499 | N72: 0.02106310932 | O72: 0.09131768256 | P72: 0.1317990079 | Q72: 0.1231208433 | R72: 0.007973195103 | S72: 0.03978124555 | T72: 0.08654062733 | U72: 0.07134023729
E73: 0.03133066437 | F73: 0.003322293416 | G73: 0.004705275994 | H73: 0.006301807528 | I73: 0.09079622815 | J73: 0.1176913039 | K73: 0.02857211283 | L73: 0.0157188866 | M73: 0.1918671095 | N73: 0.3590923046 | O73: 0.08684652326 | P73: 0.008522617198 | Q73: 0.00967517187 | R73: 0.2071309549 | S73: 0.315803545 | T73: 0.2438855677 | U73: 0.2141574673
E74: 0.0002001749847 | F74: 0.02582255242 | G74: 0.03226812154 | H74: 0.020741359 | I74: 0.041989734 | J74: 0.03647846798 | K74: 0.03611982434 | L74: 0.0001149652098 | M74: 0.01091512701 | N74: 0.001467400416 | O74: 0.03227277058 | P74: 0.07938543012 | Q74: 0.1763692121 | R74: 0.01119858055 | S74: 0.04166019496 | T74: 0.007467881029 | U74: 0.1597197196
E75: 0.01008765305 | F75: 0.01119523667 | G75: 0.01690258563 | H75: 0.02746921833 | I75: 0.0004927738344 | J75: 0.01386104533 | K75: 0.1824790235 | L75: 0.008207387426 | M75: 0.03029431136 | N75: 0.1620950066 | O75: 0.2824524158 | P75: 0.1987546636 | Q75: 0.09204140105 | R75: 0.004265004976 | S75: 0.009446260686 | T75: 0.1069642359 | U75: 0.1217301548
E76: 0.006921918386 | F76: 0.04282905842 | G76: 0.04255159789 | H76: 0.02453503749 | I76: 0.0989511785 | J76: 0.4178373957 | K76: 0.2562431977 | L76: 0.004099337135 | M76: 0.01080901412 | N76: 0.02320788777 | O76: 0.004006589988 | P76: 0.02669288042 | Q76: 0.01088334605 | R76: 0.003497133946 | S76: 0.18483929 | T76: 0.05259056651 | U76: 0.0007196949663
E77: 0.01617833269 | F77: 0.05584611435 | G77: 0.05765379056 | H77: 0.5069240963 | I77: 0.3319324705 | J77: 0.2878181527 | K77: 0.119597747 | L77: 0.001421029426 | M77: 0.01760062594 | N77: 0.02334233564 | O77: 0.009350539498 | P77: 0.03418973146 | Q77: 0.04726173452 | R77: 0.1577313892 | S77: 0.008258251629 | T77: 0.009994987198 | U77: 0.0005967375305
E78: 0.1662864515 | F78: 0.1821403913 | G78: 0.34000616 | H78: 0.1029492459 | I78: 0.1216192617 | J78: 0.1459195097 | K78: 0.4261465054 | L78: 0.1585764739 | M78: 0.08882730518 | N78: 0.4233647457 | O78: 0.5692749036 | P78: 0.7204664521 | Q78: 0.7322604091 | R78: 1.036809918 | S78: 0.6639754791 | T78: 0.5677091301 | U78: 0.4342053894
E79: 0.05931990923 | F79: 0.03195665428 | G79: 0.07577182257 | H79: 0.1453827883 | I79: 0.06998336395 | J79: 0.0004736066861 | K79: 0.06555793774 | L79: 0.09575204415 | M79: 0.1108637856 | N79: 0.0001644657943 | O79: 0.01036540177 | P79: 0.107101379 | Q79: 0.002329317395 | R79: 0.0797170761 | S79: 0.08004283591 | T79: 0.3267527597 | U79: 0.07080180056
E80: 0.004510595594 | F80: 0.1366373439 | G80: 0.139842951 | H80: 0.4286461405 | I80: 0.1413472649 | J80: 0.2459271496 | K80: 0.06408950958 | L80: 0.3491993605 | M80: 0.1724486959 | N80: 0.0003435362509 | O80: 0.2381709818 | P80: 0.2223118224 | Q80: 0.1392555617 | R80: 0.1818430611 | S80: 0.3058654056 | T80: 0.09925634086 | U80: 0.02594257046
E81: 0.05935845406 | F81: 0.1149652334 | G81: 0.04329458935 | H81: 0.1475379531 | I81: 0.08831005365 | J81: 0.1166998044 | K81: 0.1082683538 | L81: 0.105313031 | M81: 0.09898172269 | N81: 0.006959131776 | O81: 7.141710955e-05 | P81: 0.1233001321 | Q81: 0.04222737244 | R81: 0.04078936591 | S81: 0.05417571243 | T81: 0.0284857214 | U81: 0.07091048326
E82: 0.02851219267 | F82: 0.01238391992 | G82: 0.02351687492 | H82: 0.07397213202 | I82: 0.101824933 | J82: 0.01186030345 | K82: 0.007860754106 | L82: 0.002877458252 | M82: 0.05786527071 | N82: 0.2790731811 | O82: 0.07735680119 | P82: 0.1201106146 | Q82: 0.1702718682 | R82: 0.2937620995 | S82: 0.07973725233 | T82: 0.4888438292 | U82: 0.8006753781
E83: 0.04196249984 | F83: 0.1377785653 | G83: 0.02001429589 | H83: 0.124773702 | I83: 0.09364308149 | J83: 0.08917660087 | K83: 0.1785811987 | L83: 0.1416082989 | M83: 0.02093003442 | N83: 0.001017868413 | O83: 0.1534718635 | P83: 0.1417955466 | Q83: 0.07893553348 | R83: 0.04777016358 | S83: 0.001069468146 | T83: 0.006847355916 | U83: 0.01659566363
E84: 0.03697369245 | F84: 0.1634786805 | G84: 0.1088752407 | H84: 0.4443465928 | I84: 0.469845898 | J84: 0.1413731911 | K84: 0.2882879472 | L84: 0.009503608619 | M84: 0.007373796529 | N84: 0.09660182775 | O84: 0.1741393887 | P84: 0.0287695306 | Q84: 0.004328440052 | R84: 0.01135313045 | S84: 0.05068588477 | T84: 0.02301034023 | U84: 0.01646083911
E85: 0.01306145274 | F85: 0.0001654870548 | G85: 0.02228819886 | H85: 0.05481327402 | I85: 0.1202847423 | J85: 0.1576289119 | K85: 0.2752381924 | L85: 0.1677142035 | M85: 0.5269837625 | N85: 0.276157956 | O85: 0.3694140975 | P85: 0.3283956332 | Q85: 0.192058695 | R85: 0.07859729932 | S85: 0.01144615892 | T85: 0.001173934709 | U85: 0.0004893118393
E86: 0.01292873444 | F86: 0.04078143917 | G86: 0.04920295061 | H86: 0.01912534739 | I86: 0.01192410329 | J86: 0.01493815123 | K86: 0.1250977643 | L86: 0.09330636299 | M86: 0.08860727619 | N86: 0.0033319121 | O86: 0.03560772691 | P86: 0.06452859198 | Q86: 0.005278020974 | R86: 0.02197490334 | S86: 8.643656512e-05 | T86: 0.04956993363 | U86: 0.03765595514
E87: 0.007628064296 | F87: 0.0004002119664 | G87: 0.1338810341 | H87: 0.1667467749 | I87: 0.04962203919 | J87: 0.2268204335 | K87: 0.128308498 | L87: 0.1354243607 | M87: 0.04986044027 | N87: 0.005820121825 | O87: 0.1635283827 | P87: 0.08536437079 | Q87: 0.001003218467 | R87: 0.04242694333 | S87: 0.024727337 | T87: 0.000673723585 | U87: 0.02059862633
E88: 0.08039262039 | F88: 0.005172816334 | G88: 0.2291848559 | H88: 0.09818487888 | I88: 0.002488231128 | J88: 7.929860589e-06 | K88: 0.01053958002 | L88: 0.01773793152 | M88: 0.03700183584 | N88: 0.0863188189 | O88: 0.0002262188653 | P88: 2.555019903e-05 | Q88: 0.0008536318932 | R88: 0.0001258900971 | S88: 0.001830966755 | T88: 0.007820134659 | U88: 0.0009929523935
E89: 0.02879696619 | F89: 0.1896408427 | G89: 0.1545899206 | H89: 0.2519569329 | I89: 0.1386259884 | J89: 0.2072431788 | K89: 0.1562588171 | L89: 0.4151248444 | M89: 0.6732702449 | N89: 0.06870111136 | O89: 0.008873337668 | P89: 0.04317156898 | Q89: 0.1253734787 | R89: 0.1076807918 | S89: 0.009064796163 | T89: 0.05187070675 | U89: 0.02888898274
E90: 0.04236489061 | F90: 0.00146584083 | G90: 0.04492300984 | H90: 0.3434259553 | I90: 0.06008759384 | J90: 0.01525458573 | K90: 0.2345837187 | L90: 0.1275062593 | M90: 0.01820927327 | N90: 0.002460869708 | O90: 0.002908606407 | P90: 0.0002935171507 | Q90: 0.0003341515543 | R90: 0.002768226386 | S90: 0.003408856105 | T90: 0.0009998560928 | U90: 0.2087559677
E91: 0.008811471762 | F91: 0.02539733398 | G91: 0.02340791157 | H91: 0.02960818033 | I91: 0.0007911314201 | J91: 0.03164454706 | K91: 0.04187489038 | L91: 0.2007848502 | M91: 0.05702071175 | N91: 0.07295078069 | O91: 0.3065056875 | P91: 0.1183200169 | Q91: 0.0942575792 | R91: 0.1220368773 | S91: 0.03177996745 | T91: 0.004554348873 | U91: 0.2282542224
E92: 0.0394580878 | F92: 0.2604563146 | G92: 0.6723043362 | H92: 0.8679129006 | I92: 1.31162943 | J92: 0.965912138 | K92: 0.4764990819 | L92: 0.1850425261 | M92: 0.02614846712 | N92: 0.0006356491615 | O92: 0.007193767378 | P92: 0.0005441377795 | Q92: 0.203901849 | R92: 0.006722050031 | S92: 0.01055158454 | T92: 0.05640853603 | U92: 0.01215598889
E93: 0.1565776857 | F93: 0.07756371308 | G93: 0.2460478258 | H93: 0.1583138424 | I93: 0.5125159033 | J93: 0.164605523 | K93: 0.1937657922 | L93: 0.2089837224 | M93: 0.2522217148 | N93: 0.2936382546 | O93: 0.4734079712 | P93: 0.6139695505 | Q93: 0.394708424 | R93: 0.08888927214 | S93: 0.6497374159 | T93: 0.4819017347 | U93: 0.3339532163
E94: 0.001863760247 | F94: 0.010101508 | G94: 0.0006051559326 | H94: 0.02581512625 | I94: 0.07503873506 | J94: 0.001231581093 | K94: 0.0185106823 | L94: 0.00141390426 | M94: 0.002152381713 | N94: 0.003284816949 | O94: 0.05437820892 | P94: 0.01339691322 | Q94: 0.02137806 | R94: 0.07836193878 | S94: 0.4325724615 | T94: 0.3384664745 | U94: 0.2057974051
E95: 0.02671676342 | F95: 0.04136550567 | G95: 0.009609173895 | H95: 0.02715790167 | I95: 9.664901624e-07 | J95: 2.157560634e-05 | K95: 0.07815397598 | L95: 0.03257883847 | M95: 0.08669782191 | N95: 0.3185537763 | O95: 0.0002696491224 | P95: 0.001094442202 | Q95: 0.2287952461 | R95: 0.01524731582 | S95: 0.03227051463 | T95: 0.177936282 | U95: 0.01752359068
E96: 0.002398402273 | F96: 0.0005823998835 | G96: 0.06094212507 | H96: 0.02515584347 | I96: 0.004575722968 | J96: 0.2284417373 | K96: 0.1979044984 | L96: 0.1707727435 | M96: 0.2065391926 | N96: 0.3427836171 | O96: 0.1963692175 | P96: 0.1462208266 | Q96: 0.01596363644 | R96: 0.2430274408 | S96: 0.1208158024 | T96: 0.0164976831 | U96: 0.02871716009
E97: 0.007841215059 | F97: 0.03916171976 | G97: 0.05524824669 | H97: 0.1161749224 | I97: 0.2061980589 | J97: 0.4779592227 | K97: 0.6218414902 | L97: 0.1793238571 | M97: 0.54944286 | N97: 0.5215224786 | O97: 0.2181655349 | P97: 0.1424414595 | Q97: 0.07935231201 | R97: 0.003085918224 | S97: 0.0393158613 | T97: 0.03014085455 | U97: 0.06826724418
E98: 0.0001222883419 | F98: 0.002575811577 | G98: 0.002016970175 | H98: 0.016862501 | I98: 0.02790370501 | J98: 0.06196808646 | K98: 0.03050929288 | L98: 0.00389093747 | M98: 0.03963163652 | N98: 0.167570744 | O98: 0.0001239465753 | P98: 0.0008605769027 | Q98: 0.1874480515 | R98: 0.0262806361 | S98: 0.2477133825 | T98: 0.0484957499 | U98: 0.09209097937
E99: 0.001079942751 | F99: 0.008993697623 | G99: 0.03985315353 | H99: 0.005354692771 | I99: 0.004111322177 | J99: 2.905649952e-06 | K99: 0.05439196541 | L99: 0.145366956 | M99: 0.4988382612 | N99: 0.6684829549 | O99: 0.6648228068 | P99: 0.4026626895 | Q99: 0.2476505291 | R99: 0.2735378081 | S99: 0.03651847876 | T99: 0.003309180641 | U99: 0.01128465115
E100: 0.008310180117 | F100: 0.01025360908 | G100: 0.04921809211 | H100: 0.1406437397 | I100: 0.006020848057 | J100: 0.01291268897 | K100: 0.00318237392 | L100: 0.02902298363 | M100: 0.1222964261 | N100: 0.2850761961 | O100: 0.2273544889 | P100: 0.0228939371 | Q100: 0.002146553259 | R100: 0.006129857978 | S100: 0.001575437358 | T100: 0.04301605885 | U100: 0.008166935586
E101: 1.115358051e-05 | F101: 0.002253234473 | G101: 0.008969777207 | H101: 0.006264659171 | I101: 0.01443086069 | J101: 0.1278244648 | K101: 0.2420447859 | L101: 0.0020563332 | M101: 0.009835407492 | N101: 0.008042600214 | O101: 0.0001587419929 | P101: 0.01346949369 | Q101: 0.03137141788 | R101: 0.4343353776 | S101: 0.08167096664 | T101: 1.458643365e-05 | U101: 0.03192916269
E102: 1.808791334e-05 | F102: 0.07704512487 | G102: 0.005910123597 | H102: 0.1173020392 | I102: 0.1732555264 | J102: 0.02357001331 | K102: 0.006801823262 | L102: 0.02162048359 | M102: 0.05662977496 | N102: 0.01377227028 | O102: 0.0006644382999 | P102: 0.03387043679 | Q102: 0.001910376052 | R102: 0.003588133559 | S102: 0.01755568674 | T102: 0.007076999981 | U102: 0.07950891631
E103: 0.05696559592 | F103: 0.0177651376 | G103: 0.000616418957 | H103: 0.006001124712 | I103: 0.02310786532 | J103: 0.04056977281 | K103: 0.000285038371 | L103: 0.02926611956 | M103: 0.03694965028 | N103: 0.09854367749 | O103: 0.1792343846 | P103: 0.001768512575 | Q103: 0.003711967318 | R103: 0.02037434923 | S103: 0.006397777042 | T103: 0.003449145004 | U103: 0.0386102356
E104: 0.1742475874 | F104: 0.06140398101 | G104: 0.01588903959 | H104: 0.2076096148 | I104: 0.01129684844 | J104: 0.1092013437 | K104: 0.0699271874 | L104: 0.2053673764 | M104: 0.1665825874 | N104: 0.3031112682 | O104: 0.1575812348 | P104: 0.01502358239 | Q104: 0.002064853813 | R104: 0.09643413559 | S104: 0.07347337282 | T104: 0.001496833965 | U104: 8.980827766e-05
E105: 0.03265678148 | F105: 0.0954532819 | G105: 0.08572924247 | H105: 0.09250721916 | I105: 0.2917683287 | J105: 0.1343030774 | K105: 0.01440541353 | L105: 0.001976511903 | M105: 0.2141437085 | N105: 0.399371906 | O105: 0.1632846178 | P105: 0.05202087183 | Q105: 0.1185367305 | R105: 0.09731139794 | S105: 0.06545579898 | T105: 0.04247191605 | U105: 0.03733228155
E106: 0.162899752 | F106: 0.04215274682 | G106: 0.1331664022 | H106: 0.3787820845 | I106: 0.4798573136 | J106: 1.056488407 | K106: 1.215774853 | L106: 1.175752943 | M106: 0.1836629231 | N106: 0.01428910316 | O106: 0.03182659921 | P106: 0.1800318782 | Q106: 0.02930286057 | R106: 0.07152415333 | S106: 0.04658133176 | T106: 0.06190254143 | U106: 0.06980669771
E107: 0.01108209174 | F107: 0.0001818231585 | G107: 0.2381290545 | H107: 0.136818899 | I107: 0.1613364434 | J107: 0.1919412201 | K107: 0.1300809654 | L107: 0.3276954285 | M107: 0.1646201013 | N107: 0.04536241811 | O107: 0.04425679118 | P107: 7.681170583e-06 | Q107: 0.009747751795 | R107: 0.01416324092 | S107: 0.1163749408 | T107: 0.06536973118 | U107: 0.02869438902
E108: 0.02596932054 | F108: 0.005780677921 | G108: 0.1543068882 | H108: 0.05011713865 | I108: 0.01347942971 | J108: 0.04611985695 | K108: 0.001364310996 | L108: 0.02840779831 | M108: 0.1481326181 | N108: 3.451938113e-05 | O108: 0.01452530494 | P108: 0.09534155071 | Q108: 0.007750294708 | R108: 0.008842256023 | S108: 0.01646548947 | T108: 0.04448421361 | U108: 0.2616762613
E109: 0.01137776478 | F109: 0.1557292521 | G109: 0.6664066292 | H109: 0.4797962014 | I109: 0.9663318371 | J109: 0.3178385469 | K109: 0.1716133325 | L109: 0.18823085 | M109: 0.0008371543317 | N109: 0.01862275259 | O109: 0.02452745756 | P109: 0.4795644702 | Q109: 0.3990617542 | R109: 0.1006294632 | S109: 0.005011235322 | T109: 0.1583094047 | U109: 0.09125651232
E110: 0.003268506201 | F110: 0.002777834279 | G110: 0.005718859738 | H110: 0.4049977392 | I110: 0.07137577557 | J110: 0.07586594769 | K110: 0.151540461 | L110: 0.001070500159 | M110: 0.0003540868079 | N110: 0.0006756433324 | O110: 0.1025438696 | P110: 0.04652815791 | Q110: 0.007824013452 | R110: 0.01811140503 | S110: 0.09572183604 | T110: 0.08428400026 | U110: 0.01707141935
E111: 0.006295672813 | F111: 0.002763552502 | G111: 0.005444197106 | H111: 0.02301414444 | I111: 0.01621550888 | J111: 0.1142433934 | K111: 0.0121451622 | L111: 0.0002112119775 | M111: 0.03875948616 | N111: 0.0003497906844 | O111: 0.04766144356 | P111: 0.03537995673 | Q111: 0.1074594072 | R111: 0.1305172928 | S111: 0.06273366352 | T111: 0.00477868637 | U111: 0.007786432953
E112: 0.02422724256 | F112: 0.0003503229772 | G112: 0.03094017464 | H112: 0.03058089958 | I112: 0.1112981684 | J112: 0.1348053138 | K112: 0.3406103322 | L112: 0.3053420906 | M112: 0.08693333572 | N112: 0.01972349429 | O112: 0.0560395727 | P112: 0.1689551104 | Q112: 0.09573111368 | R112: 0.2519158569 | S112: 0.002173481155 | T112: 0.06059710357 | U112: 0.08569448273
E113: 0.003693402105 | F113: 0.0007769774589 | G113: 0.03657605868 | H113: 0.0003405276628 | I113: 0.04685235614 | J113: 0.1756304412 | K113: 0.05306164241 | L113: 0.05220622733 | M113: 0.03015931645 | N113: 0.08377180525 | O113: 0.1734889417 | P113: 0.4109182103 | Q113: 0.5839849274 | R113: 0.2752260223 | S113: 0.3404841845 | T113: 0.1066324677 | U113: 0.0904003945
E114: 0.01108807359 | F114: 0.007909908031 | G114: 0.1696386851 | H114: 0.02861249652 | I114: 0.05192674535 | J114: 0.1183019975 | K114: 0.2800793056 | L114: 0.02287053469 | M114: 0.05967808275 | N114: 0.1878882014 | O114: 0.04067117177 | P114: 0.06085483473 | Q114: 0.2272219672 | R114: 0.3669146701 | S114: 0.2267647569 | T114: 0.06229073609 | U114: 0.001908837052
E115: 0.02797394745 | F115: 0.06030947079 | G115: 0.1536389996 | H115: 0.1851250147 | I115: 0.06144561358 | J115: 0.01027395793 | K115: 0.131832528 | L115: 0.003386362375 | M115: 0.1440600548 | N115: 0.1919429494 | O115: 0.1860521961 | P115: 0.006704844919 | Q115: 0.02336415108 | R115: 0.003576568065 | S115: 0.01901573873 | T115: 0.179274237 | U115: 0.08640066586
E116: 0.0002265297749 | F116: 0.006663419123 | G116: 0.000177916467 | H116: 0.01911947697 | I116: 0.01681137775 | J116: 0.1147824516 | K116: 0.1502273017 | L116: 0.01261744387 | M116: 0.1887145564 | N116: 0.1533071292 | O116: 0.03466852978 | P116: 0.0003446315878 | Q116: 0.0004238373846 | R116: 0.0006554945308 | S116: 3.623495878e-06 | T116: 0.2095286213 | U116: 8.434712494e-05
E117: 0.08448070533 | F117: 0.0001212041733 | G117: 0.01103193759 | H117: 0.01204452503 | I117: 0.007968029355 | J117: 0.2135105644 | K117: 0.3216968637 | L117: 0.1281904429 | M117: 0.02769848872 | N117: 0.0004222765987 | O117: 0.00216804579 | P117: 0.313334386 | Q117: 0.1373564688 | R117: 0.1334872603 | S117: 0.6123620467 | T117: 0.206296027 | U117: 0.4508129197
E118: 0.1224785438 | F118: 0.2124415515 | G118: 0.1371644474 | H118: 0.005453770021 | I118: 0.03887733955 | J118: 0.1618160877 | K118: 0.1454146352 | L118: 0.2561823198 | M118: 0.07467580494 | N118: 0.137297715 | O118: 0.001481890054 | P118: 0.1328390064 | Q118: 0.09298112824 | R118: 0.1245449448 | S118: 0.1363700091 | T118: 0.1466088641 | U118: 0.02716286279
E119: 0.02857095484 | F119: 0.009147325436 | G119: 0.01160626336 | H119: 0.04027531152 | I119: 0.2240058394 | J119: 0.05698047901 | K119: 0.1232248495 | L119: 0.1486166914 | M119: 0.170135611 | N119: 0.0283189065 | O119: 4.383525241e-06 | P119: 0.05218333559 | Q119: 0.1228902766 | R119: 0.0001279657573 | S119: 0.0009765594825 | T119: 0.0619897833 | U119: 0.08457265041
E120: 0.01957947434 | F120: 0.030445785 | G120: 0.04199974389 | H120: 0.04994291811 | I120: 0.004824370242 | J120: 0.01827058799 | K120: 0.0007458524005 | L120: 0.1147270845 | M120: 0.06515464985 | N120: 0.02594084744 | O120: 0.002691838652 | P120: 0.04805398916 | Q120: 0.003996036319 | R120: 0.000329841829 | S120: 0.1229637361 | T120: 0.003868157228 | U120: 0.003810633952
E121: 0.004253889491 | F121: 0.02249154003 | G121: 0.1706003837 | H121: 0.2268325168 | I121: 9.641732282e-06 | J121: 0.002261794293 | K121: 0.1455569968 | L121: 0.1147557921 | M121: 0.01445704187 | N121: 0.04814355726 | O121: 0.03265654046 | P121: 0.007288495794 | Q121: 0.01087467646 | R121: 0.02178838847 | S121: 0.0002756396281 | T121: 0.01899073487 | U121: 0.1784614154
E122: 0.0001318133819 | F122: 0.03443579233 | G122: 0.03495982544 | H122: 0.001721312439 | I122: 2.130155085e-05 | J122: 0.08783008036 | K122: 0.03659366975 | L122: 0.008902602659 | M122: 0.05928894608 | N122: 0.05177052059 | O122: 0.009820808191 | P122: 0.03811577194 | Q122: 0.1161633212 | R122: 0.09290457213 | S122: 0.05324182163 | T122: 0.01483902195 | U122: 0.1177992841
E123: 0.2218354329 | F123: 0.04070176583 | G123: 0.0002037432307 | H123: 0.00274310276 | I123: 0.06115839836 | J123: 0.1392372141 | K123: 0.2643127205 | L123: 0.5092955614 | M123: 0.7327321108 | N123: 0.2893945024 | O123: 0.3619990202 | P123: 0.08267277781 | Q123: 0.00110347644 | R123: 0.0002911559316 | S123: 0.04919887833 | T123: 0.02708487012 | U123: 0.2853572054
E124: 0.09551038859 | F124: 0.05576662155 | G124: 0.1688664369 | H124: 0.4062617575 | I124: 0.2286923929 | J124: 0.1284464162 | K124: 0.2853635475 | L124: 0.3325580535 | M124: 0.2933070301 | N124: 0.3062570992 | O124: 0.1452032276 | P124: 0.003836530796 | Q124: 0.07186748032 | R124: 0.3572425667 | S124: 1.146933859 | T124: 1.068141267 | U124: 1.145622254
E125: 0.06163800797 | F125: 0.1779805059 | G125: 0.7595065424 | H125: 0.5276227543 | I125: 0.2356141398 | J125: 0.5675355236 | K125: 0.1186189234 | L125: 1.745189678e-05 | M125: 0.005668306427 | N125: 0.06205209401 | O125: 0.07005714533 | P125: 0.001244115091 | Q125: 2.171883033e-05 | R125: 0.02593027024 | S125: 0.001096192242 | T125: 0.007419858864 | U125: 0.1113180468
E126: 0.01358246917 | F126: 0.01572734578 | G126: 0.03261912238 | H126: 0.08710433637 | I126: 0.06524839573 | J126: 0.2664298788 | K126: 0.2618668994 | L126: 0.2729799305 | M126: 0.01604100134 | N126: 0.06736058018 | O126: 0.08879116012 | P126: 0.007443055387 | Q126: 0.07599142039 | R126: 0.005036404297 | S126: 0.01445268122 | T126: 0.02231417819 | U126: 0.0264489151
E127: 2.448095485e-05 | F127: 0.04076447241 | G127: 0.02364282967 | H127: 0.07167264209 | I127: 0.1175645573 | J127: 0.0002767832536 | K127: 0.01477611585 | L127: 0.08049398427 | M127: 0.005170678664 | N127: 0.08789312786 | O127: 0.007401490248 | P127: 0.1229072405 | Q127: 0.06116835338 | R127: 0.3523256293 | S127: 0.0891474506 | T127: 0.01475350812 | U127: 0.001638423116
E128: 0.1279921394 | F128: 0.2245553512 | G128: 0.3258297702 | H128: 0.5585382737 | I128: 0.3572245229 | J128: 0.201704795 | K128: 0.2648792227 | L128: 0.2950385474 | M128: 0.3416577482 | N128: 0.194992553 | O128: 0.330994628 | P128: 0.08077323402 | Q128: 0.01032623731 | R128: 3.703232565e-05 | S128: 0.0001745250887 | T128: 0.01820163092 | U128: 0.005152161634
E129: 0.003830765634 | F129: 0.0282753012 | G129: 0.1261686601 | H129: 0.1660806113 | I129: 0.02656510205 | J129: 0.0005809066199 | K129: 0.09205688941 | L129: 0.1698848085 | M129: 0.4847497835 | N129: 0.4308024559 | O129: 0.3231868581 | P129: 0.1881737704 | Q129: 0.138526966 | R129: 0.004941558344 | S129: 0.0293322716 | T129: 0.04663621097 | U129: 0.0008229742634
E130: 0.03493819312 | F130: 0.1040905212 | G130: 0.06238235021 | H130: 0.03861741438 | I130: 0.03097242001 | J130: 0.0001740983406 | K130: 0.01350476681 | L130: 0.0004144818224 | M130: 0.01697664944 | N130: 0.006000448804 | O130: 0.0001425088497 | P130: 0.1379103309 | Q130: 0.1354725026 | R130: 0.2043106937 | S130: 0.4683206103 | T130: 0.7927345229 | U130: 0.08521701499
E131: 0.01138047013 | F131: 5.585538036e-07 | G131: 0.02712709515 | H131: 0.00136766814 | I131: 0.001932036804 | J131: 0.02365305759 | K131: 0.0001355043403 | L131: 0.09220778389 | M131: 0.0540895248 | N131: 0.06571020867 | O131: 0.01106201986 | P131: 6.601843233e-05 | Q131: 0.0104885787 | R131: 0.04684064612 | S131: 0.0004352037404 | T131: 0.304585607 | U131: 0.6182052522
E132: 0.01024412924 | F132: 0.0009606622096 | G132: 0.1400492469 | H132: 0.01051883919 | I132: 0.03790250139 | J132: 0.01390449963 | K132: 0.1104170008 | L132: 0.08720102999 | M132: 0.01855480512 | N132: 0.001730052448 | O132: 0.02888899564 | P132: 0.05047100308 | Q132: 0.3674569201 | R132: 0.1954501871 | S132: 0.2462534209 | T132: 0.04287935896 | U132: 0.1051016031
E133: 0.0346364195 | F133: 0.01901908102 | G133: 0.01079860275 | H133: 0.06302873567 | I133: 0.0726431919 | J133: 0.04777779853 | K133: 0.01019309015 | L133: 0.007758072408 | M133: 0.07610747362 | N133: 0.06219720726 | O133: 0.04785671546 | P133: 0.001490493962 | Q133: 0.003392373481 | R133: 0.1101614406 | S133: 0.005573305312 | T133: 0.0389027681 | U133: 0.3018765177
E134: 0.03313633343 | F134: 0.03795868042 | G134: 0.01030589621 | H134: 0.09496497138 | I134: 0.003765335969 | J134: 0.08302036552 | K134: 0.0721520215 | L134: 0.0001338881665 | M134: 0.0005002982719 | N134: 0.02526335999 | O134: 0.0001521400681 | P134: 0.01623967993 | Q134: 0.09154012868 | R134: 0.1640065503 | S134: 0.2790501083 | T134: 0.2188864638 | U134: 0.1672816335
E135: 0.005047135046 | F135: 0.02585266941 | G135: 0.09496082118 | H135: 0.1000506778 | I135: 0.04173623977 | J135: 0.002620002209 | K135: 0.01382461375 | L135: 0.01757996619 | M135: 0.05924458896 | N135: 0.1161757441 | O135: 0.2734709394 | P135: 0.1121848998 | Q135: 0.1554824064 | R135: 0.2436555515 | S135: 0.09046294338 | T135: 0.5012099916 | U135: 0.1316100604
E136: 2.06036661e-06 | F136: 0.001553200165 | G136: 0.0002559768899 | H136: 0.1338421889 | I136: 0.2814192262 | J136: 0.08322950078 | K136: 0.0001356473797 | L136: 0.02161733445 | M136: 4.3369817e-05 | N136: 0.005491678833 | O136: 0.03510319234 | P136: 0.03375557711 | Q136: 0.0169692503 | R136: 0.08581742728 | S136: 0.0413621312 | T136: 0.06049938604 | U136: 0.08633905298
E137: 0.01333191227 | F137: 0.0100977625 | G137: 0.3116339572 | H137: 0.8233912274 | I137: 0.5911618607 | J137: 0.03183308048 | K137: 0.06254138404 | L137: 0.02111328473 | M137: 0.04250687547 | N137: 0.008840144746 | O137: 0.001370417664 | P137: 0.01394242441 | Q137: 0.003981873841 | R137: 0.07873184398 | S137: 0.003538394225 | T137: 0.0008257942019 | U137: 0.01714674819
E138: 0.2017499915 | F138: 0.3049313396 | G138: 0.5408391705 | H138: 0.8974373832 | I138: 0.9231984222 | J138: 0.6297694497 | K138: 0.5837329211 | L138: 0.5020767382 | M138: 0.1753947315 | N138: 0.02352787608 | O138: 0.001579977278 | P138: 0.003768948325 | Q138: 0.008383392506 | R138: 0.02281298131 | S138: 0.2031019139 | T138: 0.05815729324 | U138: 0.03235336897
E139: 0.001141060659 | F139: 0.02611218497 | G139: 0.03236712414 | H139: 0.005462648212 | I139: 0.01692602297 | J139: 0.007284107595 | K139: 0.01114337578 | L139: 0.004205323064 | M139: 0.002897862576 | N139: 0.002444921907 | O139: 0.1551391481 | P139: 0.1044716753 | Q139: 0.009751760735 | R139: 0.0378871379 | S139: 0.1010785016 | T139: 0.3697609549 | U139: 0.05729738995
E140: 0.07876539735 | F140: 0.3368471561 | G140: 0.2867238001 | H140: 0.09666950288 | I140: 0.2173864926 | J140: 0.050571541 | K140: 0.09015819078 | L140: 0.1131642039 | M140: 0.04889136578 | N140: 0.03641967367 | O140: 0.06470848422 | P140: 0.2874144209 | Q140: 0.5142965643 | R140: 0.4139050272 | S140: 0.2089938735 | T140: 0.1492624449 | U140: 0.06203054783
E141: 0.1147048154 | F141: 0.01531990258 | G141: 0.00167878451 | H141: 0.1615087432 | I141: 0.01401358994 | J141: 0.0001275845291 | K141: 0.03166166885 | L141: 0.00011868311 | M141: 0.0004436723598 | N141: 7.131951178e-05 | O141: 0.1294432308 | P141: 0.1196176789 | Q141: 0.0126247207 | R141: 0.002942784216 | S141: 0.001567585046 | T141: 0.007220278271 | U141: 0.02149821666
E142: 0.009871087932 | F142: 0.04952312784 | G142: 5.60981552e-08 | H142: 0.0008365755483 | I142: 0.002586652566 | J142: 0.3652793675 | K142: 0.04633295383 | L142: 0.0233308746 | M142: 0.03315475308 | N142: 0.009568548069 | O142: 0.01839064478 | P142: 0.01194167433 | Q142: 0.07196778025 | R142: 0.1208178485 | S142: 0.1196310219 | T142: 0.1761193268 | U142: 0.1042577038
E143: 0.08218611306 | F143: 0.0869575299 | G143: 0.00751491189 | H143: 0.06371286458 | I143: 0.06050855026 | J143: 0.02265759473 | K143: 0.004911773605 | L143: 0.1659354195 | M143: 0.0525394991 | N143: 0.2284753653 | O143: 0.09045952799 | P143: 0.03019757022 | Q143: 0.008856102633 | R143: 0.001197672099 | S143: 0.0002348247168 | T143: 0.01944654994 | U143: 0.03295393716
E144: 0.06366205293 | F144: 0.08108959895 | G144: 0.03703918325 | H144: 0.001049500749 | I144: 0.001263734289 | J144: 0.002446013209 | K144: 0.02393989609 | L144: 0.1146016151 | M144: 0.0008834455844 | N144: 0.07963159105 | O144: 0.1485928134 | P144: 0.03683765228 | Q144: 0.08940323713 | R144: 0.1679797305 | S144: 0.02204531108 | T144: 5.265549099e-08 | U144: 0.02966577808
E145: 0.000487604772 | F145: 0.001008335001 | G145: 0.2089416379 | H145: 0.06021240768 | I145: 0.09937542058 | J145: 0.3178917533 | K145: 0.550931064 | L145: 0.5129183141 | M145: 0.5387759593 | N145: 0.672888887 | O145: 0.4212862516 | P145: 1.081956822e-05 | Q145: 0.001316473694 | R145: 0.001071732523 | S145: 0.03445574509 | T145: 0.0001799254272 | U145: 0.002058726964
E146: 0.002474738226 | F146: 0.01011910712 | G146: 0.045539467 | H146: 0.09096861536 | I146: 0.00345284066 | J146: 0.09836678333 | K146: 0.006925291873 | L146: 0.07133934423 | M146: 0.1599903879 | N146: 0.007840955911 | O146: 0.07260038967 | P146: 0.1527416346 | Q146: 0.3422150731 | R146: 0.1900759281 | S146: 0.07637907167 | T146: 0.2873702124 | U146: 0.1140811782
E147: 0.004530305373 | F147: 0.01133628946 | G147: 0.01220740402 | H147: 0.0386931154 | I147: 0.07476478293 | J147: 0.1130224585 | K147: 5.870224565e-07 | L147: 0.0003741749966 | M147: 0.01273456322 | N147: 0.02278667815 | O147: 0.007158774634 | P147: 0.1373112024 | Q147: 0.03123448661 | R147: 0.01201268173 | S147: 0.01700700252 | T147: 0.001018432287 | U147: 0.05946445363
E148: 0.02391957256 | F148: 0.0003431528778 | G148: 0.04565667777 | H148: 0.0003737563136 | I148: 0.001183104795 | J148: 0.06598349015 | K148: 0.03261138623 | L148: 0.06633873567 | M148: 0.08184705022 | N148: 0.04581517753 | O148: 0.1723604569 | P148: 0.07137389952 | Q148: 0.00254809057 | R148: 0.02457253358 | S148: 0.1096008383 | T148: 0.02008907732 | U148: 0.1577929382
E149: 0.1216919864 | F149: 0.04253050726 | G149: 0.1961163423 | H149: 0.09608136992 | I149: 0.2874138226 | J149: 0.07425226051 | K149: 0.07371833953 | L149: 0.08367838214 | M149: 0.01700397901 | N149: 0.01048655735 | O149: 0.04419779905 | P149: 0.07097869525 | Q149: 0.03533249014 | R149: 0.03498579089 | S149: 9.793852941e-06 | T149: 0.006237629456 | U149: 0.005496077213
E150: 0.07356419463 | F150: 0.01563391935 | G150: 0.09745525686 | H150: 0.4623118508 | I150: 0.484791907 | J150: 0.5557642843 | K150: 0.5289394665 | L150: 0.6964582945 | M150: 0.2347152671 | N150: 0.08636688538 | O150: 0.1801651157 | P150: 0.06051694342 | Q150: 0.1086737531 | R150: 0.06734647559 | S150: 0.0006212340767 | T150: 0.05563757568 | U150: 9.217943521e-05
E151: 0.3716075947 | F151: 0.3403920416 | G151: 0.19581507 | H151: 0.004830148544 | I151: 1.125624745e-05 | J151: 0.01519771282 | K151: 0.00701485505 | L151: 0.00477417717 | M151: 0.00342021753 | N151: 0.01869872449 | O151: 0.02073117037 | P151: 0.01401715258 | Q151: 0.004501593398 | R151: 0.04121557279 | S151: 0.04809076597 | T151: 0.008667776731 | U151: 0.006947152735
E152: 0.02456908142 | F152: 0.07319312997 | G152: 0.1639082792 | H152: 0.1372237744 | I152: 0.1669747222 | J152: 0.05476643491 | K152: 0.000534205284 | L152: 0.006392447573 | M152: 0.0007746839815 | N152: 0.01438117886 | O152: 7.068349726e-05 | P152: 0.000579976742 | Q152: 0.2513656226 | R152: 0.253119018 | S152: 0.4232547974 | T152: 0.6508093139 | U152: 0.5854710487
E153: 0.03174701317 | F153: 0.01795802086 | G153: 0.1516408177 | H153: 0.2519501312 | I153: 0.2665858731 | J153: 0.1012828873 | K153: 0.01378136131 | L153: 0.01048988325 | M153: 0.0001318058092 | N153: 0.04016621258 | O153: 0.006091629095 | P153: 0.02949322859 | Q153: 0.03806997166 | R153: 0.1928973341 | S153: 0.1111078619 | T153: 0.1215355924 | U153: 0.07559116649
E154: 0.04157581886 | F154: 0.1169216257 | G154: 0.007221936418 | H154: 0.002886586331 | I154: 0.008732016751 | J154: 0.02283081031 | K154: 0.1007229747 | L154: 0.1289069179 | M154: 0.05710292811 | N154: 0.2180299522 | O154: 0.1940366464 | P154: 0.01942365202 | Q154: 0.1822699507 | R154: 0.005940028063 | S154: 0.06761726455 | T154: 0.05163613812 | U154: 0.02332068065
E155: 0.1006091724 | F155: 0.07156345658 | G155: 0.005923342796 | H155: 0.03009144413 | I155: 0.006811712468 | J155: 0.03966959668 | K155: 0.0565586512 | L155: 0.04235967921 | M155: 2.130250859e-05 | N155: 0.0008426535976 | O155: 0.04034295692 | P155: 0.1728496763 | Q155: 0.08745917435 | R155: 0.1435952705 | S155: 0.04208672465 | T155: 0.2479388212 | U155: 0.3537022841
E156: 0.01023476073 | F156: 0.04060349019 | G156: 0.01197773105 | H156: 0.007737745076 | I156: 0.03174864388 | J156: 0.0009738724068 | K156: 0.0004659313905 | L156: 0.00360293945 | M156: 0.0213258146 | N156: 0.02510286568 | O156: 0.1096316357 | P156: 0.2589222176 | Q156: 0.8973888791 | R156: 1.386896229 | S156: 0.6051548165 | T156: 0.3424183724 | U156: 0.3219778002
E157: 0.06302283554 | F157: 0.2936359415 | G157: 0.416671333 | H157: 0.528355447 | I157: 0.7632797647 | J157: 0.1319387183 | K157: 0.1607606649 | L157: 0.05105308636 | M157: 0.003319621143 | N157: 0.00447385111 | O157: 0.01605940469 | P157: 0.04697028199 | Q157: 0.003336225258 | R157: 0.01133330162 | S157: 0.005182724551 | T157: 0.0186066932 | U157: 0.0001845817142
E158: 0.05417051083 | F158: 0.01757131991 | G158: 0.192751773 | H158: 0.1855757623 | I158: 0.08796115173 | J158: 0.02554060278 | K158: 0.04479102518 | L158: 0.1170796573 | M158: 0.01718605656 | N158: 0.0006947049977 | O158: 0.0690382395 | P158: 0.08824648367 | Q158: 0.09573775703 | R158: 0.1716167758 | S158: 0.2480599487 | T158: 0.01908537896 | U158: 0.04256883647
E159: 0.009836325917 | F159: 0.1634787577 | G159: 0.4913133815 | H159: 0.4584647517 | I159: 0.3364525595 | J159: 0.3280341939 | K159: 0.2870289859 | L159: 0.3530993729 | M159: 0.102990486 | N159: 0.07945641917 | O159: 0.2150865852 | P159: 0.2276679662 | Q159: 0.2197619359 | R159: 0.1672122994 | S159: 0.1635263061 | T159: 0.113450361 | U159: 0.3230711963
E160: 0.001701597379 | F160: 0.0475865177 | G160: 0.1073108062 | H160: 0.2849314181 | I160: 0.1240388259 | J160: 0.1109031704 | K160: 0.08044910491 | L160: 0.0004169696725 | M160: 7.873624833e-05 | N160: 0.004561452305 | O160: 0.1116100593 | P160: 0.003718621903 | Q160: 0.05359803228 | R160: 0.06764442425 | S160: 0.2687411126 | T160: 0.08748213242 | U160: 0.1181015411
E161: 0.0506669489 | F161: 0.02579634178 | G161: 0.0351304582 | H161: 0.003626142812 | I161: 0.01171873807 | J161: 0.04787820425 | K161: 0.01038448767 | L161: 0.0007133444288 | M161: 0.005408982703 | N161: 0.001705458885 | O161: 0.03874726281 | P161: 0.01693517095 | Q161: 0.06925108013 | R161: 0.02195229972 | S161: 6.869575262e-07 | T161: 2.036354017e-05 | U161: 0.02226587105
E162: 0.0002820289837 | F162: 0.04601447348 | G162: 0.1008110905 | H162: 0.0001448947467 | I162: 0.03650102286 | J162: 0.01887807822 | K162: 0.04106590548 | L162: 0.0002250219224 | M162: 0.01649080541 | N162: 0.01012670053 | O162: 0.01213983622 | P162: 0.04108660409 | Q162: 0.01769708243 | R162: 0.002953742775 | S162: 0.008596057656 | T162: 0.01727339666 | U162: 0.2960810972
E163: 0.2899651744 | F163: 0.1917846036 | G163: 0.01753555985 | H163: 0.006811696853 | I163: 0.008182379819 | J163: 0.03683837993 | K163: 0.561215922 | L163: 0.4884552903 | M163: 0.4070778404 | N163: 0.008030574496 | O163: 0.01054103504 | P163: 0.02071894119 | Q163: 0.003822853438 | R163: 0.01714566874 | S163: 0.003774106379 | T163: 0.09895016955 | U163: 0.05433259765
E164: 0.001606403738 | F164: 0.07771169123 | G164: 0.1469734475 | H164: 0.3703212242 | I164: 0.02368897501 | J164: 0.0427524613 | K164: 0.06241256611 | L164: 0.03775264049 | M164: 0.0748212602 | N164: 0.1248960973 | O164: 0.271591476 | P164: 0.034142973 | Q164: 0.08693912129 | R164: 0.1561259331 | S164: 0.3119825565 | T164: 0.5845823797 | U164: 0.8591873462
E165: 0.03217582407 | F165: 0.00285055466 | G165: 0.07534028357 | H165: 0.0303438827 | I165: 0.04507998464 | J165: 0.0188664148 | K165: 0.005956760215 | L165: 0.2522431561 | M165: 0.3344478168 | N165: 0.0732131053 | O165: 0.1185308053 | P165: 0.1753107197 | Q165: 0.1312558469 | R165: 0.1820133397 | S165: 0.07284732318 | T165: 0.005043682013 | U165: 0.001126258978
E166: 0.001027788106 | F166: 0.02389151058 | G166: 0.001068910612 | H166: 0.03087118704 | I166: 6.249960654e-05 | J166: 0.0045963353 | K166: 0.08248700053 | L166: 0.1071847571 | M166: 0.1332564677 | N166: 0.09882293031 | O166: 0.02512101525 | P166: 0.09022362445 | Q166: 0.007124948101 | R166: 0.01329237331 | S166: 0.06040445706 | T166: 0.1371767528 | U166: 0.2335344533
E167: 0.005468829727 | F167: 0.00608097016 | G167: 0.03550430044 | H167: 0.125455139 | I167: 0.07306271715 | J167: 0.03773834789 | K167: 0.01889349993 | L167: 0.04563497645 | M167: 0.1442151509 | N167: 0.2026450843 | O167: 0.0878469187 | P167: 0.309694509 | Q167: 0.07946034739 | R167: 0.00832927582 | S167: 0.1716393093 | T167: 0.04345642165 | U167: 0.04362849746
E168: 0.05198113732 | F168: 0.4067892268 | G168: 0.3573919337 | H168: 0.1598624709 | I168: 0.03848365424 | J168: 0.02883993072 | K168: 0.0255598042 | L168: 0.08359469076 | M168: 0.006769073033 | N168: 0.04591858486 | O168: 0.008279657319 | P168: 4.367277748e-05 | Q168: 0.07243873751 | R168: 0.08957928132 | S168: 0.05987589074 | T168: 0.02202329153 | U168: 0.06281690919
E169: 0.03042704305 | F169: 0.008236379275 | G169: 0.07845651528 | H169: 0.01455491858 | I169: 0.01262586989 | J169: 0.01514766687 | K169: 0.007153942718 | L169: 0.0003130065539 | M169: 0.007567567107 | N169: 0.07383428036 | O169: 0.04187917895 | P169: 0.134762006 | Q169: 0.1091712826 | R169: 0.008441027499 | S169: 0.1283106118 | T169: 0.05650360869 | U169: 0.005129704282
E170: 0.01080142801 | F170: 0.01272430634 | G170: 0.06410941604 | H170: 0.08565969261 | I170: 0.03727160201 | J170: 0.2459992312 | K170: 0.4585155067 | L170: 0.3324204363 | M170: 0.3188640103 | N170: 0.2151283339 | O170: 0.1509071322 | P170: 0.01239669346 | Q170: 0.002995818684 | R170: 0.1020406505 | S170: 0.04934004938 | T170: 0.1252324819 | U170: 0.009414689552
E171: 0.02471744241 | F171: 0.0007384385027 | G171: 0.01729460372 | H171: 0.09669639812 | I171: 0.0106845019 | J171: 0.03213016705 | K171: 0.02571103579 | L171: 0.01814718329 | M171: 0.0132333302 | N171: 0.02954455189 | O171: 0.03669722053 | P171: 0.09907153896 | Q171: 0.133752431 | R171: 0.22082768 | S171: 0.1546569624 | T171: 0.04833164158 | U171: 0.02445267361
E172: 0.07345416194 | F172: 0.002597230414 | G172: 0.01615417935 | H172: 4.535668877e-05 | I172: 4.295443795e-05 | J172: 0.00103468164 | K172: 0.004029192262 | L172: 0.003803564607 | M172: 0.006553363657 | N172: 0.0118154513 | O172: 0.004307238337 | P172: 4.838939574e-06 | Q172: 0.03194182541 | R172: 0.01211211969 | S172: 0.008068799834 | T172: 0.01116325054 | U172: 0.05262758907
E173: 0.09949113854 | F173: 0.0840851483 | G173: 0.03137339081 | H173: 0.06373644923 | I173: 0.03062421143 | J173: 0.01140600529 | K173: 0.01894300973 | L173: 0.1171137658 | M173: 0.1252242685 | N173: 0.1491359752 | O173: 0.05477203594 | P173: 0.06743546764 | Q173: 0.179651879 | R173: 0.2602114481 | S173: 0.2625731541 | T173: 0.4373334537 | U173: 0.07430138049
E174: 0.03157868677 | F174: 0.04341814458 | G174: 0.07395622483 | H174: 0.09050656245 | I174: 0.1401948375 | J174: 0.2345823637 | K174: 0.1636108141 | L174: 0.03398814839 | M174: 0.2027482106 | N174: 0.3530235784 | O174: 0.3473104607 | P174: 0.2158661986 | Q174: 0.5420246956 | R174: 0.1888603291 | S174: 0.3552108912 | T174: 0.2612049588 | U174: 0.01079014207
E175: 0.00220963367 | F175: 0.004712057175 | G175: 0.09904820386 | H175: 0.03668897334 | I175: 0.0005955748495 | J175: 0.01289373998 | K175: 0.1326161931 | L175: 0.007999766646 | M175: 0.03501203159 | N175: 9.328431619e-05 | O175: 0.001821310169 | P175: 0.003688690415 | Q175: 0.1517682788 | R175: 0.219160511 | S175: 0.172686669 | T175: 0.4193156493 | U175: 0.2715242821
E176: 0.009456611858 | F176: 0.02826056639 | G176: 0.00189807983 | H176: 0.01090974158 | I176: 0.00026228283 | J176: 0.1015048276 | K176: 0.07717067006 | L176: 0.0005439664774 | M176: 0.01369006124 | N176: 0.003793605263 | O176: 0.05207645292 | P176: 0.1251176649 | Q176: 0.0320284582 | R176: 0.2477438261 | S176: 0.1236397219 | T176: 0.08109899285 | U176: 0.001116285625
E177: 0.0515402497 | F177: 0.08604145967 | G177: 0.08944857597 | H177: 0.02070090851 | I177: 0.001727198452 | J177: 1.44360969e-05 | K177: 0.01334091508 | L177: 0.01447700328 | M177: 0.02937889408 | N177: 0.0004043194479 | O177: 0.2886788251 | P177: 0.01956693636 | Q177: 0.05098577606 | R177: 0.1303905588 | S177: 0.2321421092 | T177: 0.2207883304 | U177: 0.0237600619
E178: 0.005528835152 | F178: 1.625449956e-05 | G178: 0.04608785951 | H178: 0.01241187506 | I178: 0.05787229267 | J178: 0.007790440078 | K178: 0.06874801214 | L178: 0.07169147513 | M178: 0.2508762758 | N178: 0.1638795148 | O178: 0.2390142808 | P178: 0.1984277109 | Q178: 0.5313807888 | R178: 0.316553106 | S178: 0.324737364 | T178: 0.3534652883 | U178: 0.3199275407
E179: 0.04061821435 | F179: 0.02999353976 | G179: 0.07717865467 | H179: 0.3545393978 | I179: 0.4380077656 | J179: 0.3786138639 | K179: 0.1408764309 | L179: 0.03212585594 | M179: 0.03029613583 | N179: 0.00313810664 | O179: 0.09563743317 | P179: 0.1986777251 | Q179: 0.01914501133 | R179: 0.01545723169 | S179: 0.1361827635 | T179: 0.002931992732 | U179: 0.1628999148
E180: 0.02972050978 | F180: 0.000180456869 | G180: 0.03026809822 | H180: 0.01229442576 | I180: 0.04149258016 | J180: 0.006062579646 | K180: 0.04742285519 | L180: 0.04946100409 | M180: 0.008713855565 | N180: 0.007261732479 | O180: 0.0002227741689 | P180: 0.2022294182 | Q180: 0.07242812522 | R180: 0.1160327715 | S180: 0.1432860594 | T180: 0.0790906866 | U180: 0.007800158412
E181: 0.004890321184 | F181: 0.001442762376 | G181: 0.05176202976 | H181: 0.07538063088 | I181: 0.1299559116 | J181: 0.2216764099 | K181: 0.2862882628 | L181: 0.1140374102 | M181: 0.3145680248 | N181: 0.1599783913 | O181: 0.1123539398 | P181: 0.02438487031 | Q181: 0.003044588928 | R181: 0.001092157114 | S181: 0.03286128387 | T181: 0.0220562156 | U181: 0.005243931791
E182: 0.01173292815 | F182: 0.1551227402 | G182: 0.2829335626 | H182: 0.01716982419 | I182: 0.01807270814 | J182: 0.01119520957 | K182: 0.2753410096 | L182: 0.003806788525 | M182: 0.0006490657471 | N182: 0.002257910679 | O182: 0.01732564679 | P182: 0.01192491262 | Q182: 0.006951873917 | R182: 0.07259330219 | S182: 0.06096899556 | T182: 0.003092766353 | U182: 0.02310436736
E183: 0.1193149537 | F183: 0.03758943676 | G183: 0.04474325864 | H183: 0.04850099353 | I183: 0.07606018783 | J183: 0.00437415203 | K183: 0.1276392388 | L183: 0.2103472298 | M183: 0.8031837049 | N183: 1.313960853 | O183: 1.068229841 | P183: 0.2461416642 | Q183: 0.1040383679 | R183: 0.1007723503 | S183: 0.006628338914 | T183: 0.1458360575 | U183: 0.0002870124417
E184: 0.01343854526 | F184: 0.0135848713 | G184: 0.1862297428 | H184: 0.04211813321 | I184: 0.5577859025 | J184: 0.6203944238 | K184: 0.1168351036 | L184: 0.02810347706 | M184: 0.008816579807 | N184: 0.0252969979 | O184: 0.08313254418 | P184: 0.2143846604 | Q184: 0.1771455828 | R184: 0.02590265009 | S184: 0.02851089075 | T184: 0.0005666276933 | U184: 0.01807964227
E185: 0.07881712817 | F185: 0.1343845441 | G185: 0.06726412953 | H185: 0.0423193495 | I185: 0.2193514229 | J185: 0.1045339627 | K185: 0.02688294889 | L185: 0.0146475159 | M185: 0.02379402127 | N185: 0.1043918608 | O185: 0.01682313338 | P185: 5.493460503e-08 | Q185: 0.1541416192 | R185: 0.1073992125 | S185: 0.1792068473 | T185: 0.4349543641 | U185: 0.4786989529
E186: 0.1611417222 | F186: 0.03298500984 | G186: 0.02864022694 | H186: 0.2139053552 | I186: 0.04093071544 | J186: 0.4247052335 | K186: 0.3772240782 | L186: 0.1333800443 | M186: 0.1539874686 | N186: 0.003333478544 | O186: 0.01670675213 | P186: 0.003546888835 | Q186: 0.002775186254 | R186: 0.002485463238 | S186: 0.01669483907 | T186: 0.002897328478 | U186: 0.006135465247
E187: 0.1194451834 | F187: 0.03610774499 | G187: 0.1010753201 | H187: 0.5370024207 | I187: 0.2658649798 | J187: 0.1434475858 | K187: 0.2114021649 | L187: 0.2637004613 | M187: 0.2151653607 | N187: 0.4835879781 | O187: 0.500425953 | P187: 0.4593162032 | Q187: 0.2696402026 | R187: 0.0167764415 | S187: 0.005014024677 | T187: 0.1013862305 | U187: 0.08224746577
E188: 0.2239746652 | F188: 0.06560607183 | G188: 0.07266270344 | H188: 0.0002389206876 | I188: 0.01309568348 | J188: 0.03285881206 | K188: 0.206321497 | L188: 0.4661865132 | M188: 0.1913808219 | N188: 0.05759889781 | O188: 0.01118324377 | P188: 0.02460539877 | Q188: 0.01280126889 | R188: 0.01362236984 | S188: 0.02582476741 | T188: 0.09319794885 | U188: 0.02494260075
E189: 0.0002640424573 | F189: 0.03026414086 | G189: 0.2330991965 | H189: 0.4468744375 | I189: 0.8086607442 | J189: 0.4073426085 | K189: 0.1967565381 | L189: 0.6988133876 | M189: 0.5275521948 | N189: 0.2750948188 | O189: 0.09742381865 | P189: 0.02946496513 | Q189: 0.02822611533 | R189: 0.1797372678 | S189: 0.02324419993 | T189: 0.08417172955 | U189: 0.03353560069
E190: 0.02783271021 | F190: 0.04517181523 | G190: 0.008665902587 | H190: 0.008946839918 | I190: 0.1307112701 | J190: 0.03001718795 | K190: 0.05517052331 | L190: 0.2815252761 | M190: 0.128360556 | N190: 0.0330341988 | O190: 0.01528308734 | P190: 0.2645687097 | Q190: 7.095239412e-05 | R190: 0.06076642713 | S190: 0.001077012397 | T190: 2.5297956e-05 | U190: 0.0835212968
E191: 0.0006099385706 | F191: 0.02544485395 | G191: 0.01433302243 | H191: 0.007900571606 | I191: 0.0155884777 | J191: 0.004870697202 | K191: 0.000189054628 | L191: 0.002529375809 | M191: 0.0002160350124 | N191: 0.01931334762 | O191: 0.009037243932 | P191: 0.02112505853 | Q191: 0.06830202466 | R191: 0.00240493122 | S191: 0.008708982132 | T191: 0.03297681222 | U191: 0.0139004662
E192: 0.0318347553 | F192: 0.1681554669 | G192: 0.4102683681 | H192: 0.3649281844 | I192: 0.2580716905 | J192: 0.1146384482 | K192: 0.06445295003 | L192: 0.03671756941 | M192: 0.02027154868 | N192: 0.01727253197 | O192: 0.1305669589 | P192: 0.3279672613 | Q192: 0.0862479925 | R192: 0.05199070341 | S192: 0.01148951263 | T192: 0.004552102834 | U192: 0.00987477439
E193: 0.002376306122 | F193: 0.05477921645 | G193: 0.02921967154 | H193: 0.1449737902 | I193: 0.004089804515 | J193: 0.01150450489 | K193: 0.009182354646 | L193: 0.05924472162 | M193: 0.1727855014 | N193: 9.337333191e-06 | O193: 0.01416695239 | P193: 0.00921229962 | Q193: 0.06503752844 | R193: 0.156145908 | S193: 0.03297668341 | T193: 0.03854579969 | U193: 0.003134021035
E194: 0.06552332152 | F194: 0.04457801695 | G194: 0.01584260924 | H194: 0.07506423716 | I194: 0.1064489425 | J194: 0.3166130517 | K194: 0.08311339307 | L194: 0.03841176059 | M194: 0.004281928918 | N194: 0.06866751656 | O194: 0.2706825086 | P194: 0.0803830227 | Q194: 0.02008347263 | R194: 0.0110669668 | S194: 0.002376111086 | T194: 0.02660132065 | U194: 0.02248872098
E195: 0.06026603718 | F195: 0.06540588399 | G195: 0.01630072406 | H195: 0.002380746 | I195: 0.0530031545 | J195: 0.03659387043 | K195: 0.03768348349 | L195: 0.2417186428 | M195: 0.2712201238 | N195: 0.0485656433 | O195: 0.01010718282 | P195: 0.00589900811 | Q195: 0.01078866061 | R195: 0.04583926959 | S195: 0.1117415427 | T195: 0.5205220818 | U195: 0.3549545215
E196: 0.02641152744 | F196: 0.2958520823 | G196: 0.09502120768 | H196: 0.0002330095173 | I196: 0.06068585718 | J196: 0.03908926042 | K196: 0.006583471703 | L196: 0.001660670846 | M196: 0.0001011491998 | N196: 0.02399157834 | O196: 0.003837288693 | P196: 0.005592255369 | Q196: 0.2049051895 | R196: 0.1653905341 | S196: 0.03011687664 | T196: 0.001238496486 | U196: 0.09983825023
E197: 0.05161792331 | F197: 0.1371978014 | G197: 0.02172706701 | H197: 0.18479185 | I197: 0.1014788961 | J197: 0.004480291423 | K197: 0.06867253507 | L197: 0.04896508226 | M197: 0.07799120736 | N197: 0.003125602319 | O197: 0.1931781939 | P197: 0.03172393695 | Q197: 0.06049128469 | R197: 0.2673261872 | S197: 0.1573115579 | T197: 0.2539341431 | U197: 0.207737356
E198: 0.0001812574178 | F198: 0.01750246064 | G198: 0.3218123655 | H198: 0.1301165896 | I198: 0.114140498 | J198: 0.03137330592 | K198: 0.001525929719 | L198: 0.09516081918 | M198: 0.3313699763 | N198: 0.1538792642 | O198: 0.01101688671 | P198: 0.001456346196 | Q198: 0.1007067465 | R198: 0.02536076224 | S198: 0.08761489541 | T198: 0.01673619591 | U198: 0.001004201912
E199: 0.04454922031 | F199: 0.1442864481 | G199: 0.4765831476 | H199: 0.1320523845 | I199: 0.4307821613 | J199: 0.8396611016 | K199: 0.9934897057 | L199: 0.974447568 | M199: 0.4494097915 | N199: 0.3211911222 | O199: 0.02733161605 | P199: 0.3414216273 | Q199: 0.2173615436 | R199: 0.1673081449 | S199: 0.004632758907 | T199: 0.06143887742 | U199: 0.07147894059
E200: 0.07947770224 | F200: 0.007603110164 | G200: 0.04688329969 | H200: 0.06893023898 | I200: 0.1647843542 | J200: 0.007594048833 | K200: 0.1692262106 | L200: 0.0528396044 | M200: 0.07846756192 | N200: 0.04242908791 | O200: 0.04240044009 | P200: 0.05326851797 | Q200: 0.01186165605 | R200: 0.001352018874 | S200: 0.03007434894 | T200: 0.02428891804 | U200: 5.031336528e-05
E201: 0.03046432003 | F201: 5.160247245e-05 | G201: 0.0042254274 | H201: 0.113674638 | I201: 0.1694574263 | J201: 0.139371454 | K201: 0.007449476816 | L201: 0.05598157268 | M201: 0.03637388108 | N201: 0.02836567251 | O201: 0.04720836801 | P201: 0.04753801862 | Q201: 0.0542484985 | R201: 0.06220789048 | S201: 0.03790044714 | T201: 0.004395034989 | U201: 0.03089465166
E202: 0.001891135474 | F202: 6.341148395e-05 | G202: 0.05230652825 | H202: 0.0008704939204 | I202: 0.06738474128 | J202: 0.1263485402 | K202: 0.06856982333 | L202: 0.01103859554 | M202: 0.1059376445 | N202: 0.003826787464 | O202: 0.004779799488 | P202: 0.1655660094 | Q202: 0.07565374973 | R202: 0.04168518246 | S202: 0.08978443175 | T202: 0.05059862813 | U202: 0.3196427513
... 4298 more rows

Sheet MR Variance with Time
C1: Simulations4 | E1: 10000 | M1: Mean Reverting Series with 100% Mean Reverision
C3: Row Start4 | E3: 17
C6: Time Period | E6: 1 | F6: 2 | G6: 3 | H6: 4 | I6: 5 | J6: 6 | K6: 7 | L6: 8 | M6: 9 | N6: 10 | O6: 11 | P6: 12 | Q6: 13 | R6: 14 | S6: 15 | T6: 16 | U6: 17 | V6: 18
C7: Median of Growth ^ 2 (Variance) | E7: =MEDIAN(E17:E1000016) -> 0.01727824672 | F7: =MEDIAN(F17:F1000016) -> 0.03065138521 | G7: =MEDIAN(G17:G1000016) -> 0.03748616588 | H7: 0.04268834447 | I7: 0.0445334771 | J7: 0.04621297266 | K7: 0.04726818971 | L7: 0.05001790859 | M7: 0.048833804 | N7: 0.05069460247 | O7: 0.04920180567 | P7: 0.04975687771 | Q7: 0.05030832796 | R7: 0.04896825311 | S7: 0.04889609285 | T7: 0.04847858586 | U7: 0.04886622448 | V7: 0.537481165 | AQ7: Average | AR7: =AVERAGE(E14:E16) -> 
C8: Square Root of Growth - Std Dev | E8: =E7^0.5 -> 0.1314467448 | F8: 0.1750753701 | G8: 0.1936134445 | H8: 0.2066115788 | I8: 0.2110295645 | J8: 0.2149720276 | K8: 0.2174124875 | L8: 0.223646839 | M8: 0.2209837188 | N8: 0.225154619 | O8: 0.2218148004 | P8: 0.2230624973 | Q8: 0.2242951804 | R8: 0.2212877157 | S8: 0.2211246093 | T8: 0.2201785318 | U8: 0.2210570616 | V8: 0.7331310694
C9: Time Period ^ .5 | F9: =F6^0.5 -> 1.414213562 | G9: 1.732050808 | H9: 2 | I9: 2.236067977 | J9: 2.449489743 | K9: 2.645751311 | L9: 2.828427125 | M9: 3 | N9: 3.16227766 | O9: 3.31662479 | P9: 3.464101615 | Q9: 3.605551275 | R9: 3.741657387 | S9: 3.872983346 | T9: 4 | U9: 4.123105626 | V9: 4.242640687
C10: Square Root Relative to First | F10: =F8/$E$8 -> 1.331911036 | G10: 1.472942101 | H10: 1.571827275 | I10: 1.605437737 | J10: 1.635430592 | K10: 1.653996741 | L10: 1.701425466 | M10: 1.681165397 | N10: 1.712896119 | O10: 1.687487969 | P10: 1.696980002 | Q10: 1.706357816 | R10: 1.683478096 | S10: 1.682237241 | T10: 1.67503982 | U10: 1.681723362 | V10: 5.577399962
C12: Average of Growth ^ 2 (Variance) | E12: =AVERAGE(E16:E10006) -> 0.03930603908 | F12: =AVERAGE(F17:F10006) -> 0.06509186709 | G12: =AVERAGE(G17:G10006) -> 0.08165957132 | H12: 0.09310672646 | I12: 0.09967933827 | J12: 0.1027907538 | K12: 0.1064386258 | L12: 0.1105835162 | M12: 0.1125772881 | N12: 0.1130022014 | O12: 0.114987884 | P12: 0.1159042488 | Q12: 0.1153825258 | R12: 0.1143763967 | S12: 0.1143056192 | T12: 0.1150395197 | U12: 0.1149854585 | V12: 0.537481165
C13: Square Root of Growth - Std Dev | E13: =SQRT(E12) -> 0.198257507 | F13: 0.2551310782 | G13: 0.2857613888 | H13: 0.3051339484 | I13: 0.3157203482 | J13: 0.3206099714 | K13: 0.3262493307 | L13: 0.3325409992 | M13: 0.3355253912 | N13: 0.3361580007 | O13: 0.3390986346 | P13: 0.3404471307 | Q13: 0.3396800344 | R13: 0.3381957964 | S13: 0.3380911404 | T13: 0.3391747628 | U13: 0.3390950581 | V13: 0.7331310694 | AQ13: Bins | AR13: 30
C14: Square Root Relative to First | F14: =F13/$E$13 -> 1.286867177 | G14: =G13/$E$13 -> 1.441364784 | H14: 1.539078913 | I14: 1.592476134 | J14: 1.617139125 | K14: 1.645583744 | L14: 1.677318576 | M14: 1.692371685 | N14: 1.695562533 | O14: 1.710394929 | P14: 1.717196669 | Q14: 1.713327478 | R14: 1.705841063 | S14: 1.705313183 | T14: 1.710778915 | U14: 1.71037689 | V14: 3.697872936 | AQ14: Min | AR14: =MIN(G14:G16) -> 1.441364784
C15: Variance Relative to First | F15: =F12/$E$12 -> 1.65602713 | G15: =G12/$E$12 -> 2.077532441 | H15: 2.368763901 | I15: 2.535980236 | J15: 2.615138951 | K15: 2.70794586 | L15: 2.813397604 | M15: 2.864121921 | N15: 2.874932302 | O15: 2.925450813 | P15: 2.948764402 | Q15: 2.935491046 | R15: 2.909893731 | S15: 2.908093054 | T15: 2.926764498 | U15: 2.925389104 | V15: 13.67426425 | AQ15: Max | AR15: =MAX(G14:G16) -> 2.077532441
AQ16: Increment | AR16: =(AR15-AR14)/(AR13-1) -> 0.02193681576
V17: 0.537481165
E18: 0.002790107858 | F18: 0.1322819177 | G18: 0.04072639561 | H18: 0.4063128901 | I18: 0.4353735387 | J18: 0.4677034795 | K18: 0.7595963296 | L18: 0.7765419536 | M18: 0.3487501549 | N18: 0.2775939847 | O18: 0.1999819235 | P18: 0.4305313562 | Q18: 0.07827784834 | R18: 0.2001127555 | S18: 0.1536931469 | T18: 0.1078708814 | U18: 0.1965226748
E19: 0.006562692026 | F19: 0.3477674805 | G19: 0.07970981736 | H19: 0.03405954954 | I19: 0.0002963399759 | J19: 0.05216634788 | K19: 0.01093357272 | L19: 0.01191657057 | M19: 0.0876901549 | N19: 0.01286601925 | O19: 0.02681975421 | P19: 0.0002210588461 | Q19: 0.003797724297 | R19: 0.1507177576 | S19: 0.6355417019 | T19: 0.2086745758 | U19: 0.05765994418
E20: 0.0121892409 | F20: 0.188396808 | G20: 0.2321461658 | H20: 0.1786214341 | I20: 0.06853166946 | J20: 0.08269929627 | K20: 0.07929907277 | L20: 0.01477932662 | M20: 0.007694927938 | N20: 0.01613429277 | O20: 0.03177267675 | P20: 0.02593054674 | Q20: 0.04155876491 | R20: 0.2212162023 | S20: 0.169529772 | T20: 0.3765495239 | U20: 0.3420576263
E21: 0.002097300872 | F21: 0.1094307062 | G21: 0.05260514268 | H21: 1.337263551e-05 | I21: 0.01715234856 | J21: 0.007177657406 | K21: 0.003202954087 | L21: 0.003812671169 | M21: 0.03918631031 | N21: 1.701900727e-07 | O21: 0.00328141779 | P21: 0.1616449929 | Q21: 0.1156833811 | R21: 0.03714340663 | S21: 0.02674508112 | T21: 0.02464050502 | U21: 0.1081230655
E22: 0.01255082331 | F22: 0.008853322991 | G22: 0.005342184913 | H22: 0.2535231448 | I22: 0.01215638757 | J22: 0.003330233962 | K22: 0.01113678411 | L22: 0.0002183970479 | M22: 0.00810514566 | N22: 0.02263546511 | O22: 0.4064908742 | P22: 0.1633492398 | Q22: 0.099814766 | R22: 0.1353310259 | S22: 0.1095593061 | T22: 0.1451129328 | U22: 0.03220015906
E23: 0.02006037413 | F23: 0.05042686127 | G23: 0.08588049527 | H23: 0.2369001676 | I23: 0.04354550486 | J23: 0.1192519303 | K23: 0.06115547761 | L23: 0.04000669161 | M23: 0.01701920626 | N23: 0.01326252431 | O23: 0.1459650313 | P23: 0.07449694593 | Q23: 0.1805083807 | R23: 0.02308276779 | S23: 0.009197705196 | T23: 0.007995130376 | U23: 0.0001580963845
E24: 0.001456148504 | F24: 0.08050630188 | G24: 0.04227246095 | H24: 0.05541947241 | I24: 4.25556708e-06 | J24: 0.0176088599 | K24: 0.002360646224 | L24: 0.002127380525 | M24: 0.02616130691 | N24: 0.1153169989 | O24: 0.3344319958 | P24: 0.5068180694 | Q24: 0.5548619797 | R24: 0.9266303111 | S24: 2.096750044 | T24: 1.75318708 | U24: 1.401268216
E25: 0.08506925765 | F25: 0.1028125427 | G25: 0.1415973129 | H25: 0.005604079063 | I25: 0.07253020092 | J25: 0.07798654133 | K25: 0.01937455226 | L25: 0.05037104711 | M25: 0.0372672063 | N25: 3.097741009e-05 | O25: 0.01223541212 | P25: 0.05285349852 | Q25: 0.008428521868 | R25: 4.68767265e-05 | S25: 0.01004539474 | T25: 0.09368002901 | U25: 0.05828667864
E26: 0.124231583 | F26: 0.08765861146 | G26: 0.07739174298 | H26: 0.1055094919 | I26: 0.1485900003 | J26: 0.05668126517 | K26: 0.004288236023 | L26: 0.003080456196 | M26: 0.002619746917 | N26: 0.0003381134112 | O26: 0.0007967912757 | P26: 0.04076485385 | Q26: 0.01303451601 | R26: 0.005377817699 | S26: 0.07777861723 | T26: 0.0008704718567 | U26: 0.006999860762
E27: 0.005559681879 | F27: 0.005979013908 | G27: 0.002886096676 | H27: 0.07913216897 | I27: 0.03751704371 | J27: 0.03166680395 | K27: 0.06231040326 | L27: 0.004484813364 | M27: 0.03870688004 | N27: 0.0616191266 | O27: 0.0005176705578 | P27: 0.1104377459 | Q27: 0.005202757874 | R27: 0.006460438789 | S27: 0.2510372178 | T27: 0.05315538428 | U27: 0.00120464294
E28: 0.007306593915 | F28: 0.00804476157 | G28: 0.1099430533 | H28: 0.1186500036 | I28: 0.1727855977 | J28: 0.1080335281 | K28: 0.2632045416 | L28: 0.007218266632 | M28: 0.0001673951864 | N28: 0.001966669121 | O28: 0.01522167808 | P28: 0.07314269137 | Q28: 0.00552399288 | R28: 0.02198185755 | S28: 0.08860502523 | T28: 0.01961369143 | U28: 0.1160019211
E29: 0.01858869988 | F29: 0.06793213079 | G29: 0.03003713457 | H29: 0.03504131859 | I29: 0.1958310313 | J29: 0.1898415322 | K29: 0.1673284605 | L29: 0.0003135019104 | M29: 0.003509130127 | N29: 0.00161447358 | O29: 0.008846465541 | P29: 0.01253843996 | Q29: 0.01183329361 | R29: 0.2870598509 | S29: 0.06668120718 | T29: 0.0005143465975 | U29: 0.04832499574
E30: 0.16484239 | F30: 0.2119100997 | G30: 0.2297143221 | H30: 0.02854032152 | I30: 0.02321731508 | J30: 0.1453852755 | K30: 0.06907437978 | L30: 0.1201908251 | M30: 0.1310516225 | N30: 0.02162198797 | O30: 0.05672549111 | P30: 0.01924269854 | Q30: 0.0004420134406 | R30: 0.002683261346 | S30: 2.961493749e-05 | T30: 0.05312640496 | U30: 0.0002005352735
E31: 0.001261571022 | F31: 0.02529901879 | G31: 0.004815531506 | H31: 0.02240310602 | I31: 0.05211715401 | J31: 0.05864121425 | K31: 0.01431134421 | L31: 0.05829294212 | M31: 5.128721021e-06 | N31: 0.002356512979 | O31: 0.005429208692 | P31: 0.001469157771 | Q31: 0.001884235431 | R31: 0.01490462552 | S31: 0.01381272954 | T31: 0.00955499262 | U31: 0.02746089468
E32: 0.01937064341 | F32: 0.007449806816 | G32: 0.01908285374 | H32: 0.07388063216 | I32: 0.09888410961 | J32: 2.319940787e-05 | K32: 0.01262136847 | L32: 0.08765881717 | M32: 0.08084785706 | N32: 0.2867145046 | O32: 0.112355952 | P32: 0.08553681971 | Q32: 0.1059623754 | R32: 0.02018462668 | S32: 0.002074614605 | T32: 0.05516112768 | U32: 0.005622668099
E33: 0.1164865262 | F33: 0.0004495737636 | G33: 0.1128488426 | H33: 0.2589056293 | I33: 0.6767523974 | J33: 0.5268291326 | K33: 1.019456332 | L33: 0.7155255106 | M33: 0.720431991 | N33: 0.744550622 | O33: 0.06658232741 | P33: 0.05202092868 | Q33: 0.3518265927 | R33: 0.6720085236 | S33: 0.3134010836 | T33: 0.06086066755 | U33: 0.2568408463
E34: 0.06282948712 | F34: 0.03483023088 | G34: 0.03585392949 | H34: 0.0138366981 | I34: 0.1153455394 | J34: 0.2791447666 | K34: 0.08517302851 | L34: 0.0222044428 | M34: 0.1838119999 | N34: 0.03481871959 | O34: 0.1725197858 | P34: 0.2731215386 | Q34: 0.0177318854 | R34: 0.0002638106925 | S34: 0.001928800336 | T34: 0.0424637326 | U34: 0.01532006821
E35: 0.03447876979 | F35: 0.0557429367 | G35: 0.0052250989 | H35: 0.09499882606 | I35: 0.1275295987 | J35: 0.04729186079 | K35: 0.05960373134 | L35: 0.07915894455 | M35: 0.3111687728 | N35: 0.3466465919 | O35: 0.8599641479 | P35: 1.253713719 | Q35: 0.3208807765 | R35: 0.5215021922 | S35: 0.3629290285 | T35: 0.2489859601 | U35: 0.3263841567
E36: 0.04612874051 | F36: 0.0786891164 | G36: 0.13577199 | H36: 0.2054293979 | I36: 0.4206838172 | J36: 0.1798180748 | K36: 0.4020968491 | L36: 0.3251790622 | M36: 0.1556786541 | N36: 0.2981371224 | O36: 0.02331305912 | P36: 0.0494835876 | Q36: 0.07096366511 | R36: 0.005373623895 | S36: 0.03689241324 | T36: 0.001077889079 | U36: 0.04628749049
E37: 0.04789100912 | F37: 0.0001050410913 | G37: 0.0003990475379 | H37: 0.04687514202 | I37: 0.0513820487 | J37: 0.008059386546 | K37: 0.0584263678 | L37: 0.009097767015 | M37: 0.006511600637 | N37: 0.02001325499 | O37: 0.04810535906 | P37: 0.02062463128 | Q37: 0.03419884499 | R37: 0.03698929656 | S37: 0.03530397429 | T37: 0.05106979839 | U37: 0.03407921462
E38: 0.03369647565 | F38: 0.1127254503 | G38: 0.114849031 | H38: 0.0005038522415 | I38: 0.05215258217 | J38: 0.007917668298 | K38: 0.002511596185 | L38: 0.01030747436 | M38: 0.009947155362 | N38: 0.004959631226 | O38: 0.3572361541 | P38: 0.280710967 | Q38: 0.3390058616 | R38: 0.1367832597 | S38: 0.2052972093 | T38: 0.05639156173 | U38: 0.03637447302
E39: 0.004733378582 | F39: 0.03934753547 | G39: 0.006491975225 | H39: 0.002667813596 | I39: 0.002211102902 | J39: 0.08061044094 | K39: 0.05244465345 | L39: 0.06074258983 | M39: 0.02908003195 | N39: 0.0335902672 | O39: 0.006035954847 | P39: 0.01431593959 | Q39: 0.05749340317 | R39: 0.01831415161 | S39: 0.001183018594 | T39: 0.02201868962 | U39: 0.003097349649
E40: 0.03712963568 | F40: 0.08550517943 | G40: 0.005759009127 | H40: 1.394191318e-05 | I40: 0.02941681927 | J40: 0.101995616 | K40: 0.04327870081 | L40: 0.0225215131 | M40: 0.03102218626 | N40: 7.906928437e-05 | O40: 0.07240082689 | P40: 0.09576863908 | Q40: 0.0519796604 | R40: 0.06931554531 | S40: 0.02388928182 | T40: 0.00155606572 | U40: 0.02655064749
E41: 0.08520747285 | F41: 0.03271937292 | G41: 0.09949835298 | H41: 0.0004492609024 | I41: 0.1046983873 | J41: 0.3622166453 | K41: 0.6358996277 | L41: 0.2669385894 | M41: 0.3195393739 | N41: 0.2858707021 | O41: 0.02032715672 | P41: 0.009766594349 | Q41: 0.01636434101 | R41: 0.07847328339 | S41: 0.2222829661 | T41: 0.4257080884 | U41: 0.2759720274
E42: 0.0221331812 | F42: 0.005493070926 | G42: 0.03291465985 | H42: 0.0161674691 | I42: 0.1225841137 | J42: 0.1079280412 | K42: 0.07982954738 | L42: 0.04955837582 | M42: 0.006086053386 | N42: 0.004609581531 | O42: 0.0004586030952 | P42: 0.001969442162 | Q42: 0.1036862466 | R42: 0.218108976 | S42: 0.3589801805 | T42: 0.04652441109 | U42: 0.01164632366
E43: 0.001432364983 | F43: 0.02815961022 | G43: 0.06713897883 | H43: 0.04963550116 | I43: 0.1022587612 | J43: 0.1286521726 | K43: 0.01424427497 | L43: 0.1119210232 | M43: 0.1973404659 | N43: 0.0009796211396 | O43: 0.01744488251 | P43: 0.02966427843 | Q43: 0.001996595637 | R43: 0.001873071352 | S43: 0.1371166461 | T43: 0.09826915039 | U43: 0.1129548457
E44: 0.0004808517439 | F44: 0.01500583074 | G44: 0.02463564897 | H44: 0.008780073598 | I44: 0.107125907 | J44: 0.2387326123 | K44: 0.1482636793 | L44: 0.009269377602 | M44: 0.05216509814 | N44: 0.004559320869 | O44: 0.02868415895 | P44: 0.01890711842 | Q44: 0.003734558632 | R44: 0.07110627063 | S44: 0.1091239949 | T44: 0.2077320706 | U44: 0.1132422847
E45: 0.05065153903 | F45: 0.2406348594 | G45: 0.0637960236 | H45: 0.1044845087 | I45: 0.09799641967 | J45: 0.01152120569 | K45: 0.002909348115 | L45: 0.001282522073 | M45: 0.02255769722 | N45: 0.165378787 | O45: 0.4102849994 | P45: 0.1808311643 | Q45: 0.02697374865 | R45: 0.3553821128 | S45: 1.046405006e-05 | T45: 0.04258133704 | U45: 0.001929950097
E46: 0.0489369437 | F46: 0.1015721896 | G46: 0.1987946633 | H46: 0.02896244375 | I46: 0.182556306 | J46: 0.2630275786 | K46: 0.2167932194 | L46: 0.1628097484 | M46: 0.1850849508 | N46: 0.1017657587 | O46: 0.01729644564 | P46: 0.003630969913 | Q46: 0.005800940614 | R46: 0.2146001163 | S46: 0.008227195696 | T46: 0.06872081133 | U46: 0.1396536149
E47: 0.02965859123 | F47: 0.1304996024 | G47: 0.1419532164 | H47: 0.05686008496 | I47: 0.04796635941 | J47: 0.03872683427 | K47: 0.05226432394 | L47: 0.002056633921 | M47: 0.0684549251 | N47: 0.001584294445 | O47: 0.0867952124 | P47: 0.1788747453 | Q47: 0.003119002768 | R47: 0.03221176236 | S47: 0.1349332038 | T47: 0.006006302862 | U47: 0.2395714393
E48: 0.004295661743 | F48: 0.02432842511 | G48: 0.03191608165 | H48: 0.1583267827 | I48: 1.145011304e-05 | J48: 0.00161458463 | K48: 0.02727263654 | L48: 0.03651224216 | M48: 0.2578803333 | N48: 0.08402441447 | O48: 0.06109498428 | P48: 9.460101345e-05 | Q48: 0.06616899775 | R48: 0.02885617054 | S48: 0.01118306396 | T48: 0.1539716101 | U48: 0.2522483263
E49: 0.2450736357 | F49: 0.4471376128 | G49: 0.1864045549 | H49: 0.1940877557 | I49: 0.2250619484 | J49: 0.04136289894 | K49: 0.01601130761 | L49: 0.02097186494 | M49: 0.07918230438 | N49: 0.1782426166 | O49: 0.1119034837 | P49: 0.1384978098 | Q49: 0.1991282691 | R49: 0.03494274225 | S49: 0.2258453665 | T49: 0.3402927526 | U49: 0.2203416085
E50: 0.04626315887 | F50: 0.008523654044 | G50: 0.008988930088 | H50: 0.008493173208 | I50: 0.01520358277 | J50: 0.02509909451 | K50: 0.01367329635 | L50: 0.004176803587 | M50: 0.02987725556 | N50: 0.01017919393 | O50: 0.01025010156 | P50: 0.1583578061 | Q50: 0.1563298895 | R50: 0.02834977609 | S50: 0.02695091887 | T50: 0.01377741816 | U50: 0.09958452221
E51: 0.007303057182 | F51: 3.449270275e-05 | G51: 0.004880982734 | H51: 0.001273155035 | I51: 0.008112418434 | J51: 0.03794527786 | K51: 0.02804306814 | L51: 0.120584272 | M51: 0.2722173363 | N51: 0.02292694453 | O51: 0.03717414879 | P51: 0.2157099115 | Q51: 0.1895193855 | R51: 0.4695864294 | S51: 0.1720251394 | T51: 0.1033016124 | U51: 0.0009346817166
E52: 0.007500299652 | F52: 0.0736409569 | G52: 0.06607296732 | H52: 0.02154188233 | I52: 0.02525604713 | J52: 0.004740082248 | K52: 0.01304624714 | L52: 0.008908904436 | M52: 0.01699757955 | N52: 0.1451092264 | O52: 0.003375322753 | P52: 0.07422370476 | Q52: 0.02990517926 | R52: 0.003300253793 | S52: 0.00227512272 | T52: 0.009805967608 | U52: 0.0632707553
E53: 0.1320086418 | F53: 0.03999007949 | G53: 0.0140103786 | H53: 0.01485953052 | I53: 0.005634483556 | J53: 0.0107975301 | K53: 0.162648276 | L53: 0.03877968637 | M53: 0.0196671089 | N53: 0.001180741473 | O53: 0.02517387737 | P53: 0.238671793 | Q53: 0.06146987807 | R53: 0.4842485118 | S53: 0.2099239759 | T53: 0.196687882 | U53: 0.3582925052
E54: 0.02748667743 | F54: 0.1042144365 | G54: 0.5098115728 | H54: 0.7089300969 | I54: 0.3076693751 | J54: 0.2780367815 | K54: 0.06956365796 | L54: 0.000398744387 | M54: 0.01490669869 | N54: 0.03256314455 | O54: 0.2437004091 | P54: 0.1434621133 | Q54: 0.2192711795 | R54: 0.1932938768 | S54: 0.07486593237 | T54: 0.01932974103 | U54: 0.06609779224
E55: 0.003954497732 | F55: 0.0001487700613 | G55: 0.04565754624 | H55: 0.1082051613 | I55: 0.05271353392 | J55: 0.03456110591 | K55: 0.0002013101289 | L55: 0.0004230559983 | M55: 0.04382086732 | N55: 0.01850343953 | O55: 0.002308171789 | P55: 0.006412252602 | Q55: 0.01311230449 | R55: 0.02051877476 | S55: 0.00193035018 | T55: 0.01310945634 | U55: 0.000226452035
E56: 0.1032421408 | F56: 0.361936892 | G56: 0.07234117563 | H56: 0.1003260565 | I56: 1.0827426e-06 | J56: 0.01114699252 | K56: 0.04021958162 | L56: 0.01946029091 | M56: 0.07479322591 | N56: 0.01007320592 | O56: 0.0371799402 | P56: 0.1794300949 | Q56: 0.02702585024 | R56: 0.07423423533 | S56: 0.0413468803 | T56: 0.01514682801 | U56: 0.03259746996
E57: 0.01016771247 | F57: 0.02572828896 | G57: 0.003027658291 | H57: 0.00213442084 | I57: 0.01372906858 | J57: 0.02686139766 | K57: 0.00639269017 | L57: 0.007202700378 | M57: 0.105574262 | N57: 0.01088403209 | O57: 0.02491633912 | P57: 0.0009751822219 | Q57: 0.0427701165 | R57: 0.02688566974 | S57: 0.002756575832 | T57: 0.006438957866 | U57: 0.003178987516
E58: 0.0165946705 | F58: 4.450403606e-05 | G58: 0.006102153335 | H58: 0.02780990674 | I58: 0.08014010658 | J58: 0.02864984175 | K58: 0.01248664224 | L58: 0.0004431288505 | M58: 0.01172447258 | N58: 0.01582021161 | O58: 0.01424121045 | P58: 0.3006226321 | Q58: 0.06874891318 | R58: 0.04875354877 | S58: 0.06578792715 | T58: 0.03446087609 | U58: 0.07866682828
E59: 0.01135480115 | F59: 0.01541935455 | G59: 0.04427662809 | H59: 0.01411782509 | I59: 0.0004895253304 | J59: 0.02069375985 | K59: 0.02670767994 | L59: 0.09466149417 | M59: 0.1223966351 | N59: 0.05621949436 | O59: 0.00392885147 | P59: 0.02375885265 | Q59: 0.009884000488 | R59: 0.008751593187 | S59: 0.03682703978 | T59: 0.0001091424102 | U59: 0.005549983498
E60: 0.001246385212 | F60: 0.07734200393 | G60: 0.1898398679 | H60: 0.2924189929 | I60: 0.1973912792 | J60: 6.15995127e-06 | K60: 0.00970013327 | L60: 0.0001676078151 | M60: 0.0540336401 | N60: 0.0009556818087 | O60: 0.07520753836 | P60: 0.1681664193 | Q60: 0.3677971016 | R60: 0.1268694989 | S60: 0.0689347386 | T60: 0.006535029178 | U60: 0.009401023338
E61: 0.01579042382 | F61: 1.011661403e-06 | G61: 0.1045753264 | H61: 0.1158066527 | I61: 0.07862788671 | J61: 0.1991504396 | K61: 0.5402575592 | L61: 0.3459850797 | M61: 0.1534170232 | N61: 0.1345682352 | O61: 0.01358550144 | P61: 0.01889926264 | Q61: 0.08543710883 | R61: 0.0147074455 | S61: 0.2207890235 | T61: 0.05311512323 | U61: 0.01748188819
E62: 0.1429281145 | F62: 0.1532818315 | G62: 0.06531368267 | H62: 4.612585944e-06 | I62: 0.01337846777 | J62: 0.001066837081 | K62: 0.08863163432 | L62: 0.0110272582 | M62: 0.06259136696 | N62: 0.05277211697 | O62: 0.04707183823 | P62: 0.06832043347 | Q62: 0.0002857804752 | R62: 1.017024193e-06 | S62: 0.002772695366 | T62: 0.0008547462861 | U62: 0.03208691658
E63: 0.04443400245 | F63: 0.1047716264 | G63: 0.0249727196 | H63: 0.1254488683 | I63: 0.2554628086 | J63: 0.3226730087 | K63: 0.04960801976 | L63: 0.0165878544 | M63: 0.2649333924 | N63: 0.05107479634 | O63: 0.0008253819119 | P63: 0.001586149268 | Q63: 0.09907055788 | R63: 0.09371498908 | S63: 0.004848610896 | T63: 0.002176135859 | U63: 0.009428819966
E64: 0.001383686787 | F64: 0.05320427386 | G64: 0.06714035096 | H64: 0.2213216586 | I64: 0.6721947725 | J64: 0.3624478005 | K64: 0.1492931775 | L64: 0.1983344702 | M64: 0.05295577988 | N64: 0.02540851062 | O64: 0.0589847382 | P64: 0.0749438185 | Q64: 0.1011551794 | R64: 0.1129517005 | S64: 0.2280125554 | T64: 0.007567749668 | U64: 0.03790809604
E65: 0.00782029761 | F65: 0.1245062237 | G65: 0.05942707388 | H65: 0.2474761965 | I65: 0.116614056 | J65: 0.4811210869 | K65: 0.3369557949 | L65: 0.02533460959 | M65: 1.328702897e-05 | N65: 0.03798365535 | O65: 0.04940032112 | P65: 0.0003477709274 | Q65: 0.003950046395 | R65: 0.09486894565 | S65: 0.007282674123 | T65: 0.1323749046 | U65: 0.0005483476633
E66: 0.000586623475 | F66: 0.007330740849 | G66: 0.02158185316 | H66: 0.05049358537 | I66: 0.01185198811 | J66: 0.1340731083 | K66: 0.156686322 | L66: 0.09322481369 | M66: 0.001916996316 | N66: 0.00377813816 | O66: 0.001150267003 | P66: 0.02400453753 | Q66: 2.195514344e-05 | R66: 0.009604643469 | S66: 0.006128442993 | T66: 0.04576558943 | U66: 0.009592542514
E67: 0.2276757114 | F67: 0.1101627682 | G67: 0.5195515005 | H67: 0.291038302 | I67: 0.365670463 | J67: 0.1378525646 | K67: 0.001981333889 | L67: 0.0234570875 | M67: 0.08560537607 | N67: 0.0001378165462 | O67: 0.1464139587 | P67: 0.1924175264 | Q67: 0.241269696 | R67: 0.1852318962 | S67: 0.2572950393 | T67: 0.15606574 | U67: 0.202135602
E68: 0.3018923359 | F68: 0.03447326792 | G68: 0.1362383326 | H68: 0.1760221384 | I68: 0.2354776761 | J68: 0.2389314579 | K68: 0.2145294019 | L68: 1.213689601 | M68: 0.5532689591 | N68: 0.6427363616 | O68: 0.4311118256 | P68: 0.3466487034 | Q68: 0.2482596018 | R68: 0.4684800521 | S68: 0.2057468244 | T68: 0.193615497 | U68: 0.08719266099
E69: 0.1390761076 | F69: 0.03832226901 | G69: 0.002339589131 | H69: 5.807975574e-06 | I69: 0.00387543247 | J69: 1.47309044e-07 | K69: 0.001426697653 | L69: 0.01755375166 | M69: 0.06917218773 | N69: 0.2660300726 | O69: 0.2851719452 | P69: 0.3936113026 | Q69: 0.08630897158 | R69: 0.2178672109 | S69: 0.05861049425 | T69: 0.005706656074 | U69: 0.0002762128002
E70: 0.1976415581 | F70: 0.2851979612 | G70: 0.1635070772 | H70: 0.06789821344 | I70: 0.002408722723 | J70: 0.1589780249 | K70: 0.05957514575 | L70: 0.04222097834 | M70: 0.1196710911 | N70: 0.005496496463 | O70: 0.009081217021 | P70: 0.0546590403 | Q70: 0.3504928421 | R70: 0.4124492166 | S70: 0.5850055803 | T70: 0.2364067322 | U70: 0.01680052459
E71: 0.05644403349 | F71: 0.1661901769 | G71: 0.02166329852 | H71: 0.002515426074 | I71: 0.0001486159304 | J71: 0.0001709479448 | K71: 0.01579774233 | L71: 0.01043522501 | M71: 0.07945777746 | N71: 0.1633966194 | O71: 0.5344163655 | P71: 0.1412267842 | Q71: 0.2494714593 | R71: 0.3197886753 | S71: 0.6253078144 | T71: 0.7471664508 | U71: 0.5765430047
E72: 0.02376542585 | F72: 0.004625568273 | G72: 0.0006968196318 | H72: 0.001843532522 | I72: 0.01240184256 | J72: 0.06410315148 | K72: 0.002222770983 | L72: 0.04952011901 | M72: 0.2891155088 | N72: 0.02040361659 | O72: 0.1073424868 | P72: 0.07092534424 | Q72: 0.2126965741 | R72: 0.1301362868 | S72: 0.1838281146 | T72: 0.1180317974 | U72: 0.01644596527
E73: 0.093395376 | F73: 0.1268694902 | G73: 0.1677021961 | H73: 0.08140822075 | I73: 0.09047654118 | J73: 0.01349661839 | K73: 0.2116404804 | L73: 0.1870041023 | M73: 0.04356148722 | N73: 0.09866361621 | O73: 0.0269843403 | P73: 0.1355874617 | Q73: 0.1305809489 | R73: 0.2178073945 | S73: 0.1115342784 | T73: 0.009652724158 | U73: 0.001736158478
E74: 0.0005521086266 | F74: 0.03420190853 | G74: 0.1031352886 | H74: 0.1512590279 | I74: 0.4340048882 | J74: 0.2585107079 | K74: 0.02160562472 | L74: 0.009405219655 | M74: 0.009863317932 | N74: 0.01113661976 | O74: 0.00498198849 | P74: 0.008391136489 | Q74: 0.01026106427 | R74: 0.1104884046 | S74: 0.5397822071 | T74: 0.2020577293 | U74: 0.001309008397
E75: 0.03296410618 | F75: 0.08881088323 | G75: 0.2558471354 | H75: 0.5056724095 | I75: 0.3107004005 | J75: 0.600694154 | K75: 0.09037937549 | L75: 0.00177021693 | M75: 0.0002188261832 | N75: 0.0008189598649 | O75: 0.3059388801 | P75: 0.1183832399 | Q75: 0.2349370093 | R75: 0.1019414071 | S75: 0.03027760566 | T75: 0.005332026165 | U75: 0.0007753098796
E76: 0.005016825142 | F76: 0.003423522496 | G76: 0.2184098239 | H76: 0.04133956083 | I76: 0.08624486259 | J76: 0.004133034984 | K76: 0.2920797538 | L76: 0.3936881307 | M76: 0.1981686581 | N76: 0.1168467897 | O76: 0.01526054037 | P76: 0.001172728889 | Q76: 0.1461382629 | R76: 0.01485121231 | S76: 0.0062952636 | T76: 0.03770788011 | U76: 0.001940983384
E77: 0.01570262056 | F77: 0.01357932559 | G77: 0.03632030166 | H77: 3.286354478e-05 | I77: 0.4774780531 | J77: 0.2702063808 | K77: 0.008685779927 | L77: 0.02156166863 | M77: 0.6579805327 | N77: 0.6555906599 | O77: 0.6658755439 | P77: 0.5292206628 | Q77: 0.6182247809 | R77: 0.3259235929 | S77: 0.1601854542 | T77: 0.1194122598 | U77: 0.3612704353
E78: 0.08103758309 | F78: 0.2651358346 | G78: 0.008251087713 | H78: 0.003410658289 | I78: 0.04007839146 | J78: 0.08988169434 | K78: 0.08608757955 | L78: 0.1145276696 | M78: 0.05522400565 | N78: 0.0006565338831 | O78: 0.04158465851 | P78: 0.2022767679 | Q78: 0.07454743858 | R78: 0.03907232112 | S78: 0.002164031741 | T78: 0.05977043026 | U78: 0.2081895664
E79: 0.01180381334 | F79: 0.0006437142609 | G79: 0.05308069151 | H79: 0.1846617605 | I79: 0.04140867298 | J79: 0.05550617108 | K79: 0.1522570107 | L79: 0.4039715772 | M79: 0.2230554642 | N79: 0.6546982725 | O79: 0.3601145321 | P79: 0.258310313 | Q79: 0.1750518363 | R79: 0.002874190313 | S79: 0.0551061896 | T79: 0.1782086797 | U79: 0.37319081
E80: 0.04842978029 | F80: 0.2818896877 | G80: 0.5516154854 | H80: 0.431544007 | I80: 0.8894112261 | J80: 1.027531516 | K80: 0.458155204 | L80: 0.900749513 | M80: 0.9582522282 | N80: 0.8174808821 | O80: 0.7696236393 | P80: 0.7563961443 | Q80: 0.2082893786 | R80: 0.0009549089684 | S80: 0.001620829158 | T80: 0.02086824365 | U80: 0.02667220857
E81: 0.1001288413 | F81: 0.01526126977 | G81: 0.01005304378 | H81: 0.0627692613 | I81: 0.002195189875 | J81: 0.01383431407 | K81: 0.01571101854 | L81: 0.01720428868 | M81: 0.01152512203 | N81: 0.0005334177325 | O81: 0.01183971986 | P81: 0.03490054576 | Q81: 0.007888592659 | R81: 0.02156858951 | S81: 0.05490097803 | T81: 0.03136383569 | U81: 5.486234719e-05
E82: 0.03104283475 | F82: 0.05371071183 | G82: 0.22944495 | H82: 0.0799090097 | I82: 0.04908996306 | J82: 0.07708010779 | K82: 0.001644613182 | L82: 0.03000408135 | M82: 0.03057482556 | N82: 0.02098835107 | O82: 0.06226914459 | P82: 0.002084123859 | Q82: 0.004316120245 | R82: 0.003163172264 | S82: 0.02693074741 | T82: 0.01728404715 | U82: 0.007617256941
E83: 0.09160448298 | F83: 0.04269836265 | G83: 5.608962065e-06 | H83: 0.01760680585 | I83: 0.02931782121 | J83: 0.08171532081 | K83: 0.1041206519 | L83: 0.1249470343 | M83: 0.6721540869 | N83: 0.2892631713 | O83: 0.179189065 | P83: 0.03919948626 | Q83: 0.01258813375 | R83: 0.007901576412 | S83: 0.02106671653 | T83: 0.04162336528 | U83: 0.4981223059
E84: 0.03472663649 | F84: 0.05636667438 | G84: 0.02863218124 | H84: 0.002320147782 | I84: 0.008133513186 | J84: 0.08457465346 | K84: 0.1419131851 | L84: 0.1810091161 | M84: 0.6229903944 | N84: 0.0786305428 | O84: 0.03535007688 | P84: 0.2593918245 | Q84: 0.2532140555 | R84: 0.2397535058 | S84: 0.1664688982 | T84: 0.1387283539 | U84: 0.1700961102
E85: 0.004355733459 | F85: 0.01299513848 | G85: 0.02704087577 | H85: 0.05753311399 | I85: 0.009963514876 | J85: 0.0003702424357 | K85: 0.03215312104 | L85: 0.04067729489 | M85: 0.02661959867 | N85: 0.001520496712 | O85: 0.01497431174 | P85: 0.2549794617 | Q85: 0.001050555743 | R85: 0.1506333287 | S85: 0.1224469925 | T85: 0.005543322442 | U85: 0.1865412055
E86: 0.0005029575383 | F86: 0.00190566856 | G86: 0.03547971891 | H86: 0.08609661544 | I86: 0.04640760339 | J86: 0.1387951396 | K86: 0.09797018734 | L86: 0.02466468143 | M86: 0.04939460266 | N86: 0.0004298560929 | O86: 0.002868134002 | P86: 0.002784502981 | Q86: 0.006537980233 | R86: 0.02162442058 | S86: 0.1185537196 | T86: 0.1100962731 | U86: 0.09443691515
E87: 0.05414050317 | F87: 0.1114566839 | G87: 0.4260800068 | H87: 0.1466697476 | I87: 0.2624315886 | J87: 0.2681060341 | K87: 0.176180589 | L87: 0.06973455468 | M87: 0.007943540831 | N87: 0.003318769155 | O87: 0.5163867771 | P87: 0.288446403 | Q87: 6.154933424e-06 | R87: 0.003418963919 | S87: 0.07913506297 | T87: 0.01563778153 | U87: 0.02396608358
E88: 0.0003868493618 | F88: 0.001773786171 | G88: 3.97987085e-07 | H88: 0.001662613439 | I88: 0.0326674877 | J88: 0.02334466125 | K88: 0.0002919783422 | L88: 0.0361978208 | M88: 0.0386359966 | N88: 0.03894511837 | O88: 0.009262777821 | P88: 0.008745116077 | Q88: 0.0002313147971 | R88: 0.2596976425 | S88: 0.3865481604 | T88: 0.2667928816 | U88: 0.6471524027
E89: 0.01905421464 | F89: 0.004356353761 | G89: 1.571447886e-05 | H89: 0.01139314748 | I89: 0.04186803387 | J89: 8.192465897e-06 | K89: 0.0001038320037 | L89: 0.009133370814 | M89: 0.03968042963 | N89: 0.033933783 | O89: 0.004042294837 | P89: 0.06187500733 | Q89: 0.007778109403 | R89: 0.01242595633 | S89: 0.03476753409 | T89: 0.01710411631 | U89: 0.0003897463675
E90: 0.001137662472 | F90: 0.0118502401 | G90: 0.03858271854 | H90: 0.1357146734 | I90: 0.03442147779 | J90: 0.004444879119 | K90: 0.001814674379 | L90: 0.0007592482026 | M90: 1.186314181e-06 | N90: 0.0006102591732 | O90: 0.003163073208 | P90: 0.07025576201 | Q90: 0.06754527575 | R90: 0.04238263169 | S90: 0.09867924529 | T90: 0.213239615 | U90: 0.1804579134
E91: 0.02591823601 | F91: 0.0111896278 | G91: 0.03660841455 | H91: 0.001667801772 | I91: 0.02808961598 | J91: 0.4304472039 | K91: 0.1420532468 | L91: 0.03565428069 | M91: 0.01254574299 | N91: 0.02827396539 | O91: 0.006912269586 | P91: 0.1002190723 | Q91: 0.1935939691 | R91: 0.1099182823 | S91: 0.06065482762 | T91: 0.1287097425 | U91: 0.05181898793
E92: 9.820972695e-07 | F92: 0.0114298146 | G92: 0.04495678905 | H92: 0.1741321844 | I92: 0.4534609395 | J92: 0.5286103972 | K92: 0.2069329122 | L92: 0.3640397614 | M92: 0.1364857119 | N92: 0.005803104886 | O92: 0.07987249426 | P92: 2.721769802e-06 | Q92: 0.002121248925 | R92: 0.02816048081 | S92: 0.001104711874 | T92: 0.007034653872 | U92: 0.05336670713
E93: 0.04620376605 | F93: 0.1819295275 | G93: 0.0891446721 | H93: 0.002921409613 | I93: 0.007986670963 | J93: 0.05883921592 | K93: 0.01965118548 | L93: 0.002397407193 | M93: 0.01129810807 | N93: 0.0897175456 | O93: 0.003005535988 | P93: 0.01812055657 | Q93: 0.0450517147 | R93: 0.06595837832 | S93: 0.1329261631 | T93: 0.2807617969 | U93: 0.3181282281
E94: 0.03046904222 | F94: 0.02966792533 | G94: 0.2829610979 | H94: 0.3907239223 | I94: 0.2797830416 | J94: 0.3292124145 | K94: 0.1388698985 | L94: 0.316135226 | M94: 0.2269241534 | N94: 0.0226677296 | O94: 0.05359487166 | P94: 0.0832026727 | Q94: 0.001588789192 | R94: 0.0007113025062 | S94: 0.03778959612 | T94: 0.0893769703 | U94: 0.0004228479085
E95: 0.03542822492 | F95: 0.09688971546 | G95: 0.2929598395 | H95: 0.2044611451 | I95: 0.151280628 | J95: 0.4753570156 | K95: 0.2225111746 | L95: 0.007172879263 | M95: 0.1111705482 | N95: 0.002894043706 | O95: 0.0002742383424 | P95: 0.0504972936 | Q95: 0.05888369642 | R95: 0.03239103058 | S95: 0.02076022457 | T95: 0.01868214978 | U95: 0.001439628015
E96: 0.004667313837 | F96: 0.1062101176 | G96: 0.009751504779 | H96: 0.0636024646 | I96: 0.3057182718 | J96: 0.4623691328 | K96: 0.5976634843 | L96: 0.4395869066 | M96: 0.238671565 | N96: 0.09480638112 | O96: 0.14378053 | P96: 0.4093072243 | Q96: 0.1734546534 | R96: 0.06546657819 | S96: 0.0007895758925 | T96: 0.1228818753 | U96: 0.03276000665
E97: 0.007581576139 | F97: 0.005771944645 | G97: 0.3255824109 | H97: 0.07814443258 | I97: 0.03526978024 | J97: 0.0002982638242 | K97: 0.01023658148 | L97: 0.0243704954 | M97: 0.02269055272 | N97: 0.14563496 | O97: 0.2665833364 | P97: 0.1979145421 | Q97: 0.1685704192 | R97: 0.1017864033 | S97: 0.004581024303 | T97: 0.1516620859 | U97: 0.07267736672
E98: 0.03587015268 | F98: 0.07721155453 | G98: 0.1823519396 | H98: 0.1489564951 | I98: 0.03281147251 | J98: 0.005721919759 | K98: 0.01236217097 | L98: 0.009142165584 | M98: 0.003376595902 | N98: 0.0007729932881 | O98: 1.628259571e-05 | P98: 0.1240074497 | Q98: 0.04501481926 | R98: 0.1204357256 | S98: 0.010018678 | T98: 0.0004558293932 | U98: 0.1161841769
E99: 0.0003967016398 | F99: 0.1794110935 | G99: 0.0740809133 | H99: 8.583696926e-05 | I99: 0.001119802864 | J99: 0.04592491261 | K99: 0.04450201285 | L99: 0.005719793509 | M99: 0.00428699172 | N99: 0.005859208068 | O99: 0.1454373786 | P99: 0.09562848349 | Q99: 0.02966491697 | R99: 0.02197032389 | S99: 0.006050430237 | T99: 0.2195612367 | U99: 0.02743328979
E100: 0.0005096597082 | F100: 0.0005626470526 | G100: 0.002933686023 | H100: 0.251062463 | I100: 0.01577917318 | J100: 0.01112183717 | K100: 0.004879448412 | L100: 0.0459823981 | M100: 0.003757443738 | N100: 0.05777345572 | O100: 0.001601762663 | P100: 0.0009035229286 | Q100: 0.05150506576 | R100: 0.04342403184 | S100: 0.10117328 | T100: 0.03170886822 | U100: 0.1097574902
E101: 0.01508515057 | F101: 7.30130148e-05 | G101: 0.04198637612 | H101: 0.01646454856 | I101: 0.09705625888 | J101: 0.01988210968 | K101: 0.06475190794 | L101: 0.1385797634 | M101: 0.4419539889 | N101: 0.1044569383 | O101: 0.1063742895 | P101: 0.2034166091 | Q101: 0.01583500553 | R101: 0.004661858435 | S101: 0.006695693553 | T101: 0.006997111528 | U101: 0.02012655254
E102: 0.0460935611 | F102: 0.0002031028965 | G102: 0.02388497604 | H102: 0.03239149226 | I102: 0.004497054783 | J102: 0.01026365201 | K102: 0.001761287217 | L102: 0.003313208641 | M102: 0.03949768619 | N102: 0.001283894457 | O102: 0.006642039322 | P102: 0.005670143593 | Q102: 0.01429129982 | R102: 0.007157604796 | S102: 0.1915054277 | T102: 0.007327091507 | U102: 0.1309592958
E103: 0.005981547792 | F103: 6.406384756e-05 | G103: 0.04162393694 | H103: 0.4024376135 | I103: 0.2511337565 | J103: 0.1243373943 | K103: 0.1104182972 | L103: 0.2305593964 | M103: 0.301414198 | N103: 0.1853921363 | O103: 0.1257771924 | P103: 0.1218313255 | Q103: 0.3816375997 | R103: 0.6338608116 | S103: 0.05770928148 | T103: 0.01162016752 | U103: 0.0006226496616
E104: 0.01311066712 | F104: 0.01894675264 | G104: 0.002260585711 | H104: 1.943925007e-05 | I104: 3.238802484e-05 | J104: 0.02253634209 | K104: 0.03297415094 | L104: 0.06295818575 | M104: 0.00141991998 | N104: 0.01927578511 | O104: 0.07426336837 | P104: 0.005171493314 | Q104: 0.0009908264032 | R104: 0.04578712094 | S104: 0.1022421246 | T104: 0.002888387804 | U104: 0.03431373981
E105: 0.01761204813 | F105: 0.002174788448 | G105: 0.009382850456 | H105: 0.001211546258 | I105: 0.07792085246 | J105: 0.03469123054 | K105: 0.05141345228 | L105: 0.06462924135 | M105: 0.08239684718 | N105: 0.02645445492 | O105: 0.007656241933 | P105: 0.07488336918 | Q105: 0.4196895044 | R105: 0.4213073884 | S105: 0.7504367808 | T105: 0.788285654 | U105: 0.3041118685
E106: 0.1026536509 | F106: 0.04368269154 | G106: 0.01959009999 | H106: 0.09042816287 | I106: 0.179713348 | J106: 0.2473880613 | K106: 0.2284301049 | L106: 0.114530765 | M106: 0.06154530963 | N106: 0.1412152863 | O106: 0.2621058628 | P106: 0.1022896935 | Q106: 0.02421809121 | R106: 0.05033091571 | S106: 0.04802104739 | T106: 0.0409197044 | U106: 0.1458665522
E107: 0.01396804093 | F107: 0.001506268899 | G107: 0.01004229931 | H107: 0.02598502939 | I107: 0.03830679414 | J107: 0.007877366944 | K107: 0.09182998772 | L107: 0.0004628950566 | M107: 0.03883483309 | N107: 0.005953858814 | O107: 0.01172890543 | P107: 0.113866604 | Q107: 0.07529913621 | R107: 4.525381433e-05 | S107: 0.09221823126 | T107: 0.11771073 | U107: 0.03018818306
E108: 0.02045355999 | F108: 0.005027813129 | G108: 0.0188479616 | H108: 0.001608248756 | I108: 0.1036236843 | J108: 0.08004531819 | K108: 0.03867850645 | L108: 0.3618205132 | M108: 0.03162932713 | N108: 0.01100246862 | O108: 0.002554318217 | P108: 0.03524165616 | Q108: 0.0005396240635 | R108: 0.1621421788 | S108: 0.219157734 | T108: 0.2218071955 | U108: 0.0001362956514
E109: 8.902027266e-06 | F109: 0.01352347159 | G109: 0.002385905504 | H109: 0.07685885046 | I109: 0.05719995559 | J109: 0.06036974186 | K109: 9.574307981e-05 | L109: 8.449933771e-05 | M109: 0.005385796909 | N109: 0.02299477525 | O109: 0.01681803023 | P109: 5.750094559e-06 | Q109: 0.005301929981 | R109: 0.01938775723 | S109: 0.01002922737 | T109: 0.03055267894 | U109: 0.1229440672
E110: 0.3322971158 | F110: 0.1054664469 | G110: 0.1535571691 | H110: 0.006334172203 | I110: 0.0001852194417 | J110: 0.02686458025 | K110: 0.01682420013 | L110: 0.001154597903 | M110: 0.02221353019 | N110: 0.0004633581832 | O110: 0.005005667726 | P110: 1.724066819e-05 | Q110: 0.01348045317 | R110: 0.01068314116 | S110: 0.05716866704 | T110: 0.001252041656 | U110: 0.004410669224
E111: 0.2201785939 | F111: 0.4192195359 | G111: 0.1469247829 | H111: 0.006656720587 | I111: 0.02591626643 | J111: 0.172345033 | K111: 0.1094994117 | L111: 0.2190391789 | M111: 0.09870226737 | N111: 0.01167561008 | O111: 0.06233299816 | P111: 0.1837710298 | Q111: 0.09317422833 | R111: 0.07901705255 | S111: 0.0007463255814 | T111: 0.00621993571 | U111: 0.1054860352
E112: 0.0449926398 | F112: 0.1761071491 | G112: 0.4813785696 | H112: 0.2033151298 | I112: 0.4681376511 | J112: 0.8237940445 | K112: 0.303236856 | L112: 0.2856963352 | M112: 0.2875029653 | N112: 0.3261346573 | O112: 0.398164525 | P112: 0.04407687099 | Q112: 0.05071425901 | R112: 0.009753785899 | S112: 0.03235622277 | T112: 0.0108257811 | U112: 0.0187256722
E113: 0.01113669749 | F113: 0.003913479354 | G113: 0.06206883391 | H113: 0.09154940781 | I113: 0.1766380993 | J113: 0.1160780648 | K113: 0.1733022385 | L113: 0.04989034509 | M113: 0.1694193363 | N113: 0.07805398573 | O113: 0.05414279477 | P113: 0.0009469270543 | Q113: 0.04990204782 | R113: 0.08902863433 | S113: 0.1442013036 | T113: 0.1542989496 | U113: 0.03508308107
E114: 0.00451422854 | F114: 0.0543014947 | G114: 0.2123096518 | H114: 0.009599697894 | I114: 0.04164010135 | J114: 0.08516431558 | K114: 0.1112009528 | L114: 0.3368009813 | M114: 0.3080535623 | N114: 0.372868045 | O114: 0.1851487142 | P114: 0.03120728923 | Q114: 0.08737375968 | R114: 0.02390020538 | S114: 0.02943789057 | T114: 0.0002260711431 | U114: 0.1776593091
E115: 0.01586292966 | F115: 0.05110290143 | G115: 0.09927887145 | H115: 0.05106423927 | I115: 0.1428113494 | J115: 0.007221647964 | K115: 0.07903261699 | L115: 0.01485234131 | M115: 0.001240200221 | N115: 0.0002100138141 | O115: 0.00794432602 | P115: 0.0004134331739 | Q115: 0.0002855494062 | R115: 0.04797319361 | S115: 0.07618745093 | T115: 0.01833148477 | U115: 0.006825834151
E116: 0.02926541327 | F116: 0.03282291588 | G116: 0.004802855506 | H116: 0.009711682842 | I116: 0.1409180014 | J116: 0.01623366082 | K116: 0.0439451231 | L116: 0.06293416403 | M116: 0.006008971041 | N116: 0.1151068658 | O116: 0.0714831833 | P116: 0.09498069562 | Q116: 0.07756619003 | R116: 0.01760983493 | S116: 0.04616794487 | T116: 0.1667436368 | U116: 0.01291350621
E117: 0.0222510911 | F117: 0.04628897853 | G117: 0.0362051562 | H117: 0.1121608478 | I117: 0.07912177727 | J117: 0.08202081769 | K117: 0.03945319243 | L117: 0.0841643549 | M117: 0.003839616298 | N117: 0.016555156 | O117: 0.0002717655413 | P117: 0.0006332079462 | Q117: 0.01252988366 | R117: 0.06624271138 | S117: 0.326120768 | T117: 0.3701753363 | U117: 0.2626329494
E118: 0.00444232122 | F118: 0.04434829716 | G118: 0.004510859949 | H118: 0.10281227 | I118: 0.1189974279 | J118: 0.1078795174 | K118: 0.1895415205 | L118: 0.1831702227 | M118: 0.1160629938 | N118: 0.04120020553 | O118: 0.01062936101 | P118: 1.537977212e-05 | Q118: 0.01299460483 | R118: 0.0926763518 | S118: 0.05962455075 | T118: 0.005913613201 | U118: 0.01954333271
E119: 0.01050087809 | F119: 0.005748400149 | G119: 0.0008970117373 | H119: 0.001000278091 | I119: 0.01122009004 | J119: 0.006568784157 | K119: 0.0007420476499 | L119: 0.03985126067 | M119: 0.004327960347 | N119: 0.02891596233 | O119: 0.008055092045 | P119: 0.03750285028 | Q119: 0.0672442088 | R119: 0.02119707566 | S119: 0.01986438569 | T119: 0.001285927482 | U119: 0.017111443
E120: 0.06287259997 | F120: 0.0005286632949 | G120: 0.02088715112 | H120: 0.003268205401 | I120: 0.2290563774 | J120: 0.3580337853 | K120: 0.2906049855 | L120: 0.05755428649 | M120: 0.004629931102 | N120: 0.03747268605 | O120: 0.09228755854 | P120: 0.06965317663 | Q120: 0.001862013093 | R120: 0.006635617009 | S120: 0.1860821487 | T120: 0.02912142997 | U120: 0.1220961482
E121: 0.02915626203 | F121: 0.03900214028 | G121: 0.06755182595 | H121: 0.06012248274 | I121: 0.2480222742 | J121: 0.06470096343 | K121: 0.1698694392 | L121: 0.02904806457 | M121: 0.003900575581 | N121: 0.07962986527 | O121: 0.02934703288 | P121: 0.03377509253 | Q121: 0.01446741389 | R121: 0.009355812651 | S121: 0.08934833636 | T121: 0.1572013611 | U121: 0.1199466255
E122: 0.01861562342 | F122: 0.112296271 | G122: 0.3384928808 | H122: 0.2490952959 | I122: 0.5217011463 | J122: 0.09492526709 | K122: 0.0848130517 | L122: 0.002170210365 | M122: 0.0001802254029 | N122: 0.02545187015 | O122: 0.008193575633 | P122: 0.007263588842 | Q122: 0.1648451887 | R122: 0.1221298201 | S122: 0.05934362207 | T122: 0.01273639073 | U122: 0.2527890311
E123: 0.009766502746 | F123: 0.008920829878 | G123: 0.2501705989 | H123: 0.03865843523 | I123: 0.08794971692 | J123: 0.002788828013 | K123: 0.004537335205 | L123: 0.01486978163 | M123: 0.04230404425 | N123: 0.09819879844 | O123: 0.03211217734 | P123: 0.03215322579 | Q123: 0.1687307711 | R123: 0.1729715719 | S123: 0.04644288819 | T123: 0.06162681432 | U123: 7.967889494e-05
E124: 0.09258695202 | F124: 3.750039601e-07 | G124: 0.03339181134 | H124: 0.03980389948 | I124: 0.06368733054 | J124: 0.09920933374 | K124: 0.4413146787 | L124: 0.4495345051 | M124: 0.1395454495 | N124: 0.4915123209 | O124: 0.1411569388 | P124: 0.3556493236 | Q124: 0.218416836 | R124: 0.2401519336 | S124: 0.2695802137 | T124: 0.233241162 | U124: 0.1178789128
E125: 0.03062628677 | F125: 0.0554164765 | G125: 0.1319276153 | H125: 0.09595609981 | I125: 0.01971482326 | J125: 0.04993414792 | K125: 0.07607981734 | L125: 0.2100873044 | M125: 0.1776275081 | N125: 0.1937636964 | O125: 0.5403313863 | P125: 0.3783741842 | Q125: 0.127647572 | R125: 0.1722247214 | S125: 0.3641097208 | T125: 0.2123919721 | U125: 0.07099854426
E126: 0.03843205484 | F126: 0.01564495762 | G126: 0.0526272648 | H126: 0.05015089763 | I126: 0.03467387757 | J126: 0.03123445957 | K126: 0.07207834035 | L126: 0.1312195887 | M126: 0.2948082227 | N126: 0.09713877672 | O126: 5.383259716e-05 | P126: 0.1823223021 | Q126: 0.00179841717 | R126: 0.04573957195 | S126: 0.008441840855 | T126: 0.07760455343 | U126: 8.927431459e-07
E127: 0.01391828088 | F127: 0.01463497652 | G127: 0.08217526337 | H127: 0.07729423297 | I127: 0.06034808412 | J127: 0.03196670475 | K127: 0.1253515366 | L127: 0.01517721915 | M127: 0.07108780324 | N127: 0.001166698507 | O127: 0.006423130798 | P127: 0.008848499763 | Q127: 0.03949269678 | R127: 0.006340668886 | S127: 0.05456572771 | T127: 0.06090034643 | U127: 0.1894235872
E128: 0.02889476698 | F128: 0.003914903089 | G128: 0.001150141357 | H128: 0.0001558810681 | I128: 0.02035787044 | J128: 0.1452685081 | K128: 1.622296368e-05 | L128: 0.003594326335 | M128: 0.001017410308 | N128: 0.07163755413 | O128: 0.009244956966 | P128: 0.001902518752 | Q128: 0.006155111727 | R128: 0.01137893042 | S128: 5.804101942e-07 | T128: 0.0251711612 | U128: 0.03030085806
E129: 0.0004002415427 | F129: 0.03138569069 | G129: 0.01415391804 | H129: 0.07821010808 | I129: 0.0137216548 | J129: 0.008964694433 | K129: 0.002407916604 | L129: 0.002709918781 | M129: 0.01081798004 | N129: 0.1059385197 | O129: 0.01682055733 | P129: 0.04502172259 | Q129: 0.009106849129 | R129: 0.08441026851 | S129: 0.1279215794 | T129: 0.07713918493 | U129: 0.134348421
E130: 0.06958665143 | F130: 0.08645469827 | G130: 9.006819608e-05 | H130: 0.03793609072 | I130: 0.02187465986 | J130: 0.1678253236 | K130: 0.02805643225 | L130: 0.2485777656 | M130: 0.1453562005 | N130: 0.1521130929 | O130: 0.1309615353 | P130: 0.3393170801 | Q130: 0.0800450719 | R130: 0.01646588629 | S130: 0.05875719102 | T130: 0.0251278716 | U130: 0.002872181286
E131: 0.02910486825 | F131: 0.02008838556 | G131: 0.03458177072 | H131: 0.342333585 | I131: 0.1044074394 | J131: 0.00816286226 | K131: 0.002929878375 | L131: 0.0610156132 | M131: 0.008032532464 | N131: 0.2329458853 | O131: 0.2690721735 | P131: 0.164821593 | Q131: 0.1941806515 | R131: 0.0454015928 | S131: 0.1683318776 | T131: 0.2308630435 | U131: 0.1849130871
E132: 0.03156670495 | F132: 0.1771785958 | G132: 0.009421226586 | H132: 0.01202169388 | I132: 0.02700875266 | J132: 0.007326230892 | K132: 0.03903643924 | L132: 0.008014030969 | M132: 0.06387192289 | N132: 0.08043055529 | O132: 0.001269132144 | P132: 0.00838226611 | Q132: 0.01240878747 | R132: 0.000877217358 | S132: 0.0004329735385 | T132: 0.07205807159 | U132: 0.242146269
E133: 0.0009966388881 | F133: 0.03993373946 | G133: 0.04804818668 | H133: 0.002126392915 | I133: 0.08038584423 | J133: 0.1379976335 | K133: 0.271682237 | L133: 0.2446718415 | M133: 0.4632797867 | N133: 0.6266677591 | O133: 1.683699709 | P133: 0.5425080273 | Q133: 0.1078734395 | R133: 0.01508307662 | S133: 0.02115583853 | T133: 0.03114263672 | U133: 0.09411983588
E134: 0.006222412995 | F134: 0.02537389469 | G134: 0.008063794428 | H134: 1.292964047e-06 | I134: 4.322388425e-07 | J134: 0.01061127754 | K134: 0.03010102627 | L134: 0.000232951516 | M134: 0.3087530339 | N134: 0.1701359749 | O134: 0.05107413999 | P134: 0.0420354079 | Q134: 0.01474771965 | R134: 0.004551761107 | S134: 0.005379246351 | T134: 0.08598958033 | U134: 0.03115235317
E135: 0.03444425633 | F135: 0.1191439703 | G135: 1.560523875e-07 | H135: 0.03191867868 | I135: 0.01478753911 | J135: 0.08303690745 | K135: 0.02584919968 | L135: 0.2356763204 | M135: 0.06440544499 | N135: 4.808474808e-05 | O135: 0.03877122069 | P135: 6.757599693e-07 | Q135: 0.1224573004 | R135: 0.006430683557 | S135: 0.002431599573 | T135: 0.02138298161 | U135: 0.001306110887
E136: 0.1654457587 | F136: 0.006585243265 | G136: 2.811144998e-05 | H136: 0.03033242988 | I136: 0.006330624247 | J136: 0.03115902077 | K136: 0.05195553897 | L136: 0.1802938765 | M136: 0.4898417546 | N136: 0.6590860598 | O136: 0.4166023639 | P136: 0.3256031104 | Q136: 0.3033767921 | R136: 0.1991482746 | S136: 0.2286932915 | T136: 0.2220506657 | U136: 0.0413001639
E137: 0.01463828503 | F137: 0.02742436438 | G137: 0.01040432006 | H137: 0.04605750791 | I137: 0.01789314016 | J137: 0.005951215411 | K137: 0.2123872758 | L137: 1.074404705 | M137: 1.146424428 | N137: 2.314012859 | O137: 2.952278132 | P137: 2.928225568 | Q137: 2.565392852 | R137: 1.96995052 | S137: 2.054065294 | T137: 3.125932831 | U137: 2.298588587
E138: 0.01698492529 | F138: 0.0175088275 | G138: 0.1675910674 | H138: 0.09797576534 | I138: 0.04538891861 | J138: 0.1529907549 | K138: 0.3195900588 | L138: 0.08962695414 | M138: 0.06889016824 | N138: 0.001877045496 | O138: 0.005238751012 | P138: 0.004914040007 | Q138: 0.08159905369 | R138: 0.06323607045 | S138: 0.001781713627 | T138: 0.08929028181 | U138: 0.02198329424
E139: 0.02770217859 | F139: 0.01030615672 | G139: 0.2292379554 | H139: 0.03309251058 | I139: 0.06267563382 | J139: 0.05296874384 | K139: 0.11826668 | L139: 0.002143743227 | M139: 0.003642647431 | N139: 0.04605701155 | O139: 0.1230612784 | P139: 0.2535319082 | Q139: 0.1360569408 | R139: 0.007945450445 | S139: 0.004107761144 | T139: 0.0008436736517 | U139: 0.0001949111567
E140: 0.001091659046 | F140: 0.05724069867 | G140: 0.118616306 | H140: 8.442343673e-05 | I140: 0.001544002637 | J140: 0.0008461062809 | K140: 0.1558171362 | L140: 0.1471142047 | M140: 0.431095886 | N140: 0.1549362492 | O140: 0.003381591803 | P140: 0.0004878889338 | Q140: 0.005773551153 | R140: 0.03660682941 | S140: 0.01429824366 | T140: 0.002893172536 | U140: 0.001776717864
E141: 0.03235657181 | F141: 0.0794286756 | G141: 0.3222717583 | H141: 0.03197497984 | I141: 0.1602043709 | J141: 0.173213054 | K141: 0.2602988568 | L141: 0.1793452944 | M141: 0.2968989337 | N141: 0.1545604148 | O141: 0.08150344247 | P141: 0.1426757792 | Q141: 0.1666031794 | R141: 0.1529112121 | S141: 0.1633114858 | T141: 0.09932036088 | U141: 0.020448673
E142: 0.01138350079 | F142: 0.03334199525 | G142: 0.03305401867 | H142: 0.01597553191 | I142: 0.002623076803 | J142: 0.006968615643 | K142: 0.001062357821 | L142: 0.001839678222 | M142: 0.003262163144 | N142: 0.06587684387 | O142: 6.235705239e-05 | P142: 0.0004261434964 | Q142: 0.07627586086 | R142: 0.09845591984 | S142: 0.2716359443 | T142: 0.7200781121 | U142: 0.5300155459
E143: 0.002603302157 | F143: 0.02423812544 | G143: 0.02116276636 | H143: 0.0003555939733 | I143: 0.1434339175 | J143: 0.01951756307 | K143: 0.0362524574 | L143: 0.005973196525 | M143: 0.1081205485 | N143: 0.06204097147 | O143: 0.002433634083 | P143: 0.02762722744 | Q143: 0.03123471724 | R143: 0.00269443077 | S143: 0.2033508065 | T143: 0.284703004 | U143: 0.144434147
E144: 0.005810353998 | F144: 0.03529109916 | G144: 0.0524799786 | H144: 0.006267561294 | I144: 0.001634556399 | J144: 0.005960252777 | K144: 0.02599711135 | L144: 0.4165481055 | M144: 0.706427476 | N144: 0.2209442644 | O144: 0.3728009837 | P144: 0.1524633679 | Q144: 0.09665151328 | R144: 0.004985349905 | S144: 0.02901422808 | T144: 0.03723202948 | U144: 0.009407659236
E145: 0.01597415465 | F145: 0.02455690415 | G145: 0.04925513884 | H145: 0.07912494611 | I145: 0.210629622 | J145: 0.3400227198 | K145: 0.3288565872 | L145: 0.3645719718 | M145: 0.06403796013 | N145: 0.0271606995 | O145: 0.04793223354 | P145: 0.03743637858 | Q145: 0.04518598317 | R145: 1.8712198e-05 | S145: 0.005997153748 | T145: 0.01082777044 | U145: 0.1383003817
E146: 0.04148774633 | F146: 0.08548694848 | G146: 0.0203079073 | H146: 0.07131022741 | I146: 0.001775866715 | J146: 0.05640146134 | K146: 0.05643633989 | L146: 0.7372817993 | M146: 0.3353259058 | N146: 0.7777374313 | O146: 0.6616339302 | P146: 0.3843081571 | Q146: 0.08430009086 | R146: 0.09794501807 | S146: 0.1483996914 | T146: 0.1123577702 | U146: 0.3769596891
E147: 0.01705136711 | F147: 0.002555960684 | G147: 0.002184998694 | H147: 0.06292947913 | I147: 0.03167996819 | J147: 0.005626643084 | K147: 0.009854650965 | L147: 0.004420777714 | M147: 0.03524629265 | N147: 0.002174896005 | O147: 0.002947989315 | P147: 0.02307947339 | Q147: 0.01621746762 | R147: 0.008227958471 | S147: 0.02053890654 | T147: 0.0001610549674 | U147: 0.03753286617
E148: 0.2873876802 | F148: 0.1013703719 | G148: 0.1517104505 | H148: 0.1956377434 | I148: 0.1095120372 | J148: 0.08614240644 | K148: 0.1746844489 | L148: 0.1969886934 | M148: 0.3039737325 | N148: 0.0374127089 | O148: 0.009493872624 | P148: 0.09984772177 | Q148: 0.001734691709 | R148: 0.03209425743 | S148: 0.006987304685 | T148: 0.002667521996 | U148: 0.007547156087
E149: 0.0107326751 | F149: 0.01108853969 | G149: 0.02825530127 | H149: 0.004304086584 | I149: 0.003288034836 | J149: 0.1056751406 | K149: 0.2358367617 | L149: 0.1201171593 | M149: 0.1290920507 | N149: 0.2738712591 | O149: 0.08832667753 | P149: 0.1698795319 | Q149: 0.007745426422 | R149: 0.005509011334 | S149: 0.01464090825 | T149: 0.001014754 | U149: 0.07622958324
E150: 0.05399814767 | F150: 0.02070477087 | G150: 0.1652864091 | H150: 0.003547449764 | I150: 0.006565182137 | J150: 0.05123415307 | K150: 0.01476044328 | L150: 0.04210940471 | M150: 0.06108659941 | N150: 0.005921246576 | O150: 0.04739734367 | P150: 0.04839784698 | Q150: 0.002606014826 | R150: 0.02041554584 | S150: 0.0006768346556 | T150: 0.01476699593 | U150: 0.08157626266
E151: 0.09846170882 | F151: 0.0003216106965 | G151: 0.3344640005 | H151: 0.1125535875 | I151: 0.0173029041 | J151: 0.03581687939 | K151: 0.1063834406 | L151: 0.01505518108 | M151: 0.001550816063 | N151: 0.0005453424561 | O151: 0.00409464678 | P151: 0.02728394634 | Q151: 5.986145599e-07 | R151: 0.01158697775 | S151: 0.08421196554 | T151: 0.01071324538 | U151: 0.0133054384
E152: 0.00546192689 | F152: 0.0548680499 | G152: 0.01511932676 | H152: 0.01820960844 | I152: 0.1991271213 | J152: 0.4967150218 | K152: 0.09178388709 | L152: 0.01869414655 | M152: 0.0003691132977 | N152: 0.176878005 | O152: 0.1561448272 | P152: 0.07911481245 | Q152: 0.04864744089 | R152: 0.004247598095 | S152: 0.003223097106 | T152: 0.001324811538 | U152: 0.01346287762
E153: 0.0007063445794 | F153: 0.003291786257 | G153: 0.0001058239728 | H153: 0.03153274071 | I153: 0.1904778403 | J153: 0.1437897828 | K153: 0.0006279644224 | L153: 0.2243779298 | M153: 0.3535223461 | N153: 0.1964953858 | O153: 0.07517260228 | P153: 0.008126106031 | Q153: 0.02701584751 | R153: 0.0008315663468 | S153: 0.1232059131 | T153: 0.1002830357 | U153: 0.01495808397
E154: 0.04979537709 | F154: 0.1883890133 | G154: 0.05727433358 | H154: 0.1816091263 | I154: 0.0106097974 | J154: 0.0007533493287 | K154: 0.0105929887 | L154: 0.2107824097 | M154: 0.310634401 | N154: 0.1722722909 | O154: 0.3970725524 | P154: 0.126131902 | Q154: 0.0114611417 | R154: 3.298015701e-07 | S154: 0.09808364143 | T154: 0.00748722514 | U154: 0.001615343144
E155: 0.01091249483 | F155: 0.01610833104 | G155: 0.08842731106 | H155: 0.001624361475 | I155: 0.001721214644 | J155: 0.07162556014 | K155: 0.01183121595 | L155: 0.06633843957 | M155: 0.003295618723 | N155: 0.1198899946 | O155: 0.1899765371 | P155: 0.3149368034 | Q155: 0.001049705978 | R155: 0.1352374272 | S155: 0.2371398681 | T155: 0.1445100015 | U155: 0.08140534283
E156: 0.007663142043 | F156: 0.04402455569 | G156: 0.09571137474 | H156: 0.1746114344 | I156: 0.3392224274 | J156: 0.06750865973 | K156: 0.2029442846 | L156: 6.849310011e-05 | M156: 0.01753198347 | N156: 0.05587145074 | O156: 0.003884183218 | P156: 0.1560165116 | Q156: 0.167246321 | R156: 0.01418197931 | S156: 0.0296865402 | T156: 0.02424367437 | U156: 0.0008616714574
E157: 0.01114110841 | F157: 0.007396034165 | G157: 0.06062224707 | H157: 0.02881370499 | I157: 1.034416023e-07 | J157: 0.007625750054 | K157: 0.009770198638 | L157: 0.006429666843 | M157: 0.01067417898 | N157: 0.02632398186 | O157: 0.009329098385 | P157: 0.1170196987 | Q157: 0.3608973209 | R157: 0.05659629449 | S157: 0.04169805474 | T157: 0.1838539084 | U157: 0.2169750497
E158: 0.02236770794 | F158: 0.02281095295 | G158: 0.0901926115 | H158: 0.03556345696 | I158: 0.1528224523 | J158: 0.146151129 | K158: 0.1659618771 | L158: 0.2314669561 | M158: 0.1136229065 | N158: 0.006825785542 | O158: 0.1247018627 | P158: 0.002995618073 | Q158: 1.55640016e-06 | R158: 0.008979805943 | S158: 0.05609218756 | T158: 0.008016935873 | U158: 0.0001925143041
E159: 0.07841235252 | F159: 0.0007167770732 | G159: 0.07728033775 | H159: 0.01848258584 | I159: 0.05299271819 | J159: 0.24923708 | K159: 0.2086206846 | L159: 0.01946761656 | M159: 0.001623943072 | N159: 0.0483516657 | O159: 0.00763787655 | P159: 0.07791426961 | Q159: 0.2916709634 | R159: 0.696575611 | S159: 0.2257894842 | T159: 0.2577140819 | U159: 0.361260637
E160: 0.02336752807 | F160: 0.01973376407 | G160: 1.296422918e-05 | H160: 0.004784509149 | I160: 0.07394355107 | J160: 0.1238266868 | K160: 0.08452138727 | L160: 0.01239004964 | M160: 0.0009042877226 | N160: 0.03746365285 | O160: 0.001180783582 | P160: 0.003033999637 | Q160: 0.003614024178 | R160: 0.06453340312 | S160: 0.07912458749 | T160: 0.007727944374 | U160: 0.0004904028167
E161: 0.000816947306 | F161: 1.329532063e-05 | G161: 0.05176607168 | H161: 0.02429984165 | I161: 0.009249531893 | J161: 0.0841393344 | K161: 0.05781157285 | L161: 0.1159798262 | M161: 0.00307260817 | N161: 0.0002209280557 | O161: 0.08777642898 | P161: 0.620792551 | Q161: 0.4558252896 | R161: 0.270746149 | S161: 0.1873754543 | T161: 0.0001341585702 | U161: 0.00295078258
E162: 0.09282902844 | F162: 0.1740999613 | G162: 0.05455511019 | H162: 0.05741640111 | I162: 0.03059749638 | J162: 0.2352609615 | K162: 0.31024683 | L162: 0.2139684472 | M162: 0.1165676906 | N162: 0.003223049975 | O162: 0.22697391 | P162: 0.1182820609 | Q162: 0.009970693303 | R162: 0.0118127812 | S162: 9.123279493e-05 | T162: 0.007142719011 | U162: 0.004531873254
E163: 0.02048383443 | F163: 0.008589771009 | G163: 0.00202926509 | H163: 0.08237739064 | I163: 0.06219581161 | J163: 0.1542065726 | K163: 0.05996279656 | L163: 0.008917579691 | M163: 0.01643612514 | N163: 0.05113373788 | O163: 0.00578191171 | P163: 0.0001525815678 | Q163: 0.03454757294 | R163: 0.01527036267 | S163: 0.000225782937 | T163: 0.005521022023 | U163: 0.02598403896
E164: 0.0001309326396 | F164: 0.003216293082 | G164: 0.09016710942 | H164: 0.00190951965 | I164: 0.02694411421 | J164: 0.1629194563 | K164: 0.4457910915 | L164: 0.6852524221 | M164: 0.5162177881 | N164: 0.05936349186 | O164: 0.06011936554 | P164: 0.05881006798 | Q164: 0.002127296071 | R164: 0.003112663937 | S164: 0.01507840481 | T164: 0.005543527646 | U164: 0.06013472717
E165: 0.05576526896 | F165: 0.1178114001 | G165: 0.1049862327 | H165: 0.02277964783 | I165: 0.03299185813 | J165: 0.166319126 | K165: 0.02023545234 | L165: 0.005913738245 | M165: 0.04116441787 | N165: 0.1561179633 | O165: 0.02743941087 | P165: 0.1133156905 | Q165: 0.1532154417 | R165: 0.3131690484 | S165: 0.3839915977 | T165: 0.0002272494435 | U165: 0.04618950068
E166: 0.04609458035 | F166: 0.01584852223 | G166: 0.07272315286 | H166: 0.03355822761 | I166: 0.02582370909 | J166: 0.01969117102 | K166: 0.0111571873 | L166: 0.05441766573 | M166: 0.01041318126 | N166: 0.1568535211 | O166: 0.01405809265 | P166: 0.1234260052 | Q166: 0.300885344 | R166: 0.2178911288 | S166: 0.01993501862 | T166: 0.04016579242 | U166: 0.07599399352
E167: 0.03237277432 | F167: 0.08914343033 | G167: 0.3080762598 | H167: 0.498967283 | I167: 0.3750775459 | J167: 0.08106809211 | K167: 0.156076134 | L167: 0.09939236743 | M167: 0.0006096145591 | N167: 0.0039878663 | O167: 0.02040778914 | P167: 0.005141143398 | Q167: 0.009773013181 | R167: 0.002075263098 | S167: 0.02119586384 | T167: 0.01051841608 | U167: 0.001210280953
E168: 0.02466949163 | F168: 0.001632797454 | G168: 0.00452528829 | H168: 0.01697392823 | I168: 6.934418709e-05 | J168: 0.002383424692 | K168: 0.06472692326 | L168: 0.01634069516 | M168: 0.09848530294 | N168: 0.001564433302 | O168: 0.003074481493 | P168: 0.09601786052 | Q168: 0.1792709141 | R168: 0.01807225247 | S168: 0.08803878378 | T168: 0.04983338022 | U168: 0.02452176135
E169: 0.01322868843 | F169: 0.02292790876 | G169: 0.01207237893 | H169: 0.06638557866 | I169: 0.106677517 | J169: 0.07473377061 | K169: 0.2555643649 | L169: 0.4863913917 | M169: 0.697642673 | N169: 0.7191296959 | O169: 0.2719157658 | P169: 0.08275681652 | Q169: 0.1979100823 | R169: 0.01707801408 | S169: 0.09056739461 | T169: 0.1225142221 | U169: 0.04699358589
E170: 0.007062628566 | F170: 0.04611076925 | G170: 0.02882612124 | H170: 0.04484034381 | I170: 0.07001331818 | J170: 0.007855797207 | K170: 8.693863542e-05 | L170: 0.002456390186 | M170: 0.03393740601 | N170: 0.06013872316 | O170: 0.0009713510806 | P170: 0.02652828091 | Q170: 0.08159947138 | R170: 0.1016222482 | S170: 0.03451510269 | T170: 0.008929656753 | U170: 0.09809766882
E171: 0.001504712117 | F171: 0.01787613852 | G171: 0.02694636042 | H171: 0.061681459 | I171: 0.0003574001797 | J171: 0.03647229892 | K171: 0.1395717213 | L171: 0.273895549 | M171: 0.1830905176 | N171: 0.0243958213 | O171: 0.04606355324 | P171: 0.01047210546 | Q171: 0.04591929911 | R171: 0.03833982591 | S171: 0.05544720778 | T171: 0.01572836504 | U171: 0.0283242353
E172: 0.06963068045 | F172: 0.1612698188 | G172: 0.02945297447 | H172: 0.01928081998 | I172: 0.003853031976 | J172: 0.01677671565 | K172: 0.08922420896 | L172: 0.2243169943 | M172: 0.001846435222 | N172: 0.08162473531 | O172: 0.05064031195 | P172: 0.05409937288 | Q172: 0.000649420898 | R172: 0.006905207503 | S172: 0.0441385242 | T172: 0.002703725244 | U172: 0.05666866045
E173: 0.01649085753 | F173: 0.0001362870099 | G173: 0.01813240995 | H173: 0.004995864757 | I173: 0.0003763912591 | J173: 0.0268477115 | K173: 0.258778699 | L173: 0.03523788285 | M173: 0.04668755327 | N173: 0.154053998 | O173: 0.2670943725 | P173: 0.2823683356 | Q173: 0.04872215206 | R173: 0.1240733803 | S173: 0.04959559528 | T173: 0.02326974459 | U173: 0.0004949097008
E174: 0.0008432442068 | F174: 0.08401443123 | G174: 0.0529731308 | H174: 0.4206291215 | I174: 0.114554034 | J174: 0.06861142441 | K174: 0.02006175997 | L174: 0.0326222077 | M174: 0.06688615349 | N174: 0.007074700809 | O174: 0.1160906286 | P174: 0.05300728953 | Q174: 0.1148905094 | R174: 0.01116586348 | S174: 0.006959297971 | T174: 0.02197399943 | U174: 0.02993879665
E175: 0.01209052966 | F175: 0.1104461033 | G175: 0.1154062156 | H175: 0.1729864596 | I175: 0.06354174695 | J175: 0.08584968196 | K175: 0.013528293 | L175: 0.0007632593206 | M175: 0.01025705397 | N175: 0.03858011919 | O175: 0.2074764032 | P175: 0.211437562 | Q175: 0.2825381659 | R175: 0.3038444674 | S175: 0.2074374775 | T175: 0.01777005422 | U175: 0.02730868202
E176: 0.0006441562908 | F176: 0.06429067271 | G176: 0.0174349056 | H176: 0.3331358154 | I176: 0.243445211 | J176: 0.02861425929 | K176: 0.08189384576 | L176: 0.070670076 | M176: 0.02850177811 | N176: 0.0002131739595 | O176: 0.03055452815 | P176: 0.0224658349 | Q176: 0.01812949516 | R176: 0.07133858383 | S176: 0.1253109651 | T176: 0.2006494313 | U176: 0.389601484
E177: 0.01137961883 | F177: 0.09684348207 | G177: 6.089720876e-05 | H177: 0.002920329473 | I177: 0.0156109319 | J177: 0.01188392384 | K177: 0.001731681368 | L177: 0.1667792634 | M177: 0.05110268856 | N177: 0.05541846612 | O177: 0.2442607396 | P177: 0.3308283786 | Q177: 0.003349057753 | R177: 0.01152396622 | S177: 0.05821429878 | T177: 0.002880004096 | U177: 0.02140999543
E178: 0.000326642704 | F178: 0.0006131100792 | G178: 0.0116688319 | H178: 0.1602173737 | I178: 0.01054301705 | J178: 0.02130483135 | K178: 0.01061328952 | L178: 0.06892311928 | M178: 0.05691284387 | N178: 0.04918003473 | O178: 0.1307435221 | P178: 0.08398213066 | Q178: 0.0132273736 | R178: 0.0113105585 | S178: 0.03293363776 | T178: 0.03760454052 | U178: 0.05625883624
E179: 0.1934219936 | F179: 0.04596787394 | G179: 4.970020467e-05 | H179: 0.01902654916 | I179: 0.1367956445 | J179: 0.0214573966 | K179: 1.636365123e-06 | L179: 0.006815355757 | M179: 0.06523153134 | N179: 0.08117444061 | O179: 0.1377531543 | P179: 0.05055071214 | Q179: 0.1490056429 | R179: 0.3022740547 | S179: 0.5450888262 | T179: 0.2113989567 | U179: 0.09078734748
E180: 0.01942721044 | F180: 0.004944244283 | G180: 0.01124362497 | H180: 0.007100648217 | I180: 0.004449441515 | J180: 0.002498496657 | K180: 0.02669903981 | L180: 0.01251448451 | M180: 0.0012416366 | N180: 0.001650587375 | O180: 0.03928305103 | P180: 0.1014843253 | Q180: 0.1527080469 | R180: 0.02393278413 | S180: 0.07056312608 | T180: 0.1754510637 | U180: 0.01451011283
E181: 0.001603329365 | F181: 0.0250504401 | G181: 1.543206027e-05 | H181: 0.00860246562 | I181: 0.1119754078 | J181: 0.1411409552 | K181: 0.1073588271 | L181: 0.04014073725 | M181: 0.0005665669364 | N181: 0.1080814462 | O181: 7.158514483e-05 | P181: 0.05878338287 | Q181: 0.0278490032 | R181: 0.03541207749 | S181: 0.0003900254652 | T181: 0.02989658548 | U181: 0.01721447186
E182: 0.02280491503 | F182: 0.01300051514 | G182: 0.01372203862 | H182: 0.03294803164 | I182: 0.01724079827 | J182: 0.1367712905 | K182: 0.2201136664 | L182: 0.1789964312 | M182: 0.3037053135 | N182: 0.1863497959 | O182: 0.1436623179 | P182: 0.01412487285 | Q182: 0.003866616423 | R182: 0.01808235061 | S182: 0.0001447484512 | T182: 0.01756986625 | U182: 0.0007332017722
E183: 0.009012940617 | F183: 0.04290577056 | G183: 0.2406463542 | H183: 0.3551358765 | I183: 0.05024449563 | J183: 0.01096008365 | K183: 0.3726296468 | L183: 0.3274420939 | M183: 0.1918483938 | N183: 0.1144437056 | O183: 0.05289088218 | P183: 0.02851149539 | Q183: 0.01398066949 | R183: 0.0007102672852 | S183: 0.02181210338 | T183: 0.00102821479 | U183: 0.0005679456525
E184: 0.04606259308 | F184: 0.1575233076 | G184: 0.07877992234 | H184: 0.2907202172 | I184: 0.3653509737 | J184: 0.2204831558 | K184: 0.08387816237 | L184: 0.07976524194 | M184: 0.1506508696 | N184: 0.02051930531 | O184: 0.04169940031 | P184: 0.02356238317 | Q184: 0.09538644057 | R184: 0.137665484 | S184: 0.1643553168 | T184: 0.2259715852 | U184: 0.2972161171
E185: 0.02383141388 | F185: 0.04908110482 | G185: 0.07640487267 | H185: 0.06139109587 | I185: 0.01321848266 | J185: 0.07809960384 | K185: 0.005661775197 | L185: 0.0640186412 | M185: 0.01266833661 | N185: 0.000448998373 | O185: 0.04197669311 | P185: 0.1916607534 | Q185: 0.02624127196 | R185: 0.02897482223 | S185: 0.003615664017 | T185: 0.002118331024 | U185: 0.002089216691
E186: 0.2044938284 | F186: 0.491539599 | G186: 0.3277069465 | H186: 0.4451137148 | I186: 0.1708444517 | J186: 0.1978619221 | K186: 0.05105039496 | L186: 0.279321798 | M186: 0.2812099297 | N186: 0.4782506326 | O186: 0.2995891352 | P186: 0.3175746421 | Q186: 0.2120694094 | R186: 0.4451401449 | S186: 0.05860368574 | T186: 0.015820284 | U186: 0.008113972955
E187: 0.09325672104 | F187: 0.09531039641 | G187: 0.07626345904 | H187: 0.1132414713 | I187: 0.5449874964 | J187: 0.3639653481 | K187: 0.4863347706 | L187: 0.4342151938 | M187: 0.5262837911 | N187: 0.09698734483 | O187: 0.3029298649 | P187: 0.3938702383 | Q187: 0.6307163468 | R187: 0.2721758876 | S187: 0.4155648775 | T187: 0.652528445 | U187: 0.2731702764
E188: 0.169173403 | F188: 0.1065546683 | G188: 0.0005296525416 | H188: 0.005843266116 | I188: 0.02771629702 | J188: 0.01162488598 | K188: 0.09292061532 | L188: 0.0008540786613 | M188: 0.001795512791 | N188: 0.1785434882 | O188: 0.2228820572 | P188: 0.2239417736 | Q188: 0.07398310703 | R188: 0.07026784953 | S188: 0.08707004153 | T188: 0.09508182429 | U188: 0.1667676088
E189: 0.004088535758 | F189: 7.927021873e-05 | G189: 0.01298430432 | H189: 0.002953763148 | I189: 0.01128831807 | J189: 0.01234131018 | K189: 0.04505529638 | L189: 0.002343339134 | M189: 0.05762735247 | N189: 0.01698835104 | O189: 8.958093796e-05 | P189: 0.03429845972 | Q189: 0.02837359831 | R189: 0.004206698185 | S189: 0.0562431355 | T189: 0.01286978584 | U189: 0.02027706096
E190: 0.02243460398 | F190: 0.001093873768 | G190: 0.1141962785 | H190: 0.1445457163 | I190: 0.004719966105 | J190: 0.0001834639023 | K190: 7.794370742e-05 | L190: 0.0100327573 | M190: 1.001786149e-06 | N190: 0.0210476548 | O190: 0.001356852044 | P190: 0.07545267814 | Q190: 0.2929445898 | R190: 0.0623973088 | S190: 0.1704616398 | T190: 0.1211832639 | U190: 0.004388435839
E191: 1.041388279e-06 | F191: 0.03907664103 | G191: 0.001359941703 | H191: 0.0809151057 | I191: 0.004750641167 | J191: 0.1411752687 | K191: 0.03269392197 | L191: 0.07127083365 | M191: 0.0110807266 | N191: 0.07988970914 | O191: 0.001799941312 | P191: 0.01636787784 | Q191: 0.0009808626937 | R191: 0.02698782869 | S191: 0.00103834138 | T191: 0.004611332788 | U191: 0.008233946293
E192: 0.005677634869 | F192: 7.785367193e-07 | G192: 0.008927037898 | H192: 0.00240050818 | I192: 0.02845584856 | J192: 0.002143750943 | K192: 0.006745120981 | L192: 0.001512656155 | M192: 0.0475735203 | N192: 0.1081054817 | O192: 0.007995054678 | P192: 0.03765123208 | Q192: 0.0141422818 | R192: 0.02924622462 | S192: 0.002956529077 | T192: 0.09128777077 | U192: 0.2013633578
E193: 0.0230049081 | F193: 0.01850177837 | G193: 0.0731063351 | H193: 0.005053841458 | I193: 0.1290041963 | J193: 0.00395336707 | K193: 0.04999305473 | L193: 0.005154850156 | M193: 0.04774974803 | N193: 0.05112613765 | O193: 0.0376925951 | P193: 0.009934854631 | Q193: 0.003800243382 | R193: 0.08299895301 | S193: 0.05464315317 | T193: 0.01191734273 | U193: 0.03275726195
E194: 1.518542421e-07 | F194: 0.04353775517 | G194: 0.03531420025 | H194: 0.08560743707 | I194: 0.03547084861 | J194: 0.01685496852 | K194: 0.00175400223 | L194: 0.02741315272 | M194: 0.03382077535 | N194: 0.002190877177 | O194: 0.1109015764 | P194: 0.05842086321 | Q194: 0.03349979929 | R194: 0.0005344640454 | S194: 0.1019890644 | T194: 0.0211555481 | U194: 0.02652199863
E195: 0.0006905893241 | F195: 0.06173543674 | G195: 0.002997462425 | H195: 0.03723515476 | I195: 0.00202988115 | J195: 0.04301846184 | K195: 0.01969621268 | L195: 0.01342425428 | M195: 0.1060806576 | N195: 6.592072912e-05 | O195: 0.06008250765 | P195: 0.001289750448 | Q195: 0.0506761167 | R195: 0.0009371262414 | S195: 0.03789685013 | T195: 0.02246909643 | U195: 0.0002808889313
E196: 0.04327964223 | F196: 0.03200778909 | G196: 0.01723898623 | H196: 0.07279626556 | I196: 0.09923460483 | J196: 0.04874459545 | K196: 0.0003032087959 | L196: 0.04662492178 | M196: 0.4108173408 | N196: 0.357734556 | O196: 0.1629566566 | P196: 0.04829629027 | Q196: 0.005304335072 | R196: 0.01819268799 | S196: 0.2222804593 | T196: 0.3884369066 | U196: 0.6180491542
E197: 0.09780399167 | F197: 0.02666496951 | G197: 0.006600828055 | H197: 0.08315106088 | I197: 0.212074712 | J197: 0.002942227961 | K197: 0.011617798 | L197: 0.03041491736 | M197: 1.792491928e-05 | N197: 0.004788120058 | O197: 0.004355697729 | P197: 0.0603745018 | Q197: 0.2143924837 | R197: 0.4736453206 | S197: 0.1817792378 | T197: 0.4881903531 | U197: 0.4226197165
E198: 0.02817734563 | F198: 0.1833580135 | G198: 0.03284004743 | H198: 0.1279065501 | I198: 0.0161790009 | J198: 0.01087381587 | K198: 0.01303010376 | L198: 0.06979579689 | M198: 0.001619608448 | N198: 0.00204107588 | O198: 0.01192623555 | P198: 0.01510497891 | Q198: 0.003166883092 | R198: 0.1100885979 | S198: 0.0817156557 | T198: 3.591393069e-05 | U198: 0.009050562136
E199: 0.004725637369 | F199: 0.008146304213 | G199: 0.261222595 | H199: 0.0978517827 | I199: 0.0003150226075 | J199: 0.06015773599 | K199: 0.05922626112 | L199: 0.007286648643 | M199: 0.001252000039 | N199: 0.0002972047502 | O199: 0.0147811284 | P199: 0.00304391921 | Q199: 0.006687212524 | R199: 0.04789487946 | S199: 0.0244078123 | T199: 0.007023746894 | U199: 0.002177277529
E200: 0.04437282987 | F200: 0.2600343625 | G200: 0.2461519686 | H200: 0.2026128666 | I200: 0.09068496434 | J200: 0.4571434637 | K200: 0.1695637893 | L200: 0.02375661158 | M200: 0.02701518754 | N200: 1.673059835e-08 | O200: 0.01641728261 | P200: 0.05209514693 | Q200: 0.0005532596387 | R200: 0.03103443245 | S200: 1.566557725e-05 | T200: 0.0009582729084 | U200: 0.001451051812
E201: 0.007440621765 | F201: 0.03706669671 | G201: 0.03496008888 | H201: 0.525664635 | I201: 0.2424740362 | J201: 0.01673210705 | K201: 0.0001844682554 | L201: 0.03904367438 | M201: 0.01696912325 | N201: 0.01018365465 | O201: 0.1018851825 | P201: 0.1434802944 | Q201: 0.1537103062 | R201: 0.09498757572 | S201: 0.05627384401 | T201: 0.003478941262 | U201: 0.01275241911
E202: 0.03559728832 | F202: 0.0571669187 | G202: 0.1392738215 | H202: 0.0006719070653 | I202: 0.02910396053 | J202: 0.08613530678 | K202: 0.00393389225 | L202: 0.01182398365 | M202: 0.0009882037916 | N202: 0.03997344813 | O202: 0.05250515382 | P202: 0.02787061547 | Q202: 0.01455981141 | R202: 0.02413086148 | S202: 0.004516071457 | T202: 0.009743167779 | U202: 0.01378371766
E203: 0.003715217617 | F203: 0.06695410608 | G203: 0.002050527577 | H203: 0.003662142189 | I203: 0.8313179963 | J203: 0.3826874021 | K203: 0.05067519558 | L203: 0.01976810385 | M203: 0.01207147427 | N203: 0.009439726462 | O203: 0.06242070074 | P203: 0.01883718179 | Q203: 0.02716652812 | R203: 0.03823911937 | S203: 0.3019818773 | T203: 0.02189756985 | U203: 0.1571025509
E204: 0.119509142 | F204: 0.002081427198 | G204: 0.0005370820105 | H204: 0.001699306074 | I204: 0.0008573047002 | J204: 0.04431139013 | K204: 0.0004525202032 | L204: 0.05823274889 | M204: 0.06786201972 | N204: 0.04078730466 | O204: 0.02846392915 | P204: 0.005592410208 | Q204: 0.009739471902 | R204: 0.003582897266 | S204: 0.0002641090313 | T204: 0.02941357856 | U204: 0.07266173013
... 4296 more rows

Sheet 20% MR Variance with Time
C1: Simulations3 | E1: 10000 | M1: Mean Reverting Series with 50% Mean Reverision
C3: Row Start1 | E3: 17
C4: Mean Reversion | E4: ='Annual Time Series'!D4 -> 0.2
C6: Time Period | E6: 1 | F6: 2 | G6: 3 | H6: 4 | I6: 5 | J6: 6 | K6: 7 | L6: 8 | M6: 9 | N6: 10 | O6: 11 | P6: 12 | Q6: 13 | R6: 14 | S6: 15 | T6: 16 | U6: 17 | V6: 18
C7: Median of Growth ^ 2 (Variance) | E7: =MEDIAN(E17:E1000016) -> 0.01863873161 | F7: =MEDIAN(F17:F1000016) -> 0.03039809028 | G7: =MEDIAN(G17:G1000016) -> 0.03788029136 | H7: 0.04180598189 | I7: 0.04467781767 | J7: 0.04667889975 | K7: 0.04686522978 | L7: 0.0489983897 | M7: 0.04786402375 | N7: 0.04997389849 | O7: 0.05037568478 | P7: 0.05031677686 | Q7: 0.05058641137 | R7: 0.04862316679 | S7: 0.05024352395 | T7: 0.05004370358 | U7: 0.05273236743 | V7: 0.537481165 | AQ7: Average | AR7: =AVERAGE(E14:E16) -> 
C8: Square Root of Growth - Std Dev | E8: =E7^0.5 -> 0.1365237401 | F8: 0.1743504812 | G8: 0.1946285985 | H8: 0.2044651117 | I8: 0.2113712792 | J8: 0.2160530022 | K8: 0.2164837864 | L8: 0.2213557989 | M8: 0.218778481 | N8: 0.2235484254 | O8: 0.2244452824 | P8: 0.224314014 | Q8: 0.2249142311 | R8: 0.2205066139 | S8: 0.2241506724 | T8: 0.2237045006 | U8: 0.2296352922 | V8: 0.7331310694
C9: Time Period ^ .5 | F9: =F6^0.5 -> 1.414213562 | G9: 1.732050808 | H9: 2 | I9: 2.236067977 | J9: 2.449489743 | K9: 2.645751311 | L9: 2.828427125 | M9: 3 | N9: 3.16227766 | O9: 3.31662479 | P9: 3.464101615 | Q9: 3.605551275 | R9: 3.741657387 | S9: 3.872983346 | T9: 4 | U9: 4.123105626 | V9: 4.242640687
C10: Square Root Relative to First | F10: =F8/$E$8 -> 1.277070794 | G10: 1.425602598 | H10: 1.497652434 | I10: 1.54823827 | J10: 1.582530643 | K10: 1.585686023 | L10: 1.621372215 | M10: 1.602494049 | N10: 1.63743262 | O10: 1.644001858 | P10: 1.643040352 | Q10: 1.647436783 | R10: 1.615152162 | S10: 1.641843919 | T10: 1.638575829 | U10: 1.682017297 | V10: 5.369989637
C12: Average of Growth ^ 2 (Variance) | E12: =AVERAGE(E16:E10006) -> 0.04029478974 | F12: =AVERAGE(F17:F10006) -> 0.06559641384 | G12: =AVERAGE(G17:G10006) -> 0.08074725681 | H12: 0.09118196109 | I12: 0.0994619798 | J12: 0.1055495778 | K12: 0.1083852975 | L12: 0.1131246188 | M12: 0.1163003335 | N12: 0.1167409975 | O12: 0.1169760647 | P12: 0.1174429162 | Q12: 0.1180461893 | R12: 0.115026454 | S12: 0.1165268968 | T12: 0.1179619494 | U12: 0.1193629071 | V12: 0.537481165
C13: Square Root of Growth - Std Dev | E13: =SQRT(E12) -> 0.2007356215 | F13: 0.2561179686 | G13: 0.284160618 | H13: 0.3019635095 | I13: 0.3153759341 | J13: 0.3248839451 | K13: 0.3292192241 | L13: 0.3363400346 | M13: 0.341028347 | N13: 0.3416738174 | O13: 0.3420176381 | P13: 0.3426994546 | Q13: 0.3435785053 | R13: 0.3391555011 | S13: 0.341360362 | T13: 0.3434558914 | U13: 0.3454893733 | V13: 0.7331310694 | AQ13: Bins | AR13: 30
C14: Square Root Relative to First | F14: =F13/$E$13 -> 1.275896957 | G14: =G13/$E$13 -> 1.415596374 | H14: 1.504284627 | I14: 1.571100992 | J14: 1.618466831 | K14: 1.640063789 | L14: 1.675537366 | M14: 1.698893024 | N14: 1.702108549 | O14: 1.703821352 | P14: 1.707217942 | Q14: 1.711597089 | R14: 1.689563111 | S14: 1.700547015 | T14: 1.710986266 | U14: 1.721116415 | V14: 3.652222081 | AQ14: Min | AR14: =MIN(G14:G16) -> 1.415596374
C15: Variance Relative to First | F15: =F12/$E$12 -> 1.627913044 | G15: =G12/$E$12 -> 2.003913095 | H15: 2.262872239 | I15: 2.468358327 | J15: 2.619434881 | K15: 2.689809233 | L15: 2.807425465 | M15: 2.886237506 | N15: 2.897173512 | O15: 2.9030072 | P15: 2.914593101 | Q15: 2.929564593 | R15: 2.854623505 | S15: 2.891860151 | T15: 2.927474001 | U15: 2.962241715 | V15: 13.33872613 | AQ15: Max | AR15: =MAX(G14:G16) -> 2.003913095
AQ16: Increment | AR16: =(AR15-AR14)/(AR13-1) -> 0.02028678346
V17: 0.537481165
E18: 0.0001350438583 | F18: 0.02263406259 | G18: 0.02184587975 | H18: 0.03185921291 | I18: 0.01291387483 | J18: 0.004627501821 | K18: 0.01151114148 | L18: 0.06748983791 | M18: 0.09118007088 | N18: 0.1131349784 | O18: 0.004964243398 | P18: 0.0009268459375 | Q18: 0.03669142289 | R18: 0.005543775946 | S18: 0.0009808980718 | T18: 0.1796747081 | U18: 0.1334286837
E19: 0.01657271719 | F19: 0.007450533229 | G19: 0.0003048207862 | H19: 0.1500607715 | I19: 0.01933365235 | J19: 0.0006020163614 | K19: 0.0008820052745 | L19: 0.04783217007 | M19: 0.01117364157 | N19: 0.02227980216 | O19: 0.07039331399 | P19: 0.07703544856 | Q19: 0.04641420591 | R19: 0.007136437569 | S19: 0.1456252328 | T19: 0.0119278892 | U19: 0.03551389961
E20: 0.09554512501 | F20: 0.002241116938 | G20: 0.03755283816 | H20: 0.01633439335 | I20: 0.06566891252 | J20: 0.1618920967 | K20: 0.1578054915 | L20: 0.1537326435 | M20: 0.06772959999 | N20: 0.03255906541 | O20: 0.0108373417 | P20: 0.0002702606571 | Q20: 0.0009516307856 | R20: 0.003440646475 | S20: 0.2064871708 | T20: 0.08124539692 | U20: 0.001889981969
E21: 0.004138632811 | F21: 0.0676041889 | G21: 0.04764409924 | H21: 0.0008358829283 | I21: 0.0665502745 | J21: 0.01438322552 | K21: 0.01148018301 | L21: 0.01576384995 | M21: 0.01518968301 | N21: 1.797336547e-05 | O21: 0.05896708314 | P21: 0.003689295128 | Q21: 0.00428911478 | R21: 0.1274757603 | S21: 0.09197711328 | T21: 0.1450823797 | U21: 0.0009597426922
E22: 0.01407657278 | F22: 0.006882063347 | G22: 0.002131976899 | H22: 0.04147514151 | I22: 0.1097742583 | J22: 0.04010595786 | K22: 0.006020699577 | L22: 0.02384178763 | M22: 0.0003986685252 | N22: 0.01377067258 | O22: 0.0002923608253 | P22: 0.004466376191 | Q22: 0.1116194732 | R22: 0.4596273938 | S22: 0.4224094254 | T22: 0.1382627292 | U22: 0.01027368084
E23: 0.03566952511 | F23: 0.6553096225 | G23: 0.5162237361 | H23: 0.7256340263 | I23: 0.7039854506 | J23: 0.7209027986 | K23: 0.791610149 | L23: 0.8822693406 | M23: 0.7783393561 | N23: 0.6059179492 | O23: 0.5793962062 | P23: 0.397253748 | Q23: 0.5490130452 | R23: 0.06000860598 | S23: 0.00143607865 | T23: 0.009456077319 | U23: 0.02600027164
E24: 0.01567333819 | F24: 0.1874957053 | G24: 0.06124879261 | H24: 0.000816003738 | I24: 0.08994815082 | J24: 0.01830952831 | K24: 1.561995931e-08 | L24: 0.005759385461 | M24: 0.06894128207 | N24: 0.09656574645 | O24: 0.2335254473 | P24: 0.5183355672 | Q24: 0.3207853209 | R24: 0.2777469177 | S24: 0.147601908 | T24: 0.001391242976 | U24: 0.09553176127
E25: 0.004816151903 | F25: 0.02777411362 | G25: 0.1780993123 | H25: 0.4994887956 | I25: 0.664402433 | J25: 0.04962658187 | K25: 0.05915661005 | L25: 0.3205312982 | M25: 0.6328997047 | N25: 0.3269824933 | O25: 0.2263950738 | P25: 0.349914242 | Q25: 0.3079505216 | R25: 0.01789483585 | S25: 0.08113981603 | T25: 0.003370735928 | U25: 0.009990705133
E26: 0.09562897172 | F26: 0.005188785618 | G26: 0.0006064967731 | H26: 0.1062979574 | I26: 0.03659299248 | J26: 0.2320559755 | K26: 0.05248020914 | L26: 0.04709263173 | M26: 0.1041110875 | N26: 0.2895196229 | O26: 0.2223984539 | P26: 0.008999277359 | Q26: 0.01830963136 | R26: 0.02671780504 | S26: 0.06434214963 | T26: 0.05327155688 | U26: 0.04612142446
E27: 3.460405669e-06 | F27: 0.04709292978 | G27: 0.1884600106 | H27: 0.06097589733 | I27: 0.2247971438 | J27: 0.6897423795 | K27: 0.7316331865 | L27: 0.5613694813 | M27: 0.541753772 | N27: 0.1523575635 | O27: 0.2186729724 | P27: 0.2490443817 | Q27: 0.1113689342 | R27: 0.003221442373 | S27: 0.002146401284 | T27: 0.03354065917 | U27: 0.02326408569
E28: 5.807779034e-05 | F28: 0.02562080532 | G28: 0.2650140761 | H28: 0.2542486867 | I28: 0.1622392986 | J28: 0.0301358557 | K28: 0.07757308346 | L28: 0.3089515076 | M28: 0.345324006 | N28: 0.3121130323 | O28: 0.5057459893 | P28: 0.03964146943 | Q28: 0.1205118144 | R28: 0.2265552202 | S28: 0.00488818885 | T28: 0.00198369091 | U28: 0.02221310283
E29: 0.04715609413 | F29: 0.01405354083 | G29: 0.04707611984 | H29: 0.02522575101 | I29: 0.09938405042 | J29: 0.09806963446 | K29: 0.002844262655 | L29: 0.1732677136 | M29: 0.03615933388 | N29: 0.02829590264 | O29: 3.015931531e-06 | P29: 0.0131169864 | Q29: 0.09293655357 | R29: 0.0009239928101 | S29: 0.00201870505 | T29: 0.0279199337 | U29: 0.05556341674
E30: 0.001812692078 | F30: 0.1784124646 | G30: 0.07733749191 | H30: 0.3235301065 | I30: 0.1121902997 | J30: 0.06188304015 | K30: 0.02202713028 | L30: 0.0002052606893 | M30: 0.1040612814 | N30: 0.4433421673 | O30: 1.369090322 | P30: 0.6896385513 | Q30: 0.7783786958 | R30: 0.1107549251 | S30: 0.1993843536 | T30: 0.2402728161 | U30: 0.4004456124
E31: 0.008811099303 | F31: 0.1561996885 | G31: 0.1337952696 | H31: 0.03467644861 | I31: 0.02012121854 | J31: 0.02802988232 | K31: 0.02158250454 | L31: 0.0793153103 | M31: 0.07854582161 | N31: 0.01531545535 | O31: 0.03772569987 | P31: 0.1492140214 | Q31: 0.05377726629 | R31: 0.004050328012 | S31: 0.00190361787 | T31: 0.139432234 | U31: 0.2291671836
E32: 0.05745741939 | F32: 0.06599605619 | G32: 0.008515972224 | H32: 0.01792576183 | I32: 0.09642999855 | J32: 0.01207304387 | K32: 0.03790829518 | L32: 0.00326513594 | M32: 0.105459406 | N32: 0.2078669319 | O32: 0.2352785982 | P32: 0.1883570138 | Q32: 0.1327634634 | R32: 0.1165287659 | S32: 0.005817721389 | T32: 0.07943812908 | U32: 0.0007639301408
E33: 0.0002017531877 | F33: 0.08934099479 | G33: 0.693239113 | H33: 0.7896144085 | I33: 0.6066747114 | J33: 0.3281932318 | K33: 0.1589370504 | L33: 0.177314642 | M33: 0.2466533734 | N33: 0.1689042838 | O33: 0.2007816332 | P33: 0.139140395 | Q33: 0.3908905285 | R33: 0.3100936469 | S33: 0.3365348957 | T33: 0.3286144616 | U33: 0.1072892368
E34: 0.003165788795 | F34: 0.05408446152 | G34: 0.1808322308 | H34: 0.2388579127 | I34: 0.06105737922 | J34: 0.007693333064 | K34: 0.1275909958 | L34: 0.04026475903 | M34: 0.04538121238 | N34: 0.1311064652 | O34: 0.01064724403 | P34: 0.004231986875 | Q34: 0.0552478668 | R34: 0.003531422919 | S34: 0.01250305666 | T34: 0.3265011624 | U34: 0.2961876705
E35: 0.03508570967 | F35: 1.814447417e-05 | G35: 0.3093082324 | H35: 0.1832822321 | I35: 0.3979057219 | J35: 0.5400010797 | K35: 0.1513063261 | L35: 0.1678405448 | M35: 0.00156640999 | N35: 0.004013428581 | O35: 0.06521984581 | P35: 0.1515292556 | Q35: 0.111376548 | R35: 0.4740407608 | S35: 0.3171071004 | T35: 0.2929979188 | U35: 0.2984091645
E36: 0.01262295454 | F36: 0.06488411501 | G36: 0.005408682945 | H36: 0.06016123914 | I36: 0.04314830125 | J36: 0.1741182904 | K36: 0.006624390247 | L36: 1.325492965e-05 | M36: 0.00262332466 | N36: 0.0002274793826 | O36: 0.02024916459 | P36: 0.002145877139 | Q36: 0.03726085462 | R36: 0.02761960416 | S36: 3.202486856e-05 | T36: 0.02966299059 | U36: 0.0003127517765
E37: 0.02377021574 | F37: 0.02607388232 | G37: 0.0005907675523 | H37: 0.06017307675 | I37: 0.06546374105 | J37: 0.01449654861 | K37: 0.1299840163 | L37: 0.4009440182 | M37: 0.3893764803 | N37: 0.4341548392 | O37: 0.5413815878 | P37: 0.216453645 | Q37: 0.3387966182 | R37: 0.2695530946 | S37: 0.2692954216 | T37: 0.3934051285 | U37: 0.4906871969
E38: 0.02216447792 | F38: 0.05588760558 | G38: 0.03665799965 | H38: 0.001978306636 | I38: 0.05505282521 | J38: 0.06250613836 | K38: 0.1421961609 | L38: 0.1367560237 | M38: 0.002027330678 | N38: 0.05801269012 | O38: 0.02720554774 | P38: 0.04271797194 | Q38: 0.02674181555 | R38: 0.1020949593 | S38: 0.09705299154 | T38: 0.2935628659 | U38: 0.44028583
E39: 0.1572994242 | F39: 0.2075457477 | G39: 0.02083217491 | H39: 0.0005500317942 | I39: 0.0006449309133 | J39: 0.1604768569 | K39: 0.1448411273 | L39: 0.06407430022 | M39: 0.0741895526 | N39: 0.2401667112 | O39: 0.1538643709 | P39: 0.1393282388 | Q39: 0.1476386884 | R39: 0.1465016936 | S39: 0.08181238539 | T39: 0.001438375291 | U39: 0.2964547024
E40: 0.0005947733072 | F40: 0.1088831749 | G40: 0.02870953273 | H40: 0.002562435074 | I40: 0.0009378795991 | J40: 0.01892798166 | K40: 0.0402306979 | L40: 0.08724246904 | M40: 9.075851431e-05 | N40: 0.000245227223 | O40: 0.005595973811 | P40: 0.2974115548 | Q40: 0.3410213094 | R40: 0.5010827347 | S40: 0.5125874251 | T40: 0.06452599812 | U40: 0.1321778167
E41: 0.00107363518 | F41: 0.02076252813 | G41: 0.0003396348775 | H41: 0.0005192343857 | I41: 0.1427576088 | J41: 0.244334083 | K41: 0.0009545046848 | L41: 0.02970414641 | M41: 0.02580930495 | N41: 0.008689410752 | O41: 0.003359124117 | P41: 0.07819089614 | Q41: 0.01029917183 | R41: 0.02572782889 | S41: 0.0002985989631 | T41: 0.002369077825 | U41: 0.09227885406
E42: 0.0001268678138 | F42: 0.007684982316 | G42: 0.07447318218 | H42: 0.2412814561 | I42: 0.2123212343 | J42: 0.09376015196 | K42: 0.03363700603 | L42: 0.0337313664 | M42: 0.09091018592 | N42: 0.003613350693 | O42: 0.05299064112 | P42: 0.2301143673 | Q42: 0.2241887153 | R42: 0.2714986025 | S42: 0.1496809339 | T42: 0.1340807231 | U42: 0.08794284039
E43: 0.1758449593 | F43: 0.5526798533 | G43: 0.4701968044 | H43: 0.4556863504 | I43: 0.5678510146 | J43: 0.115524794 | K43: 0.07995574069 | L43: 0.0135324695 | M43: 0.003637964144 | N43: 0.0005237446743 | O43: 0.003485671742 | P43: 0.003523068196 | Q43: 0.04953106993 | R43: 0.007190065987 | S43: 0.2139915771 | T43: 0.3138856262 | U43: 0.6830413605
E44: 3.877516986e-05 | F44: 0.2705224492 | G44: 0.002267487043 | H44: 0.1052328533 | I44: 0.1691877243 | J44: 0.01714152224 | K44: 0.04150972474 | L44: 0.1708411427 | M44: 0.5160868703 | N44: 0.03274792341 | O44: 0.07358911713 | P44: 0.002243155254 | Q44: 0.007644029931 | R44: 0.01268247724 | S44: 0.05177359149 | T44: 0.01633246808 | U44: 0.1187503707
E45: 0.1058207144 | F45: 0.1488895583 | G45: 0.1456043163 | H45: 0.1311257392 | I45: 0.3291396246 | J45: 0.6826415521 | K45: 0.6629497031 | L45: 0.9749078633 | M45: 1.012588785 | N45: 1.327332206 | O45: 0.3372535565 | P45: 0.5934515022 | Q45: 0.2105869331 | R45: 0.3481943896 | S45: 0.2412446925 | T45: 0.208451067 | U45: 0.3590765822
E46: 0.005417152776 | F46: 0.02239024627 | G46: 0.08605264007 | H46: 0.01347598067 | I46: 0.0717106269 | J46: 0.211494908 | K46: 0.4150271029 | L46: 0.4242171001 | M46: 0.1719586732 | N46: 0.04727540891 | O46: 0.01648375017 | P46: 0.1288407271 | Q46: 0.001008549834 | R46: 0.005083004488 | S46: 0.1726178841 | T46: 0.01940381315 | U46: 0.03204998621
E47: 0.0001658084677 | F47: 0.002540414762 | G47: 0.1123355704 | H47: 0.04417584358 | I47: 0.06164522226 | J47: 0.01620065986 | K47: 0.01767808303 | L47: 0.04403319327 | M47: 0.03976269172 | N47: 0.1069108218 | O47: 0.03455653026 | P47: 0.00143440544 | Q47: 0.0107506601 | R47: 0.04863517102 | S47: 0.005108023245 | T47: 0.007424050738 | U47: 0.000532358359
E48: 0.001789006866 | F48: 0.01545847522 | G48: 0.002773344153 | H48: 0.1188526605 | I48: 0.03768905955 | J48: 0.1808842454 | K48: 0.08202807103 | L48: 0.08284443066 | M48: 7.342889526e-05 | N48: 0.01271431803 | O48: 0.2251714748 | P48: 0.008643103328 | Q48: 0.001505076718 | R48: 0.03636982996 | S48: 0.00442087409 | T48: 0.01505869864 | U48: 0.009209654536
E49: 0.04106683804 | F49: 0.0003379665718 | G49: 0.07932381295 | H49: 0.009121796401 | I49: 0.07250839991 | J49: 6.423659962e-08 | K49: 0.06572203578 | L49: 0.0001038601334 | M49: 0.01512374726 | N49: 0.00223846275 | O49: 0.001598670333 | P49: 0.05396836143 | Q49: 0.01327564755 | R49: 0.0743668531 | S49: 0.2981063625 | T49: 0.5669648725 | U49: 0.256914397
E50: 0.273669758 | F50: 0.03343316183 | G50: 0.004160439544 | H50: 0.002239728255 | I50: 0.001225191625 | J50: 0.01706071246 | K50: 0.0005917549442 | L50: 0.001513370477 | M50: 0.1427383224 | N50: 0.2699822205 | O50: 0.3569292733 | P50: 0.2382207564 | Q50: 0.08572330448 | R50: 0.04149302184 | S50: 0.002518605729 | T50: 0.04915179803 | U50: 0.0009069463829
E51: 0.003666461574 | F51: 0.006295271905 | G51: 0.01336964955 | H51: 0.0224121191 | I51: 0.03379232465 | J51: 0.09252310502 | K51: 0.05970527636 | L51: 0.0008814967762 | M51: 0.0001510084658 | N51: 0.006183237182 | O51: 0.04889200744 | P51: 0.02583978564 | Q51: 0.113058771 | R51: 0.1111500035 | S51: 0.1794402084 | T51: 0.2053886897 | U51: 0.4666439817
E52: 0.008242953752 | F52: 0.007764570972 | G52: 0.04883342532 | H52: 0.002003371143 | I52: 0.02252233832 | J52: 0.000471861656 | K52: 0.03094392762 | L52: 0.05312382018 | M52: 0.03205405766 | N52: 0.006591544692 | O52: 0.0002144842383 | P52: 0.0002530014902 | Q52: 0.0006453197741 | R52: 0.006095889491 | S52: 0.05840923604 | T52: 0.4001940656 | U52: 0.2007574482
E53: 7.10949468e-05 | F53: 0.005923720873 | G53: 0.009421610908 | H53: 0.00151573108 | I53: 0.03026000995 | J53: 0.01999255136 | K53: 0.00995148571 | L53: 0.000613467615 | M53: 2.204976353e-05 | N53: 0.01780205401 | O53: 0.0007215957905 | P53: 0.0009690362877 | Q53: 0.00989380743 | R53: 0.02218419477 | S53: 0.007478421367 | T53: 0.003453981919 | U53: 0.01068563386
E54: 9.04021275e-05 | F54: 0.04220917492 | G54: 0.001364063304 | H54: 0.0003625216038 | I54: 0.07974404026 | J54: 0.1960652133 | K54: 0.2794893431 | L54: 0.04934525251 | M54: 0.01829665553 | N54: 0.005836179539 | O54: 0.09095302153 | P54: 0.04555068029 | Q54: 0.1419644783 | R54: 0.03538373506 | S54: 0.002074489131 | T54: 0.004823025209 | U54: 0.0140061738
E55: 0.05310616952 | F55: 3.607542918e-05 | G55: 3.653999699e-05 | H55: 0.0474914537 | I55: 0.002563620251 | J55: 0.008439190347 | K55: 0.04682117067 | L55: 0.01273981207 | M55: 0.005245179707 | N55: 0.0004253666492 | O55: 0.01425163174 | P55: 0.01446719548 | Q55: 0.03017038933 | R55: 0.09323516285 | S55: 0.03118214141 | T55: 0.00599244975 | U55: 0.02186795259
E56: 0.05267620048 | F56: 0.06327828245 | G56: 0.01428426465 | H56: 0.01058231054 | I56: 0.2060976186 | J56: 0.03489958164 | K56: 0.02283647242 | L56: 0.1476785072 | M56: 0.04819783919 | N56: 0.001263077565 | O56: 0.1055457007 | P56: 0.0332891708 | Q56: 0.02298704778 | R56: 0.01066020027 | S56: 0.06693354306 | T56: 0.1670470307 | U56: 0.2022838494
E57: 0.03289410786 | F57: 0.01366910065 | G57: 2.42304714e-06 | H57: 0.03657800202 | I57: 0.02319651533 | J57: 0.07405585901 | K57: 0.07075194248 | L57: 0.0004025853226 | M57: 0.003964250303 | N57: 0.04910874755 | O57: 0.007105510217 | P57: 0.242587446 | Q57: 0.09238186644 | R57: 0.06286995443 | S57: 0.0918651109 | T57: 0.00135746031 | U57: 0.1329776214
E58: 0.02787440806 | F58: 0.008875259028 | G58: 0.07860524082 | H58: 0.3535329252 | I58: 0.09091784509 | J58: 0.08006424213 | K58: 0.3505972318 | L58: 0.1975592848 | M58: 0.07042232259 | N58: 3.0078124e-05 | O58: 0.02753045619 | P58: 0.003742177528 | Q58: 0.09420833962 | R58: 0.007042521278 | S58: 0.006887974998 | T58: 0.02506241804 | U58: 0.001060459437
E59: 0.0004965355562 | F59: 0.0993493891 | G59: 0.03485578355 | H59: 0.0071730313 | I59: 0.003365227364 | J59: 0.001763128994 | K59: 0.03731170619 | L59: 0.09190394871 | M59: 0.1526674051 | N59: 0.0155894029 | O59: 0.0294572961 | P59: 0.0247186418 | Q59: 0.007586782181 | R59: 0.1396008922 | S59: 0.1734511603 | T59: 0.04083069258 | U59: 0.1181375394
E60: 0.007479230653 | F60: 0.1248447184 | G60: 0.02260805025 | H60: 0.2039682205 | I60: 0.5026272618 | J60: 0.5247377253 | K60: 0.2529241719 | L60: 0.0578829302 | M60: 0.1322146585 | N60: 0.002770187209 | O60: 0.008065168795 | P60: 0.05521807433 | Q60: 0.03240223294 | R60: 0.003349015279 | S60: 0.04903241527 | T60: 0.02938989043 | U60: 0.08493907753
E61: 0.003389620765 | F61: 0.02064394148 | G61: 0.04099032787 | H61: 0.005796220628 | I61: 0.0005825112847 | J61: 0.04597424686 | K61: 0.1180415628 | L61: 0.006501529009 | M61: 0.04454510216 | N61: 0.1673911457 | O61: 0.3715106701 | P61: 0.1825621244 | Q61: 0.03490964466 | R61: 0.05603979726 | S61: 0.006730617407 | T61: 0.1159537284 | U61: 0.2420103342
E62: 0.002682200713 | F62: 0.0155023286 | G62: 0.01030836997 | H62: 0.1432902301 | I62: 0.1000999336 | J62: 0.3464413077 | K62: 0.1729186349 | L62: 0.06640947655 | M62: 0.3036072314 | N62: 0.1431482236 | O62: 0.02197291322 | P62: 0.04321483447 | Q62: 0.06611285451 | R62: 0.07732021155 | S62: 0.0002052143093 | T62: 0.03674583812 | U62: 0.003417433977
E63: 0.02700639792 | F63: 0.1126742216 | G63: 0.2881527928 | H63: 0.5494635413 | I63: 0.2993662807 | J63: 0.187920016 | K63: 0.2254534764 | L63: 0.06185457688 | M63: 0.1415146107 | N63: 0.0735981279 | O63: 0.1022812742 | P63: 0.02705698496 | Q63: 0.05671630571 | R63: 0.1954274167 | S63: 0.02382625318 | T63: 0.002260414342 | U63: 0.1293201303
E64: 0.01213011056 | F64: 0.0005833992952 | G64: 0.001146448281 | H64: 0.01473764422 | I64: 0.006337678717 | J64: 0.004719962636 | K64: 0.007911879997 | L64: 0.003795249954 | M64: 0.0001155010372 | N64: 0.06450713144 | O64: 0.06345423189 | P64: 0.2512404372 | Q64: 0.3103392243 | R64: 0.0437572849 | S64: 0.004888754851 | T64: 0.08368149261 | U64: 0.05955856305
E65: 0.08794780124 | F65: 0.05457848961 | G65: 0.003792998622 | H65: 0.0008813829337 | I65: 0.01941491257 | J65: 0.01146938083 | K65: 0.01074499044 | L65: 0.03887019858 | M65: 0.1269749139 | N65: 0.2446552657 | O65: 0.1373798009 | P65: 0.008208876424 | Q65: 0.03708299105 | R65: 0.02169002872 | S65: 0.0004484477295 | T65: 0.001873804145 | U65: 0.002443717479
E66: 0.0003895534938 | F66: 0.02977024583 | G66: 0.08979986862 | H66: 0.1930734278 | I66: 0.028805615 | J66: 0.06696455735 | K66: 0.06777287027 | L66: 0.1882381212 | M66: 0.54888911 | N66: 0.2218548528 | O66: 0.1131058373 | P66: 0.1631037105 | Q66: 0.1421912991 | R66: 0.2782660145 | S66: 0.04125947186 | T66: 0.008321122582 | U66: 0.03736015895
E67: 0.0192759643 | F67: 3.870124532e-06 | G67: 0.008370907709 | H67: 0.0275456992 | I67: 0.002896329467 | J67: 2.473738968e-05 | K67: 0.1674888439 | L67: 0.1239585702 | M67: 0.6498983355 | N67: 0.7367724109 | O67: 0.4621122976 | P67: 0.07700712653 | Q67: 2.39933695e-05 | R67: 0.07168366033 | S67: 0.4412267239 | T67: 0.4874107807 | U67: 0.5266749505
E68: 0.00142762017 | F68: 0.105303844 | G68: 0.005095219105 | H68: 0.07576408525 | I68: 0.06960896263 | J68: 0.008913806613 | K68: 0.08156478743 | L68: 0.02976274677 | M68: 0.01636798238 | N68: 0.04535171709 | O68: 0.0001610868529 | P68: 2.811395034e-05 | Q68: 0.003889735236 | R68: 0.002578185019 | S68: 0.02717564575 | T68: 0.004279752915 | U68: 0.0002786657551
E69: 0.05114823883 | F69: 0.01056547596 | G69: 0.001020666791 | H69: 0.01883706759 | I69: 0.01868254573 | J69: 0.01072921883 | K69: 0.02549694491 | L69: 0.2473677351 | M69: 0.2470939566 | N69: 0.07678394529 | O69: 0.1045957935 | P69: 0.1029264135 | Q69: 0.08274211355 | R69: 0.3635255086 | S69: 0.002649831601 | T69: 0.07886796596 | U69: 0.1015317508
E70: 0.001678869711 | F70: 0.01964345876 | G70: 0.006401286121 | H70: 9.092410291e-05 | I70: 0.008329593241 | J70: 0.01109616074 | K70: 0.2942965381 | L70: 0.3208416363 | M70: 0.27200914 | N70: 0.1198950795 | O70: 0.04132089333 | P70: 0.1254129238 | Q70: 0.01339323344 | R70: 0.009521540393 | S70: 0.006647841142 | T70: 0.004362929813 | U70: 0.003265280224
E71: 0.15854122 | F71: 0.09714215642 | G71: 0.001354165667 | H71: 0.07031675336 | I71: 0.02319983401 | J71: 0.002654660115 | K71: 0.000114588331 | L71: 0.01715421588 | M71: 0.02587451972 | N71: 0.04240274377 | O71: 0.0004781517902 | P71: 0.001641134122 | Q71: 0.002742060207 | R71: 0.006900592037 | S71: 0.00631788851 | T71: 0.291125311 | U71: 0.04621241763
E72: 0.2029867657 | F72: 0.2340766347 | G72: 0.03948474441 | H72: 0.01669347722 | I72: 0.004565148011 | J72: 0.07520927556 | K72: 0.5619027337 | L72: 0.6121526581 | M72: 0.7298730412 | N72: 0.51673803 | O72: 0.8940369463 | P72: 0.4504160586 | Q72: 0.4256175912 | R72: 0.268886036 | S72: 0.4049172229 | T72: 0.3208417335 | U72: 0.6174518435
E73: 0.005319023924 | F73: 0.007887182948 | G73: 0.002738123519 | H73: 0.04519313206 | I73: 0.007799519166 | J73: 0.01644667072 | K73: 0.001632807235 | L73: 0.02619939496 | M73: 0.04160990156 | N73: 0.005593486995 | O73: 0.05135903424 | P73: 0.001416601732 | Q73: 0.01937233345 | R73: 0.06242295723 | S73: 0.1979676254 | T73: 0.3099303871 | U73: 0.03377255917
E74: 0.1648946955 | F74: 0.09376427691 | G74: 0.06384230661 | H74: 0.07230778153 | I74: 0.02759063162 | J74: 0.1019472268 | K74: 0.1463377933 | L74: 0.1342743592 | M74: 0.3081283887 | N74: 0.4311181861 | O74: 0.2547286112 | P74: 0.02396498237 | Q74: 0.01104803804 | R74: 0.0230151525 | S74: 0.2032387617 | T74: 0.5748054395 | U74: 0.1798245972
E75: 0.1902383131 | F75: 0.1873507471 | G75: 0.1773657205 | H75: 0.06720023268 | I75: 0.0956310672 | J75: 0.00444411415 | K75: 0.0065417665 | L75: 0.01076589523 | M75: 0.05291238422 | N75: 0.03455967164 | O75: 0.01258054065 | P75: 0.1442003204 | Q75: 0.1662189754 | R75: 0.05980923075 | S75: 0.09793690237 | T75: 0.1373157066 | U75: 0.03322136052
E76: 0.01843034689 | F76: 0.2797383219 | G76: 0.1019599862 | H76: 0.1468112751 | I76: 0.06144428637 | J76: 0.09459277077 | K76: 0.1291950803 | L76: 0.01884733947 | M76: 0.002606094357 | N76: 0.01645676201 | O76: 0.006317886486 | P76: 0.0357791717 | Q76: 0.02138259684 | R76: 0.008835784433 | S76: 0.00701497089 | T76: 0.01018628473 | U76: 0.005557669986
E77: 0.01759446914 | F77: 0.009431033311 | G77: 0.01723789414 | H77: 0.001444353064 | I77: 0.1286294758 | J77: 0.05394542179 | K77: 0.02080328658 | L77: 0.1989774556 | M77: 0.1427768552 | N77: 0.01832330264 | O77: 0.002108105314 | P77: 0.003376329499 | Q77: 0.01231046248 | R77: 0.001900534302 | S77: 0.0003677571458 | T77: 0.002647138411 | U77: 0.14384637
E78: 0.2030117012 | F78: 0.1759942009 | G78: 0.08555501335 | H78: 0.5051816078 | I78: 0.1306788079 | J78: 0.001870713897 | K78: 0.000751576775 | L78: 0.04876330447 | M78: 0.06976491482 | N78: 0.1569953218 | O78: 0.09179721828 | P78: 0.1666450795 | Q78: 0.2808982128 | R78: 0.2153713881 | S78: 0.214523757 | T78: 0.2284256864 | U78: 0.03639117125
E79: 0.001121515527 | F79: 0.09345134213 | G79: 0.04915420187 | H79: 0.05777433295 | I79: 0.01386866684 | J79: 0.01468725833 | K79: 0.01808919938 | L79: 0.009113243691 | M79: 0.1041436883 | N79: 0.09152197464 | O79: 0.0001931734298 | P79: 0.05618573982 | Q79: 0.001070950547 | R79: 0.01529028009 | S79: 0.03052655285 | T79: 0.06539904819 | U79: 0.003809109496
E80: 0.02378155633 | F80: 0.004528736321 | G80: 0.002227925081 | H80: 0.001201558784 | I80: 0.0409809522 | J80: 0.04577227111 | K80: 0.1522888303 | L80: 0.1374813081 | M80: 0.1783005187 | N80: 0.1441159513 | O80: 0.4435709926 | P80: 0.1502005527 | Q80: 0.2478250161 | R80: 0.2284396442 | S80: 0.1326042397 | T80: 0.1779224155 | U80: 0.05502436017
E81: 0.003413438624 | F81: 7.582849567e-05 | G81: 0.07152953417 | H81: 0.1032301013 | I81: 0.1150564522 | J81: 0.1302310816 | K81: 0.4842495224 | L81: 0.1992360257 | M81: 0.05560487855 | N81: 0.151798501 | O81: 0.1007428342 | P81: 0.1883382999 | Q81: 0.2685725165 | R81: 0.2309628261 | S81: 0.1450613708 | T81: 0.5313327503 | U81: 0.6347930384
E82: 0.02364150643 | F82: 0.1218740235 | G82: 0.04715263863 | H82: 0.4302328694 | I82: 0.3096461326 | J82: 0.1565004232 | K82: 0.5965038408 | L82: 0.5074712393 | M82: 0.1149498602 | N82: 0.005470607373 | O82: 0.04662738795 | P82: 0.3238882093 | Q82: 0.5456409783 | R82: 0.09440399785 | S82: 0.0789141226 | T82: 0.1577529234 | U82: 0.05549660724
E83: 0.1462455873 | F83: 0.03863471224 | G83: 0.05606131242 | H83: 0.1757686363 | I83: 0.2691078018 | J83: 0.1200501235 | K83: 0.8771046164 | L83: 0.6843782645 | M83: 0.5551688803 | N83: 0.2050261725 | O83: 2.13501069e-06 | P83: 0.03762693493 | Q83: 0.1693599013 | R83: 0.03997085893 | S83: 4.762389127e-06 | T83: 0.04885993584 | U83: 0.09862105632
E84: 0.00265106304 | F84: 0.005048094647 | G84: 0.1291596782 | H84: 0.00507406648 | I84: 0.01440982246 | J84: 0.04229183365 | K84: 0.01871619474 | L84: 0.02843139657 | M84: 0.00305816972 | N84: 0.00909601597 | O84: 0.002123532029 | P84: 0.0766419415 | Q84: 0.1875472409 | R84: 0.1436597743 | S84: 0.2419272066 | T84: 0.2037380504 | U84: 0.3217728645
E85: 0.008077615412 | F85: 0.01364173039 | G85: 0.2555004445 | H85: 0.09406330204 | I85: 0.05576083654 | J85: 0.0001422345183 | K85: 0.0250882284 | L85: 0.179759347 | M85: 0.680111716 | N85: 0.2694660487 | O85: 0.1134694587 | P85: 0.01087521515 | Q85: 0.04905674295 | R85: 0.04962309351 | S85: 0.008564214005 | T85: 0.007140630722 | U85: 0.05435214072
E86: 0.01188743584 | F86: 0.03529373705 | G86: 0.05192067693 | H86: 0.0208287072 | I86: 0.1189427881 | J86: 0.03761172899 | K86: 0.05052884533 | L86: 0.121462056 | M86: 0.1404866629 | N86: 0.1083228659 | O86: 0.02002453194 | P86: 0.01703402196 | Q86: 0.01416361818 | R86: 0.06597510503 | S86: 0.002468398333 | T86: 0.1010814911 | U86: 0.05579611665
E87: 0.008382776545 | F87: 0.01696554233 | G87: 0.05939664171 | H87: 9.868839151e-05 | I87: 0.08731635415 | J87: 0.497771047 | K87: 0.03103392442 | L87: 0.0003938749506 | M87: 0.08634985285 | N87: 0.0007702707126 | O87: 0.05375698683 | P87: 0.03992747822 | Q87: 0.06494274717 | R87: 0.02399561224 | S87: 0.2907975202 | T87: 0.3969062657 | U87: 0.2883784707
E88: 0.00970517166 | F88: 0.03784739736 | G88: 0.008499976527 | H88: 0.009263775395 | I88: 0.004781550605 | J88: 0.01741711883 | K88: 0.001646974504 | L88: 0.02518223648 | M88: 0.01351244787 | N88: 0.1134563369 | O88: 0.1020948743 | P88: 0.05444631145 | Q88: 0.0218150386 | R88: 0.008830231931 | S88: 0.07308908049 | T88: 0.06884242059 | U88: 0.3656620941
E89: 0.002200513298 | F89: 0.301869419 | G89: 0.05824448271 | H89: 2.480029097e-05 | I89: 0.021102089 | J89: 0.02655410107 | K89: 0.02519097723 | L89: 0.178491612 | M89: 0.0002051780651 | N89: 0.00694539206 | O89: 0.04672814263 | P89: 0.06593141559 | Q89: 0.06787149459 | R89: 0.006416362502 | S89: 0.009249354135 | T89: 0.1078371312 | U89: 0.4122997727
E90: 0.1581939968 | F90: 0.2703954375 | G90: 0.5810333556 | H90: 0.620914381 | I90: 0.2800250116 | J90: 0.02479429228 | K90: 0.01241961612 | L90: 0.0713218934 | M90: 0.04140030828 | N90: 0.000457801071 | O90: 0.03084142451 | P90: 0.003023343271 | Q90: 0.2693868928 | R90: 0.2205082505 | S90: 0.3982380412 | T90: 0.07887372552 | U90: 0.1722974398
E91: 0.1440911209 | F91: 0.004008441354 | G91: 0.0570516093 | H91: 0.1392405766 | I91: 0.1210069918 | J91: 0.02558168298 | K91: 9.57712939e-05 | L91: 0.02813935394 | M91: 0.2172503354 | N91: 0.06062756928 | O91: 0.0370893226 | P91: 0.2025254943 | Q91: 0.2503712123 | R91: 0.1168708274 | S91: 0.07527586054 | T91: 0.08952383457 | U91: 0.0817974933
E92: 0.008714986873 | F92: 0.007863750916 | G92: 0.08921790371 | H92: 0.00452517772 | I92: 0.1278612869 | J92: 0.1858970968 | K92: 0.09565754155 | L92: 0.01802406601 | M92: 0.07668604081 | N92: 0.0005112094803 | O92: 0.009620689759 | P92: 1.012514592e-05 | Q92: 0.03948794161 | R92: 0.09462188856 | S92: 0.03297299155 | T92: 0.01631406688 | U92: 0.01222102832
E93: 0.02872041999 | F93: 0.03912251698 | G93: 0.009887728316 | H93: 0.03933369645 | I93: 0.01214561203 | J93: 0.02042914469 | K93: 0.2402302087 | L93: 0.001705365526 | M93: 0.05545385068 | N93: 0.00073658088 | O93: 0.01458156591 | P93: 0.02774724333 | Q93: 0.0009723896878 | R93: 0.005255254194 | S93: 0.03186092446 | T93: 0.06753565758 | U93: 0.009762354473
E94: 0.06218527171 | F94: 0.04704023993 | G94: 0.09876402966 | H94: 0.03407693379 | I94: 0.01378241354 | J94: 0.00797422768 | K94: 0.01897343842 | L94: 0.01686323675 | M94: 0.02065388366 | N94: 0.05226358401 | O94: 0.002633689033 | P94: 0.008998269871 | Q94: 0.06766224036 | R94: 0.1346970978 | S94: 0.1713928654 | T94: 0.02960351633 | U94: 0.01937078518
E95: 0.09940090952 | F95: 0.7471169683 | G95: 0.4278662472 | H95: 0.3755657055 | I95: 0.1616394461 | J95: 0.01235832862 | K95: 0.1461432801 | L95: 0.07505233925 | M95: 0.3629577944 | N95: 0.3070948842 | O95: 0.04252426593 | P95: 0.3502494323 | Q95: 0.2160451168 | R95: 0.1454265107 | S95: 0.1862288826 | T95: 0.1017238486 | U95: 0.009177080463
E96: 7.854358609e-05 | F96: 0.0001472599931 | G96: 0.01281151989 | H96: 0.007153203896 | I96: 0.00561180075 | J96: 0.0001551653525 | K96: 0.05496093409 | L96: 0.003765063208 | M96: 0.003642376889 | N96: 0.1952626263 | O96: 0.02779244463 | P96: 0.007495860392 | Q96: 0.08402687368 | R96: 0.123499054 | S96: 0.003159577246 | T96: 0.05180910416 | U96: 0.1338978195
E97: 0.02679825313 | F97: 0.01168708263 | G97: 0.2320379646 | H97: 0.4382789005 | I97: 0.3482553752 | J97: 0.4469452585 | K97: 0.6380265636 | L97: 0.2163891846 | M97: 0.06236784573 | N97: 0.172429803 | O97: 0.1495516981 | P97: 0.1462902354 | Q97: 0.9286730163 | R97: 0.8326901726 | S97: 0.7017340176 | T97: 0.1264354821 | U97: 0.4783008481
E98: 0.04613646209 | F98: 0.03526075015 | G98: 0.003967968652 | H98: 0.005700717047 | I98: 0.09816534597 | J98: 0.1248775403 | K98: 0.01050104982 | L98: 0.05926069157 | M98: 0.003072328527 | N98: 4.517979838e-05 | O98: 0.00297868739 | P98: 0.03386911426 | Q98: 0.1762495415 | R98: 0.4836435331 | S98: 0.07765124265 | T98: 0.02486128479 | U98: 0.07226540753
E99: 0.0001493186203 | F99: 0.0905317143 | G99: 0.0158905231 | H99: 0.06836578725 | I99: 0.5003168385 | J99: 0.3906090955 | K99: 0.4553107588 | L99: 1.21067901 | M99: 2.150660521 | N99: 1.468209878 | O99: 0.703386505 | P99: 0.3965441923 | Q99: 0.4177301826 | R99: 0.2272742834 | S99: 0.4479113316 | T99: 0.3589029416 | U99: 0.1642005538
E100: 0.009197453396 | F100: 0.01262170235 | G100: 0.007541423801 | H100: 0.2263254495 | I100: 0.1738107952 | J100: 0.1639533085 | K100: 0.008912826234 | L100: 0.03165268597 | M100: 0.1712590201 | N100: 0.3613062009 | O100: 0.1181999673 | P100: 0.06998949969 | Q100: 0.07548939646 | R100: 0.009900343065 | S100: 0.04488738259 | T100: 0.2219716941 | U100: 0.03004079456
E101: 0.02738164399 | F101: 0.1286114719 | G101: 0.001901361308 | H101: 0.009978271587 | I101: 0.01968058771 | J101: 0.002949263699 | K101: 0.0643363732 | L101: 0.02753925189 | M101: 0.05891597475 | N101: 0.0554347054 | O101: 0.02027072894 | P101: 0.2629739203 | Q101: 0.04759166553 | R101: 0.00503747856 | S101: 0.01395313244 | T101: 0.06669450579 | U101: 0.1149180283
E102: 0.02598721936 | F102: 0.0198493998 | G102: 0.05814039418 | H102: 0.1141641931 | I102: 0.00525855511 | J102: 0.0004101613032 | K102: 0.1227665325 | L102: 0.2117960281 | M102: 0.2041048847 | N102: 0.01468941212 | O102: 0.07409795446 | P102: 0.08677491339 | Q102: 0.1244919316 | R102: 0.03393164339 | S102: 0.003902938481 | T102: 0.02853118771 | U102: 0.0120875816
E103: 0.03447514469 | F103: 0.07022226805 | G103: 0.0009436642361 | H103: 0.001947794309 | I103: 0.01496228869 | J103: 0.003214902641 | K103: 0.04678779622 | L103: 0.106998426 | M103: 0.03041074837 | N103: 0.06869927443 | O103: 0.004464017463 | P103: 0.06772971717 | Q103: 0.0414218129 | R103: 0.0784081981 | S103: 0.01524398252 | T103: 0.002468211124 | U103: 0.006809262155
E104: 6.663027965e-07 | F104: 0.0009532949746 | G104: 0.0005522627424 | H104: 0.04018927151 | I104: 0.01143798916 | J104: 0.1324855211 | K104: 0.02517389245 | L104: 0.2375561223 | M104: 0.1836116694 | N104: 0.2481911877 | O104: 0.4046920327 | P104: 0.4422030192 | Q104: 0.1482049057 | R104: 0.275650006 | S104: 1.040516422 | T104: 1.009794009 | U104: 1.196087426
E105: 0.01629533768 | F105: 0.01146239997 | G105: 0.00494584209 | H105: 0.05699591962 | I105: 0.005902215491 | J105: 0.128432199 | K105: 0.05893917859 | L105: 0.2219013702 | M105: 0.01649975697 | N105: 0.02009925964 | O105: 0.01719190274 | P105: 0.003986923501 | Q105: 0.06637312078 | R105: 0.04957191702 | S105: 0.002010690574 | T105: 0.009660382386 | U105: 0.02985697334
E106: 0.1468100438 | F106: 0.2356322527 | G106: 0.1654602421 | H106: 0.1704456879 | I106: 0.131575522 | J106: 0.0278794428 | K106: 0.08561091748 | L106: 0.1895293837 | M106: 0.2083073921 | N106: 0.2863781464 | O106: 0.1276107283 | P106: 0.422078673 | Q106: 0.5259396795 | R106: 0.845167585 | S106: 0.3085921826 | T106: 0.2677595886 | U106: 0.2056484801
E107: 0.02057383338 | F107: 0.2261906681 | G107: 0.0838069845 | H107: 0.1955545105 | I107: 0.1123683886 | J107: 0.001009664278 | K107: 0.002299752063 | L107: 0.05910757339 | M107: 1.207684994e-05 | N107: 0.04735544399 | O107: 0.009259720621 | P107: 0.0184815831 | Q107: 0.0001280588889 | R107: 0.002282945144 | S107: 7.306637453e-06 | T107: 0.01343015843 | U107: 0.4069769667
E108: 0.001596139791 | F108: 0.004477165347 | G108: 0.01954747907 | H108: 0.2835849467 | I108: 0.1508859973 | J108: 0.08193035915 | K108: 0.0818575924 | L108: 0.3612201969 | M108: 0.2887167142 | N108: 0.05647121602 | O108: 0.03586676673 | P108: 0.1250265822 | Q108: 0.1243039658 | R108: 0.2480205003 | S108: 0.3049395605 | T108: 0.2457472672 | U108: 0.0429962822
E109: 0.008570523149 | F109: 0.006450004159 | G109: 0.02225067661 | H109: 0.1981437796 | I109: 0.2548962321 | J109: 0.3721557727 | K109: 0.1231121006 | L109: 0.007972657338 | M109: 0.02292135035 | N109: 0.003432102705 | O109: 0.02906947256 | P109: 0.04686522499 | Q109: 0.005282939203 | R109: 0.006427809356 | S109: 0.07852133554 | T109: 0.008000546182 | U109: 0.07075647882
E110: 0.03236668471 | F110: 0.06234657006 | G110: 0.1027578674 | H110: 0.004602463482 | I110: 0.1067411614 | J110: 0.1970498929 | K110: 0.1249914385 | L110: 0.1373519097 | M110: 0.214559864 | N110: 0.03356558533 | O110: 0.09780830396 | P110: 0.03333164571 | Q110: 0.01833519507 | R110: 0.0486116843 | S110: 0.02818264465 | T110: 0.01172715523 | U110: 0.03484476047
E111: 0.06991819869 | F111: 0.1200573385 | G111: 0.3124987767 | H111: 0.3058615361 | I111: 0.001466177853 | J111: 0.009449705981 | K111: 0.0358929116 | L111: 0.2310900163 | M111: 0.02143552353 | N111: 0.0004305076153 | O111: 0.002551847275 | P111: 0.06969198034 | Q111: 0.09621135234 | R111: 0.3498405031 | S111: 0.2945039589 | T111: 0.1512536142 | U111: 0.01347969444
E112: 0.01056908427 | F112: 0.002780649239 | G112: 0.0002586403265 | H112: 0.02206172105 | I112: 0.03294577777 | J112: 0.008373067539 | K112: 0.003428189593 | L112: 0.0002651682201 | M112: 5.312252848e-06 | N112: 0.03886923646 | O112: 0.03838492886 | P112: 0.03536865661 | Q112: 0.07786249613 | R112: 0.05912998683 | S112: 0.1331086034 | T112: 0.1436483156 | U112: 0.09476415988
E113: 0.03771166727 | F113: 0.002516409533 | G113: 0.08745117801 | H113: 0.08206375837 | I113: 0.05147109035 | J113: 1.114023846e-06 | K113: 0.03258473054 | L113: 0.01850369071 | M113: 0.05278102206 | N113: 0.0007164433725 | O113: 0.04046028846 | P113: 0.007641604254 | Q113: 0.08102277177 | R113: 3.911747889e-05 | S113: 0.009381372222 | T113: 5.123062073e-05 | U113: 0.04698448594
E114: 0.0002539126937 | F114: 0.03714704851 | G114: 0.04619086022 | H114: 0.01459237955 | I114: 0.0614915268 | J114: 0.06660089549 | K114: 0.04880483881 | L114: 0.02877364649 | M114: 0.008948027248 | N114: 1.186568679e-05 | O114: 0.0009199220187 | P114: 0.1017522148 | Q114: 0.4214208754 | R114: 0.1808063738 | S114: 0.05579362886 | T114: 0.131929774 | U114: 0.01357557334
E115: 0.004550560279 | F115: 0.001751064129 | G115: 0.06119447042 | H115: 0.155215776 | I115: 0.04331971079 | J115: 0.1683130915 | K115: 0.1117678063 | L115: 0.1331955097 | M115: 0.6823823803 | N115: 0.7278543956 | O115: 0.6271272638 | P115: 0.6200275232 | Q115: 0.5197678007 | R115: 0.7770886128 | S115: 0.5684844947 | T115: 0.7986230178 | U115: 0.6503145834
E116: 0.1685422407 | F116: 0.3820541299 | G116: 0.4128089177 | H116: 0.5618572288 | I116: 0.4482422776 | J116: 0.1359834706 | K116: 0.06806116694 | L116: 0.02136470331 | M116: 0.002913070562 | N116: 0.003034162342 | O116: 0.00801485549 | P116: 0.0122829442 | Q116: 0.02308452446 | R116: 0.0007021517581 | S116: 0.005516045569 | T116: 0.1130788823 | U116: 0.003416313737
E117: 0.008905563829 | F117: 0.0002317721462 | G117: 0.0003916060804 | H117: 0.0009021410936 | I117: 0.0018345423 | J117: 0.03452620496 | K117: 3.913274142e-05 | L117: 0.0001574339109 | M117: 0.01223700135 | N117: 0.001529242747 | O117: 0.006616701056 | P117: 0.09031717944 | Q117: 0.193851576 | R117: 0.3353093485 | S117: 0.06063354159 | T117: 0.06214240152 | U117: 0.01947841748
E118: 0.0395837601 | F118: 0.002946013816 | G118: 0.04007228591 | H118: 0.006034682681 | I118: 0.0002038486253 | J118: 0.002505291468 | K118: 0.01611898516 | L118: 0.01637444787 | M118: 0.001736895552 | N118: 0.004740328085 | O118: 0.1814608906 | P118: 0.2751891681 | Q118: 0.01685635138 | R118: 0.02654599569 | S118: 0.001872066212 | T118: 0.0009768488243 | U118: 0.1455219577
E119: 0.03750749333 | F119: 0.01614977439 | G119: 0.002912067941 | H119: 0.001267339341 | I119: 0.03488397351 | J119: 0.2982895787 | K119: 0.5722015563 | L119: 0.09091823618 | M119: 0.000154997864 | N119: 0.1197746454 | O119: 0.18970207 | P119: 0.05862662745 | Q119: 0.1640001854 | R119: 0.1356891173 | S119: 0.2339224306 | T119: 0.1462890408 | U119: 0.3677899581
E120: 0.001762750175 | F120: 0.01686894486 | G120: 6.664641089e-06 | H120: 0.06172918056 | I120: 0.001271569087 | J120: 0.002976495413 | K120: 0.00039581447 | L120: 0.005507538451 | M120: 0.009120374484 | N120: 0.02031427808 | O120: 0.05276193119 | P120: 0.006789766822 | Q120: 0.1005885544 | R120: 0.001476621856 | S120: 0.01143631864 | T120: 0.1345002637 | U120: 0.08156858082
E121: 0.003292338937 | F121: 0.007328455376 | G121: 0.005158430219 | H121: 0.002176554054 | I121: 0.09069621855 | J121: 0.0005480423855 | K121: 0.01587426222 | L121: 0.1352164229 | M121: 0.0001249981287 | N121: 0.01137234655 | O121: 0.1614781703 | P121: 0.05754595417 | Q121: 0.0004569392478 | R121: 0.000656739504 | S121: 0.007473002261 | T121: 0.01283796604 | U121: 0.008838236086
E122: 0.01623732023 | F122: 0.005481946761 | G122: 0.007033304228 | H122: 0.02160531239 | I122: 0.01203366394 | J122: 0.001590992944 | K122: 0.006197457711 | L122: 0.07144612589 | M122: 0.1186555183 | N122: 0.1131313059 | O122: 0.09181314994 | P122: 0.3379576891 | Q122: 0.006991454984 | R122: 0.06154387296 | S122: 0.007410616807 | T122: 0.005640766006 | U122: 0.01246145468
E123: 0.01549594199 | F123: 0.0201342057 | G123: 0.003499079878 | H123: 0.02250332614 | I123: 0.000741638228 | J123: 0.08663323303 | K123: 0.03782773972 | L123: 0.0007966149008 | M123: 0.0918776818 | N123: 0.02580815192 | O123: 0.1431208322 | P123: 0.0006161142699 | Q123: 0.01728027626 | R123: 0.1370010683 | S123: 0.0006583737619 | T123: 0.0002198590898 | U123: 0.002571357038
E124: 0.1109857085 | F124: 0.1858122858 | G124: 0.09457343617 | H124: 0.0426565239 | I124: 0.2196013332 | J124: 0.1865885257 | K124: 0.2287236188 | L124: 0.2346003414 | M124: 0.2259047982 | N124: 0.5813241496 | O124: 0.5485194172 | P124: 0.09142759181 | Q124: 0.2918706873 | R124: 0.0969749107 | S124: 0.0549473745 | T124: 0.03686942861 | U124: 0.1299257262
E125: 0.1317889259 | F125: 0.4105036658 | G125: 0.08918280387 | H125: 0.0263508996 | I125: 0.06894910378 | J125: 0.04995568951 | K125: 0.001229605302 | L125: 0.0004819389503 | M125: 0.09469511664 | N125: 0.02268873119 | O125: 0.0008116997167 | P125: 0.1123713631 | Q125: 0.04170941538 | R125: 0.13208648 | S125: 0.0003932795938 | T125: 0.01823126045 | U125: 0.04301473188
E126: 0.04976360706 | F126: 0.0002106395306 | G126: 0.0003414111224 | H126: 0.01567260127 | I126: 0.02464477788 | J126: 0.004503990619 | K126: 0.0007693725661 | L126: 0.01066336549 | M126: 0.02875807635 | N126: 0.0007644913125 | O126: 0.01031105738 | P126: 6.448670394e-06 | Q126: 0.03270276278 | R126: 0.00468932861 | S126: 0.05721132579 | T126: 0.1971807067 | U126: 0.0901859554
E127: 0.01570487251 | F127: 0.03634653506 | G127: 0.02565318682 | H127: 0.2247358042 | I127: 0.3876507834 | J127: 0.2531498889 | K127: 0.1001325433 | L127: 0.1188728772 | M127: 0.05160708422 | N127: 0.02850100454 | O127: 0.004478874093 | P127: 4.817144356e-08 | Q127: 0.01578329592 | R127: 0.1169464591 | S127: 0.1293119782 | T127: 0.181271444 | U127: 0.001382208182
E128: 0.0002279413599 | F128: 0.09168027936 | G128: 0.07576323331 | H128: 0.08156514183 | I128: 0.08684017345 | J128: 0.02011178995 | K128: 0.05679519622 | L128: 0.03888545575 | M128: 0.1256875847 | N128: 0.1495772731 | O128: 0.05591155601 | P128: 0.00618557317 | Q128: 0.002970852334 | R128: 0.1048205673 | S128: 0.3655270255 | T128: 0.4095496809 | U128: 0.1136318781
E129: 0.2107565248 | F129: 0.05915140333 | G129: 0.366089957 | H129: 0.2110691731 | I129: 0.3103170222 | J129: 0.3067723037 | K129: 0.08348459541 | L129: 0.02720669415 | M129: 0.03528333327 | N129: 3.35665504e-06 | O129: 0.0001991095284 | P129: 0.006809081464 | Q129: 0.05734615812 | R129: 0.02070168245 | S129: 0.1299760572 | T129: 0.1980912454 | U129: 0.1000151959
E130: 0.1089201113 | F130: 0.1602479319 | G130: 0.3862231066 | H130: 0.1694325008 | I130: 0.001787751266 | J130: 0.001475362009 | K130: 0.03372111229 | L130: 0.04895629107 | M130: 0.100782968 | N130: 0.04071239981 | O130: 0.002630488653 | P130: 0.1694977802 | Q130: 0.07658061139 | R130: 0.01034851271 | S130: 0.000816889739 | T130: 0.03975182403 | U130: 0.006521255897
E131: 0.1006263999 | F131: 0.005375933133 | G131: 0.01791755174 | H131: 0.0056444225 | I131: 0.08290100864 | J131: 0.02101806694 | K131: 0.02248991137 | L131: 0.05579740952 | M131: 0.0008307610451 | N131: 0.08351341591 | O131: 0.07061040741 | P131: 0.06874545794 | Q131: 0.04863098378 | R131: 0.131907496 | S131: 0.2652567601 | T131: 0.0338552552 | U131: 0.04370712085
E132: 0.1076479696 | F132: 0.2116854324 | G132: 0.1516637858 | H132: 0.0495491833 | I132: 0.04223520853 | J132: 0.1432821993 | K132: 0.07652875823 | L132: 0.02291420036 | M132: 0.04286461227 | N132: 0.03743008494 | O132: 0.03913750441 | P132: 0.06077282602 | Q132: 0.0003241928277 | R132: 0.002367170671 | S132: 0.004475048482 | T132: 0.03146459694 | U132: 2.85421728e-05
E133: 0.02257487496 | F133: 0.0316347784 | G133: 0.1980704975 | H133: 0.365774621 | I133: 0.06959500977 | J133: 0.001073755937 | K133: 0.007823467467 | L133: 0.1010860323 | M133: 0.337580894 | N133: 0.3670736528 | O133: 0.05988499495 | P133: 0.006796767648 | Q133: 0.0003037691174 | R133: 0.02219030059 | S133: 0.02143092083 | T133: 0.0002467394971 | U133: 0.07788548811
E134: 0.002699538001 | F134: 0.2432916507 | G134: 0.2433805089 | H134: 0.1788374038 | I134: 0.100632781 | J134: 0.3915207825 | K134: 0.2842909292 | L134: 0.2763592324 | M134: 0.3913230186 | N134: 0.2564242746 | O134: 0.2335847786 | P134: 0.09062811972 | Q134: 0.06405673733 | R134: 0.1554187609 | S134: 0.0006786841035 | T134: 0.001834148092 | U134: 0.04032287797
E135: 0.02806065642 | F135: 0.01856054466 | G135: 0.2681914663 | H135: 0.2818780259 | I135: 0.04474767958 | J135: 0.08598230917 | K135: 0.004712949226 | L135: 0.001759765675 | M135: 0.008749697077 | N135: 0.00227856362 | O135: 0.0383405567 | P135: 0.00193202644 | Q135: 0.01428701529 | R135: 0.08689375758 | S135: 0.2614071073 | T135: 0.2352112871 | U135: 0.3159580142
E136: 0.003535018798 | F136: 0.0582686644 | G136: 0.001970951318 | H136: 0.002111342663 | I136: 0.009048289104 | J136: 0.02623530199 | K136: 0.001744632346 | L136: 4.917629241e-07 | M136: 0.1037678181 | N136: 0.001420603093 | O136: 0.07181609516 | P136: 0.03115267501 | Q136: 0.01455383927 | R136: 0.1010096001 | S136: 0.01655370943 | T136: 0.005318123043 | U136: 0.1323172655
E137: 0.1022364427 | F137: 0.09743176247 | G137: 0.09115506218 | H137: 0.01833413386 | I137: 0.001925154463 | J137: 0.03155923393 | K137: 0.005869570939 | L137: 0.08724809181 | M137: 0.09547517768 | N137: 0.2758620107 | O137: 0.1141805504 | P137: 0.2648707803 | Q137: 0.3365981839 | R137: 0.04774546889 | S137: 0.0879220878 | T137: 0.134064769 | U137: 0.0002059581872
E138: 0.03639896939 | F138: 0.01094832134 | G138: 0.008477962439 | H138: 0.02335773299 | I138: 0.1389589056 | J138: 0.2198247336 | K138: 0.09143105344 | L138: 0.005671060629 | M138: 0.005252624664 | N138: 0.0007734255674 | O138: 0.04628555785 | P138: 0.07569204818 | Q138: 0.1051730289 | R138: 0.1163110542 | S138: 0.1374106779 | T138: 0.08391047416 | U138: 0.0408713051
E139: 0.06289515322 | F139: 0.01094987652 | G139: 0.154471161 | H139: 0.05036116447 | I139: 0.3183447803 | J139: 0.03220175525 | K139: 0.0994681939 | L139: 0.002753002049 | M139: 0.1487808812 | N139: 0.1814044314 | O139: 0.01536401246 | P139: 0.006577333953 | Q139: 0.1050226929 | R139: 0.07542736535 | S139: 0.08563991644 | T139: 0.05679587706 | U139: 0.00977175385
E140: 0.02063540366 | F140: 6.259348958e-05 | G140: 0.06187837426 | H140: 0.1961261092 | I140: 0.2813296524 | J140: 0.07664780325 | K140: 0.004518544083 | L140: 0.09805743835 | M140: 0.09647924755 | N140: 0.03480533285 | O140: 0.06101329781 | P140: 1.195422114e-05 | Q140: 0.08524266365 | R140: 0.09642160992 | S140: 0.1027813305 | T140: 0.1349171558 | U140: 0.186513933
E141: 0.05103361906 | F141: 0.1965007809 | G141: 0.007459529416 | H141: 0.02212085691 | I141: 0.005552928162 | J141: 0.02712893418 | K141: 0.1353531747 | L141: 0.05054207401 | M141: 0.008572362206 | N141: 0.0557715556 | O141: 0.0006973839444 | P141: 0.03274908516 | Q141: 0.08044767264 | R141: 0.131616053 | S141: 0.07476933191 | T141: 0.1131359758 | U141: 0.03447247487
E142: 0.007056346197 | F142: 0.007802701999 | G142: 0.0142549619 | H142: 0.04786628644 | I142: 0.008707916577 | J142: 0.08107797758 | K142: 0.3475536742 | L142: 0.4068618915 | M142: 0.2220058561 | N142: 0.1149647262 | O142: 0.07647444608 | P142: 0.04121358938 | Q142: 0.1699806505 | R142: 0.1153762433 | S142: 0.1232337724 | T142: 0.06197198577 | U142: 0.0995641611
E143: 0.009946970956 | F143: 0.0004288675788 | G143: 0.001144703395 | H143: 0.02477268473 | I143: 0.05583641443 | J143: 0.0008586164731 | K143: 0.009660251066 | L143: 0.01650099839 | M143: 0.07837248915 | N143: 0.4881308062 | O143: 0.314596462 | P143: 0.2383811861 | Q143: 0.2298100271 | R143: 0.3590441435 | S143: 0.2089129114 | T143: 0.1744968594 | U143: 0.115027613
E144: 0.1403963801 | F144: 0.3667171839 | G144: 1.255845871 | H144: 0.7715466713 | I144: 0.9495945986 | J144: 0.7155065536 | K144: 0.5024495124 | L144: 0.2144401751 | M144: 0.5261602733 | N144: 0.6426168701 | O144: 0.4107154961 | P144: 0.4010789908 | Q144: 0.01537476879 | R144: 0.0059831599 | S144: 0.04513375399 | T144: 0.02647906459 | U144: 0.1145716537
E145: 0.003354927528 | F145: 0.04775911429 | G145: 0.01693922495 | H145: 2.124203083e-05 | I145: 0.0002873487042 | J145: 0.09224612012 | K145: 0.05237332041 | L145: 0.195157669 | M145: 0.001043735678 | N145: 0.02360292337 | O145: 0.003878303477 | P145: 0.02757042118 | Q145: 0.0004645568168 | R145: 0.02146191539 | S145: 0.06144404353 | T145: 0.07800454186 | U145: 0.008412259827
E146: 0.0006242873216 | F146: 0.1381237932 | G146: 0.59068012 | H146: 0.4200938431 | I146: 0.08430515038 | J146: 0.03422389561 | K146: 0.006785083963 | L146: 0.007108458404 | M146: 0.02016419659 | N146: 0.001257426647 | O146: 0.01199759058 | P146: 0.007132912649 | Q146: 0.009899125749 | R146: 0.04594996031 | S146: 0.07667409076 | T146: 0.08770460515 | U146: 0.005729605375
E147: 0.043076455 | F147: 0.002914286112 | G147: 0.002076567647 | H147: 0.0008171478404 | I147: 0.001899337543 | J147: 0.005914170949 | K147: 0.003428001961 | L147: 0.01592528534 | M147: 0.005197679755 | N147: 0.06215866603 | O147: 0.1028404956 | P147: 0.03064107888 | Q147: 0.01449858077 | R147: 0.04944141291 | S147: 0.07939966086 | T147: 0.0825354408 | U147: 0.1516158509
E148: 0.001506127205 | F148: 0.05320083801 | G148: 0.04687422868 | H148: 0.05398123617 | I148: 0.006508113867 | J148: 0.007987084994 | K148: 0.0002426784868 | L148: 0.0008792685269 | M148: 0.0482818437 | N148: 0.03648919054 | O148: 0.2967595038 | P148: 0.3106595098 | Q148: 0.2729688592 | R148: 0.0399684644 | S148: 0.05186215679 | T148: 0.188882568 | U148: 7.474529755e-06
E149: 0.09049130656 | F149: 0.04197101939 | G149: 0.008350089872 | H149: 0.1290863344 | I149: 0.05076335953 | J149: 0.05608375877 | K149: 0.3623042357 | L149: 0.2951597714 | M149: 0.2513675604 | N149: 0.2075313365 | O149: 0.1021085754 | P149: 0.04521676329 | Q149: 0.2344541204 | R149: 0.22272443 | S149: 1.024748439 | T149: 0.5112823863 | U149: 0.468052169
E150: 0.00326999526 | F150: 0.004838530536 | G150: 0.005425602347 | H150: 0.0002602841303 | I150: 0.0838362458 | J150: 1.439419093e-07 | K150: 0.09267908595 | L150: 0.07958345264 | M150: 0.01973109136 | N150: 0.1344028768 | O150: 0.02866534341 | P150: 0.001362000893 | Q150: 1.709894827e-05 | R150: 0.01078339679 | S150: 0.000120545158 | T150: 0.1081428697 | U150: 0.2284941582
E151: 0.0008647973567 | F151: 0.02757815684 | G151: 0.03039923879 | H151: 0.007725759896 | I151: 0.03430708395 | J151: 0.1366090734 | K151: 0.5372216629 | L151: 0.9070944778 | M151: 0.4618902379 | N151: 0.3158021906 | O151: 0.2009475443 | P151: 0.0938883862 | Q151: 0.09214923604 | R151: 0.03941315028 | S151: 0.136816674 | T151: 0.06429634233 | U151: 0.004143196904
E152: 0.006069118141 | F152: 0.01441301888 | G152: 0.000244444295 | H152: 0.01249289275 | I152: 0.002433503037 | J152: 0.17769416 | K152: 0.00044551866 | L152: 0.03715611849 | M152: 0.00948498226 | N152: 0.0004072107508 | O152: 0.0100669383 | P152: 0.04115418258 | Q152: 0.07819025315 | R152: 0.002346437801 | S152: 0.1323556698 | T152: 0.0007283331077 | U152: 0.01025966725
E153: 0.06127655629 | F153: 0.1010051959 | G153: 0.1299871549 | H153: 0.07199309137 | I153: 0.06386411544 | J153: 0.03506610394 | K153: 0.03296234728 | L153: 0.2392448394 | M153: 0.07381358276 | N153: 0.0003608563833 | O153: 0.04237056066 | P153: 0.008199578603 | Q153: 0.1503554251 | R153: 0.1839230957 | S153: 0.1152272528 | T153: 0.0002895492594 | U153: 0.04195995836
E154: 0.03772868501 | F154: 0.2075569249 | G154: 0.4953717223 | H154: 0.04916092563 | I154: 0.3607876086 | J154: 0.4052221222 | K154: 0.1248833864 | L154: 0.1524367331 | M154: 0.2449800214 | N154: 0.1237937987 | O154: 0.007336580298 | P154: 0.1340318993 | Q154: 0.0007710285747 | R154: 0.0004360563401 | S154: 0.007716838988 | T154: 0.1094947032 | U154: 0.0509696627
E155: 0.02849789083 | F155: 0.006880415366 | G155: 0.03594086386 | H155: 0.02015976693 | I155: 0.04684680318 | J155: 0.08582302761 | K155: 0.03391715448 | L155: 0.001643244443 | M155: 1.803598583e-08 | N155: 0.04002065633 | O155: 0.2813387512 | P155: 0.07378478241 | Q155: 0.0717356238 | R155: 0.1478368079 | S155: 0.05445905753 | T155: 0.01770176112 | U155: 0.0168646418
E156: 0.04403732495 | F156: 0.3454176663 | G156: 0.2117746034 | H156: 0.1657443444 | I156: 0.09920469234 | J156: 0.01805374193 | K156: 0.01178183778 | L156: 0.001538303246 | M156: 0.06648305838 | N156: 5.349085255e-05 | O156: 0.04272427493 | P156: 0.0005699157379 | Q156: 0.001739137775 | R156: 0.05038810365 | S156: 0.1001106623 | T156: 0.1073071845 | U156: 0.00362525065
E157: 0.05368727445 | F157: 0.03369801022 | G157: 0.02389374741 | H157: 0.005655681106 | I157: 0.000528670581 | J157: 0.03069498405 | K157: 0.001172008342 | L157: 0.02969901313 | M157: 9.426622859e-05 | N157: 0.02051941379 | O157: 0.001042317219 | P157: 0.02611716177 | Q157: 0.05746603407 | R157: 0.0506215364 | S157: 0.001310807666 | T157: 0.004423772571 | U157: 0.0137004603
E158: 0.008511373089 | F158: 0.06805157447 | G158: 0.00217552222 | H158: 0.01018564102 | I158: 0.4091618024 | J158: 0.3103366426 | K158: 0.07860114004 | L158: 0.2634999632 | M158: 0.1463151125 | N158: 0.2443745908 | O158: 0.3567552268 | P158: 0.06168470674 | Q158: 0.01000130191 | R158: 0.08586426958 | S158: 0.1326846793 | T158: 0.07250997202 | U158: 0.1560839285
E159: 0.01956334206 | F159: 0.008524960487 | G159: 0.01291631447 | H159: 0.06132225279 | I159: 0.08984251045 | J159: 0.273754885 | K159: 0.004950543475 | L159: 0.008900375425 | M159: 0.07930513492 | N159: 0.006639694952 | O159: 0.01440114404 | P159: 0.03886039493 | Q159: 0.0415236034 | R159: 0.003336405175 | S159: 0.008881888507 | T159: 0.0004845673705 | U159: 3.06085789e-05
E160: 0.02918343176 | F160: 0.02824827149 | G160: 0.001699300466 | H160: 0.01903375486 | I160: 0.1084780511 | J160: 0.05747204239 | K160: 0.009636914229 | L160: 0.01636306889 | M160: 0.09392293774 | N160: 0.05826604836 | O160: 1.387284221e-05 | P160: 3.834530018e-08 | Q160: 0.04315332473 | R160: 0.005336905658 | S160: 0.002094734603 | T160: 0.06202329491 | U160: 0.03513196943
E161: 0.03552670177 | F161: 0.005167635958 | G161: 0.00560789223 | H161: 0.000597204697 | I161: 0.0006622774067 | J161: 0.03597496149 | K161: 0.004699428001 | L161: 0.01468603186 | M161: 0.09434936812 | N161: 0.2689270455 | O161: 0.2477638955 | P161: 0.366263576 | Q161: 0.1374519566 | R161: 0.2215596711 | S161: 0.3922034686 | T161: 0.5940461456 | U161: 0.124841949
E162: 9.06372049e-05 | F162: 0.08179307855 | G162: 0.08045184044 | H162: 0.2357122911 | I162: 0.1525561568 | J162: 0.2411354113 | K162: 0.5380972065 | L162: 0.01566314257 | M162: 0.3006374652 | N162: 0.1570401233 | O162: 0.002440611386 | P162: 0.00262231379 | Q162: 0.007425631087 | R162: 0.002261405124 | S162: 0.002382836466 | T162: 0.000108285335 | U162: 0.04392483103
E163: 0.005078620983 | F163: 3.553121631e-06 | G163: 0.1473431678 | H163: 0.03398905583 | I163: 0.05701128885 | J163: 0.2171825107 | K163: 0.4020142854 | L163: 0.0986553141 | M163: 0.08505371591 | N163: 0.1593279978 | O163: 0.04518934212 | P163: 0.03954913646 | Q163: 0.105687972 | R163: 0.1934661828 | S163: 0.3992548669 | T163: 0.5006684922 | U163: 0.01188719935
E164: 0.04715291675 | F164: 0.007549288444 | G164: 0.001705223541 | H164: 0.04962104473 | I164: 0.02003953926 | J164: 0.09323276137 | K164: 0.009531367361 | L164: 0.003443376383 | M164: 0.03014197766 | N164: 0.0003616548822 | O164: 0.06582402597 | P164: 0.1600122004 | Q164: 0.05641661061 | R164: 0.003200648224 | S164: 0.4726711753 | T164: 0.4687244759 | U164: 1.40714402
E165: 0.04274111337 | F165: 0.1396142658 | G165: 0.8351493133 | H165: 0.6171795967 | I165: 0.06715275305 | J165: 0.03311344064 | K165: 0.08439480195 | L165: 0.4329708916 | M165: 1.285263896 | N165: 0.8186938476 | O165: 0.3446964604 | P165: 0.3170062995 | Q165: 0.5394720548 | R165: 0.334650025 | S165: 0.1848738171 | T165: 0.0670559146 | U165: 0.03163319914
E166: 0.06060513023 | F166: 0.1609102023 | G166: 0.09049710615 | H166: 0.05870434042 | I166: 0.01354688902 | J166: 0.0007844445777 | K166: 0.01256923545 | L166: 0.0009298952747 | M166: 0.004577437569 | N166: 0.08918847743 | O166: 0.1400882626 | P166: 7.403829263e-05 | Q166: 0.01248353279 | R166: 0.01781973623 | S166: 0.0006242121981 | T166: 0.1118858356 | U166: 0.008450637566
E167: 0.006753819874 | F167: 0.02348898833 | G167: 0.02670751492 | H167: 0.00544290916 | I167: 0.006876572879 | J167: 0.1052239025 | K167: 0.001081245179 | L167: 0.1240004637 | M167: 0.002178515877 | N167: 0.005098218111 | O167: 0.08129558682 | P167: 0.2184987173 | Q167: 0.1913266758 | R167: 0.333002866 | S167: 0.04693042075 | T167: 0.2461142018 | U167: 0.04205766663
E168: 0.02463789519 | F168: 0.0833527211 | G168: 0.02303529967 | H168: 0.190355271 | I168: 0.08996016185 | J168: 0.1054588502 | K168: 0.2243749473 | L168: 0.1045416405 | M168: 0.1057131003 | N168: 0.8216380419 | O168: 0.672312349 | P168: 1.258982946 | Q168: 2.097244095 | R168: 0.6835005787 | S168: 0.5353524534 | T168: 0.2321042043 | U168: 0.005750747862
E169: 0.01949333568 | F169: 0.04531759655 | G169: 0.09600223472 | H169: 0.009477639871 | I169: 0.0327188146 | J169: 8.944335746e-06 | K169: 0.001340963492 | L169: 0.05252193306 | M169: 0.09721010009 | N169: 0.1880400949 | O169: 0.04200116379 | P169: 0.177823588 | Q169: 0.06095022692 | R169: 0.03460970161 | S169: 0.05088106729 | T169: 0.04714997137 | U169: 0.03649191874
E170: 0.001953643648 | F170: 0.0001097662117 | G170: 0.03524033096 | H170: 0.07921762667 | I170: 0.01538324559 | J170: 0.1051212373 | K170: 0.3526432421 | L170: 0.1016407916 | M170: 0.1350721634 | N170: 0.04572293705 | O170: 0.01822401462 | P170: 0.02588134977 | Q170: 0.01106750282 | R170: 0.01071927962 | S170: 0.01407001046 | T170: 0.0005488335534 | U170: 0.002681304251
E171: 9.659806047e-05 | F171: 0.002595004356 | G171: 0.0103517689 | H171: 0.04213826987 | I171: 0.01236433764 | J171: 0.001708266619 | K171: 0.1042022667 | L171: 0.188600413 | M171: 0.1290363544 | N171: 0.00340448563 | O171: 0.0236280291 | P171: 0.001388209062 | Q171: 0.09609005135 | R171: 0.00176573609 | S171: 0.04816712421 | T171: 0.004186353281 | U171: 0.1413120709
E172: 0.001189517997 | F172: 0.04816719805 | G172: 0.02079862921 | H172: 0.007399781661 | I172: 0.03088296478 | J172: 0.02807219124 | K172: 0.02128184808 | L172: 0.07781308416 | M172: 0.09925533493 | N172: 0.03500754229 | O172: 0.264028284 | P172: 0.1960615699 | Q172: 0.02388923117 | R172: 0.03148911791 | S172: 0.0809709313 | T172: 0.1342811057 | U172: 0.3676362352
E173: 0.001041141817 | F173: 0.005528124165 | G173: 0.004726825585 | H173: 0.1218294056 | I173: 0.09772673293 | J173: 0.03888513271 | K173: 0.05232470214 | L173: 0.2017619075 | M173: 0.1377257105 | N173: 0.291680471 | O173: 0.0651477896 | P173: 0.02978896841 | Q173: 0.06391324579 | R173: 0.005572324275 | S173: 0.02240795886 | T173: 0.005491211295 | U173: 0.05323288325
E174: 0.05649849096 | F174: 0.1396594968 | G174: 0.3322330828 | H174: 0.02539615603 | I174: 0.004592548422 | J174: 0.007261905861 | K174: 0.03882846205 | L174: 0.034560593 | M174: 0.0432630882 | N174: 0.002946555071 | O174: 0.04561513131 | P174: 0.1738780892 | Q174: 0.005416063719 | R174: 0.008856252967 | S174: 0.02703265606 | T174: 0.003427912963 | U174: 0.005121899449
E175: 0.008130477606 | F175: 0.008119704117 | G175: 0.02205338288 | H175: 0.003701970838 | I175: 0.00469322603 | J175: 0.1240209583 | K175: 0.1957266715 | L175: 0.08154854995 | M175: 0.02689241707 | N175: 0.1313610201 | O175: 0.1939326755 | P175: 0.389409883 | Q175: 0.4276519496 | R175: 0.06750388157 | S175: 0.009558892671 | T175: 0.04309704701 | U175: 0.009944253529
E176: 0.01775840178 | F176: 0.002747410245 | G176: 0.03055630651 | H176: 0.0300909254 | I176: 0.01629059711 | J176: 0.08734761124 | K176: 0.001099654533 | L176: 0.1942424503 | M176: 0.09511920655 | N176: 0.03048207688 | O176: 0.005598427944 | P176: 0.01692202493 | Q176: 0.02741374321 | R176: 0.1819799835 | S176: 0.09728169417 | T176: 0.06749019903 | U176: 0.004611835015
E177: 0.04421766187 | F177: 0.002222576247 | G177: 0.05454519378 | H177: 0.0420304423 | I177: 0.006304200706 | J177: 0.0001042858057 | K177: 0.0007986860159 | L177: 0.03133893182 | M177: 0.001403889856 | N177: 0.00197094251 | O177: 0.0009983194066 | P177: 0.01161551204 | Q177: 0.02617168493 | R177: 0.0137004248 | S177: 0.0009677898195 | T177: 0.004982385442 | U177: 0.0004855299563
E178: 0.07806026922 | F178: 0.07311061332 | G178: 0.03040617984 | H178: 0.01346050744 | I178: 0.2766899232 | J178: 0.3346541679 | K178: 0.07769481644 | L178: 0.3442014116 | M178: 0.04940490739 | N178: 0.06854862031 | O178: 0.3480870094 | P178: 0.01901609083 | Q178: 0.0003753873119 | R178: 0.0289449903 | S178: 0.07153561839 | T178: 0.3125300148 | U178: 0.2418012425
E179: 0.03302797832 | F179: 0.2584913678 | G179: 0.2065676376 | H179: 0.2507954347 | I179: 0.1025836869 | J179: 0.002689717798 | K179: 0.005015801048 | L179: 0.0004129842658 | M179: 0.03881927297 | N179: 0.02865576778 | O179: 0.002054992276 | P179: 0.1560071547 | Q179: 0.1409969132 | R179: 0.04065724243 | S179: 0.03503461311 | T179: 0.06860937048 | U179: 0.3158281889
E180: 0.07932697688 | F180: 0.002070493435 | G180: 0.06891248898 | H180: 0.0639763349 | I180: 0.01272040994 | J180: 0.1736702758 | K180: 0.1373897859 | L180: 0.0008693152228 | M180: 0.01174518218 | N180: 0.04492758041 | O180: 0.1452387923 | P180: 0.007515653444 | Q180: 0.181076723 | R180: 0.1180216324 | S180: 0.07202639519 | T180: 0.1776830536 | U180: 0.007218002501
E181: 0.1018166246 | F181: 0.09499984505 | G181: 0.01942286984 | H181: 0.02053889965 | I181: 0.1388372832 | J181: 0.1749665307 | K181: 0.08095840373 | L181: 0.0313249352 | M181: 0.07821591312 | N181: 0.2683253755 | O181: 0.01991452247 | P181: 0.07500399183 | Q181: 0.1146825833 | R181: 0.02404180753 | S181: 0.00144136389 | T181: 0.1158979765 | U181: 0.0004279463095
E182: 0.07316317333 | F182: 0.04598357072 | G182: 0.04044609313 | H182: 0.01556243727 | I182: 0.06380821129 | J182: 0.0307834181 | K182: 0.009198390322 | L182: 0.02047274117 | M182: 0.01229060156 | N182: 0.2153059435 | O182: 0.08783143878 | P182: 0.5003838413 | Q182: 0.889721809 | R182: 1.091763819 | S182: 1.187199704 | T182: 1.608926207 | U182: 1.212423679
E183: 0.04497490995 | F183: 0.0398553496 | G183: 0.1130740601 | H183: 0.01075878454 | I183: 0.0003378114819 | J183: 0.02557756971 | K183: 0.07689687159 | L183: 0.08742459381 | M183: 0.1276979177 | N183: 0.09987203862 | O183: 0.07015458754 | P183: 0.2580149267 | Q183: 0.2606655109 | R183: 0.05056172129 | S183: 0.04407965675 | T183: 0.03263196854 | U183: 0.0005216102899
E184: 0.0219607081 | F184: 0.01746054715 | G184: 0.004088756333 | H184: 0.0117437783 | I184: 0.003283821322 | J184: 0.001236584196 | K184: 0.01438110702 | L184: 0.03290447922 | M184: 0.296294998 | N184: 0.5687382929 | O184: 0.1982911502 | P184: 0.2371150476 | Q184: 0.3727282311 | R184: 0.1547998658 | S184: 0.2271936614 | T184: 0.04548883989 | U184: 0.0304535236
E185: 0.009442524169 | F185: 0.03005848195 | G185: 0.01353322607 | H185: 0.003775749796 | I185: 0.05339875033 | J185: 0.009921134852 | K185: 0.2201980767 | L185: 0.3394229451 | M185: 0.3757962993 | N185: 0.1730952298 | O185: 0.04581142163 | P185: 0.05293136431 | Q185: 0.008322179476 | R185: 0.0009163989761 | S185: 0.1153261606 | T185: 0.2071437281 | U185: 0.1699706981
E186: 0.01653121625 | F186: 0.0003531830449 | G186: 0.003885994718 | H186: 0.008638575813 | I186: 0.04096025743 | J186: 0.1625209997 | K186: 0.1005999623 | L186: 0.00805437843 | M186: 0.02042406944 | N186: 0.02880943957 | O186: 0.03992365729 | P186: 0.005428274968 | Q186: 0.01511290836 | R186: 0.0007569500724 | S186: 2.508266273e-05 | T186: 0.0840640506 | U186: 0.294852747
E187: 0.004463490982 | F187: 0.01231173818 | G187: 0.002171034474 | H187: 0.01724240237 | I187: 0.005077121731 | J187: 0.0366446085 | K187: 0.09710106658 | L187: 0.03713251993 | M187: 0.07631700815 | N187: 0.03232613047 | O187: 3.34539445e-06 | P187: 0.01399871866 | Q187: 0.04054986933 | R187: 0.0005160736692 | S187: 0.007129235822 | T187: 0.001158231636 | U187: 0.02631892089
E188: 0.01642659524 | F188: 0.001246890029 | G188: 0.01456513883 | H188: 0.03874908422 | I188: 0.2388015178 | J188: 0.0007119567967 | K188: 0.07335816258 | L188: 0.07202326996 | M188: 0.02384544423 | N188: 0.1174743928 | O188: 0.03577740035 | P188: 0.02487925094 | Q188: 0.09833536659 | R188: 0.03758824219 | S188: 0.1466829194 | T188: 0.0300228481 | U188: 0.02657260461
E189: 0.02279685339 | F189: 0.0110430695 | G189: 0.09495046169 | H189: 0.05508634686 | I189: 0.0001524823423 | J189: 0.01867198498 | K189: 0.001290749701 | L189: 0.00835527598 | M189: 0.0007823034627 | N189: 0.0107421316 | O189: 8.300041948e-05 | P189: 0.1220159903 | Q189: 0.22364516 | R189: 0.1155307695 | S189: 0.003579149708 | T189: 0.01119786335 | U189: 0.08174455715
E190: 0.04864077057 | F190: 0.1678731949 | G190: 0.2350220035 | H190: 0.1966817711 | I190: 0.2363131178 | J190: 0.0007897891994 | K190: 0.05666619949 | L190: 0.002219434297 | M190: 0.005868109612 | N190: 0.064910099 | O190: 0.2424598124 | P190: 0.09524578346 | Q190: 0.01456349214 | R190: 0.2842921024 | S190: 0.01908096431 | T190: 0.03955278965 | U190: 0.05028053352
E191: 0.03211094926 | F191: 0.02420057801 | G191: 0.04618778858 | H191: 1.758501109e-06 | I191: 0.00122622875 | J191: 0.006777391679 | K191: 0.01589322035 | L191: 0.2054452511 | M191: 0.2828829823 | N191: 0.4601635012 | O191: 0.5906575726 | P191: 0.3846299828 | Q191: 0.1918324767 | R191: 0.1772361892 | S191: 0.07011938065 | T191: 0.0058794992 | U191: 0.02633502599
E192: 0.009358055353 | F192: 0.02467407798 | G192: 0.2119526299 | H192: 0.144910601 | I192: 0.0372856034 | J192: 0.1940786461 | K192: 0.05893849968 | L192: 0.00426988649 | M192: 0.002565076895 | N192: 0.008843727209 | O192: 0.003073592272 | P192: 0.0001712934902 | Q192: 0.0712788625 | R192: 0.000243550812 | S192: 0.003517126127 | T192: 0.000692443488 | U192: 0.001865584168
E193: 0.002807629493 | F193: 0.02762241968 | G193: 0.04795698407 | H193: 0.003221214353 | I193: 0.03224608496 | J193: 0.1887491093 | K193: 0.0007502400647 | L193: 0.001432922267 | M193: 0.004025408436 | N193: 0.0002874010436 | O193: 0.0391253549 | P193: 0.08792163953 | Q193: 0.06363062077 | R193: 0.005900659346 | S193: 0.002246011244 | T193: 0.0003338336772 | U193: 0.03303842348
E194: 0.006197568679 | F194: 0.05751467417 | G194: 0.04442840618 | H194: 0.004053345724 | I194: 0.1063754215 | J194: 0.06587624486 | K194: 0.01220196615 | L194: 0.03889283596 | M194: 0.0326445691 | N194: 0.01161429663 | O194: 0.03848795832 | P194: 0.0269958272 | Q194: 0.03648998837 | R194: 0.0001684604089 | S194: 0.07930815111 | T194: 0.05671606278 | U194: 0.02360669656
E195: 0.01433479052 | F195: 0.0001288079115 | G195: 0.04690852375 | H195: 0.0008442304853 | I195: 0.02022408631 | J195: 0.01201858556 | K195: 0.0009662255539 | L195: 0.1984626548 | M195: 0.6790265188 | N195: 0.4433896597 | O195: 0.4348070182 | P195: 0.419751803 | Q195: 0.7266735678 | R195: 0.6843873317 | S195: 0.2464178356 | T195: 0.5458019853 | U195: 0.1532163524
E196: 0.0002002560985 | F196: 3.149747324e-05 | G196: 0.06600240956 | H196: 0.01468342511 | I196: 0.05260242212 | J196: 1.578142002e-05 | K196: 0.02747110918 | L196: 4.113033631e-05 | M196: 0.03868933623 | N196: 0.1129233718 | O196: 0.08181305284 | P196: 0.0341481306 | Q196: 0.02342628472 | R196: 0.083495388 | S196: 0.2013852247 | T196: 0.1881037574 | U196: 0.09929904728
E197: 0.007003214716 | F197: 0.0001976002801 | G197: 0.03232481507 | H197: 0.2246899932 | I197: 0.1616142333 | J197: 0.02124818532 | K197: 0.04732590661 | L197: 0.2103158346 | M197: 0.1875189743 | N197: 0.01493156322 | O197: 0.001843952791 | P197: 0.01188255401 | Q197: 0.03772390768 | R197: 0.02147335142 | S197: 0.0006791089229 | T197: 0.2772982365 | U197: 0.3803631724
E198: 0.01359758254 | F198: 0.01974029988 | G198: 0.0008595760304 | H198: 0.0005445053747 | I198: 0.13023206 | J198: 0.02457241788 | K198: 0.04090407569 | L198: 0.0750331202 | M198: 0.09323742465 | N198: 0.0522497908 | O198: 0.002895783337 | P198: 0.09893016716 | Q198: 0.001575488438 | R198: 0.00156945296 | S198: 0.1786580196 | T198: 0.1604781196 | U198: 0.1839356754
E199: 0.06454864199 | F199: 0.009042797864 | G199: 0.008275262412 | H199: 0.0884402483 | I199: 0.04779360534 | J199: 0.02254750859 | K199: 0.01670950963 | L199: 0.0001926339887 | M199: 0.03128524627 | N199: 0.003820885914 | O199: 0.0005479463755 | P199: 0.01030109952 | Q199: 0.0852129993 | R199: 0.005211007325 | S199: 0.06576427418 | T199: 0.00252605819 | U199: 0.1872880267
E200: 0.1010574587 | F200: 0.04174311103 | G200: 0.2880816591 | H200: 0.2877981691 | I200: 0.08583744344 | J200: 4.86102242e-05 | K200: 0.081571024 | L200: 0.2180075601 | M200: 0.007586642803 | N200: 0.09536337163 | O200: 0.1068209786 | P200: 0.3297938833 | Q200: 0.09291059704 | R200: 0.04227619025 | S200: 0.03702337906 | T200: 0.1192508271 | U200: 0.1802524102
E201: 0.02416937382 | F201: 0.07219282236 | G201: 0.1017890643 | H201: 0.1434450687 | I201: 0.4336324254 | J201: 0.5019845818 | K201: 0.445587161 | L201: 0.4727650522 | M201: 0.671765861 | N201: 0.5135264173 | O201: 0.9479852857 | P201: 0.2069813014 | Q201: 0.2167490455 | R201: 0.1616365578 | S201: 0.0004541600661 | T201: 0.004516594646 | U201: 0.08206751549
E202: 0.05236879348 | F202: 0.01316285682 | G202: 0.3386472797 | H202: 0.08646249003 | I202: 0.504739753 | J202: 0.295422853 | K202: 0.1586226853 | L202: 0.05282072094 | M202: 0.01596223978 | N202: 0.03246003667 | O202: 0.03400002288 | P202: 0.01212872543 | Q202: 0.003342517082 | R202: 0.01502528835 | S202: 0.0007394890351 | T202: 0.05246287439 | U202: 0.2059109426
E203: 0.09347587058 | F203: 0.0001081996413 | G203: 0.1140813122 | H203: 0.001563347088 | I203: 0.001296806526 | J203: 0.02755213409 | K203: 0.06186829083 | L203: 0.2423666414 | M203: 0.604547118 | N203: 0.6461577514 | O203: 0.3777318698 | P203: 0.5040736666 | Q203: 0.5300123131 | R203: 0.08179666861 | S203: 0.01942844535 | T203: 0.000235871155 | U203: 0.05797007092
... 4297 more rows
